Transaction No.,Service Area Categorisation,Service Division Categorisation,Responsible Unit,Unit Code,Expenses Type,Expenses Sub Type,Expense Code,Narrative,Amount,Invoice Date,Capital /Revenue,Supplier Name
1,Central Services,Corporate Mangmt not separated,Chief Exec's Office,A01001,Supplies & Services           ,Grants and Subscriptions      ,DJ04,Subscriptions,"33,286.00",08/04/2013,R,LONDON COUNCILS               
2,Cultural Env Reg&Plan Services,Comm Safety (Crime Reduction),CCTV,A01200,Supplies & Services           ,Comms and Computing           ,DG15,Network Maintenance,763.07,01/05/2013,R,BT REDCARE                    
3,Cultural Env Reg&Plan Services,Comm Safety (Crime Reduction),CCTV,A01200,Supplies & Services           ,Comms and Computing           ,DG15,Network Maintenance,"2,733.61",03/04/2013,R,BT REDCARE                    
4,Cultural Env Reg&Plan Services,Comm Safety (Crime Reduction),CCTV,A01200,Supplies & Services           ,Comms and Computing           ,DG15,Network Maintenance,"5,775.19",03/04/2013,R,BT REDCARE                    
5,Central Services,SupS Chief Execs,NON-STATUTORY MARKETING & COMM,A02019,Supplies & Services           ,Catering                      ,DB50,Refreshments,"1,000.00",08/05/2013,R,MENU2VENUE                    
6,Central Services,SupS Chief Execs,NON-STATUTORY MARKETING & COMM,A02019,Supplies & Services           ,Services                      ,DF02,Misc Advertising/Publicity,500,26/04/2013,R,KEEP THE FAITH                
7,Central Services,SupS Chief Execs,NON-STATUTORY MARKETING & COMM,A02019,Supplies & Services           ,Services                      ,DF02,Misc Advertising/Publicity,"1,700.00",15/03/2013,R,WANDSWORTH COUNCIL            
8,Central Services,SupS Chief Execs,NON-STATUTORY MARKETING & COMM,A02019,Supplies & Services           ,Services                      ,DF02,Misc Advertising/Publicity,"1,700.00",18/03/2013,R,WANDSWORTH COUNCIL            
9,Central Services,SupS Chief Execs,NON-STATUTORY MARKETING & COMM,A02019,Supplies & Services           ,Services                      ,DF35,Graphic Design,"5,625.00",02/05/2013,R,THE BIG IDEA 
10,Central Services,SupS Chief Execs,NON-STATUTORY MARKETING & COMM,A02019,Supplies & Services           ,Services                      ,DF36,Photography,588,23/05/2013,R,SIXPENCE IMAGES               
11,Central Services,SupS Chief Execs,Democratic Services,A02023,Supplies & Services           ,Clothing Unfrms Laundry       ,DC02,Clothing & Uniforms,"1,277.60",04/04/2013,R,TOYE KENNING & SPENCER LTD    
12,Central Services,SupS Chief Execs,Democratic Services,A02023,Supplies & Services           ,Expenses                      ,DH63,Members Expenses              ,"1,470.00",24/05/2013,R,INFORMATION COMMISSIONER      
13,Central Services,SupS Chief Execs,Democratic Services,A02023,Supplies & Services           ,Expenses                      ,DH79,Incoming Mayor (May-March),500,03/05/2013,R,REDACTED
14,Central Services,SupS Chief Execs,Press and Public Relations.,A02026,Employees                     ,Direct Employee Expenses      ,AA17,Agency Staff & Casual Paymts,904,26/04/2013,R,HAYS RECRUITING EXPERTS       
15,Central Services,SupS Chief Execs,Press and Public Relations.,A02026,Employees                     ,Direct Employee Expenses      ,AA17,Agency Staff & Casual Paymts,"1,130.00",23/04/2013,R,HAYS RECRUITING EXPERTS       
16,Central Services,SupS Chief Execs,Press and Public Relations.,A02026,Employees                     ,Direct Employee Expenses      ,AA17,Agency Staff & Casual Paymts,"1,130.00",23/04/2013,R,HAYS RECRUITING EXPERTS       
17,Central Services,SupS Chief Execs,Press and Public Relations.,A02026,Supplies & Services           ,Prntng Stnry Gen Off Exp      ,DE20,Council Magazine,650,15/05/2013,R,REDACTED
18,Central Services,SupS Chief Execs,Press and Public Relations.,A02026,Supplies & Services           ,Grants and Subscriptions      ,DJ04,Subscriptions,"1,973.00",29/04/2013,R,NEWSPAPER LICENSING AGENCY LTD
19,Central Services,SupS Chief Execs,Press and Public Relations.,A02026,Supplies & Services           ,Grants and Subscriptions      ,DJ04,Subscriptions,"2,564.00",29/04/2013,R,NEWSPAPER LICENSING AGENCY LTD
20,CS -Oth Operating Inc & Expend,T/A Corporate Services,Prtng Jobs - Ext Agncy,A03041,Supplies & Services           ,Prntng Stnry Gen Off Exp      ,DE01,External Printing,500,29/04/2013,R,IMPRESS PRINT SERVICES LTD    
21,Central Services,SupS Comm and Member Services,COMMUNITY ENGAGAMENT,A04057,Supplies & Services           ,Services                      ,DF32,Customer Survey,"4,850.00",03/05/2013,R,PEOPLE MATTERS NETWORK        
22,CS -Oth Operating Inc & Expend,T/A Corporate Services,Translation Services,A04060,Supplies & Services           ,Services                      ,DF45,Payment of Sessional workers,621,15/05/2013,R,REDACTED
23,Central Services,SupS Comm and Member Services,PROGRAMME OFFICE,A04068,Employees                     ,Direct Employee Expenses      ,AA17,Agency Staff & Casual Paymts,"10,200.00",16/05/2013,R,REDACTED
24,Central Services,Members allowances & expenses,Scrutiny Support Fund,A04069,Supplies & Services           ,Expenses                      ,DH60,Members training AP creditors,750,08/04/2013,R,REDACTED
25,Central Services,SupS Best Value,Merton Link,A04070,Supplies & Services           ,Comms and Computing           ,DG15,Network Maintenance,"1,176.28",02/05/2013,R,NORTHGATE INFORMATION SOLUTION
26,Central Services,Members allowances & expenses,PERFORMANCE REWARD GRANT,A04081,Supplies & Services           ,Grants and Subscriptions      ,DJ01,Grants,"8,135.00",13/05/2013,R,MERTON STREET PASTORS         
27,Central Services,Members allowances & expenses,PERFORMANCE REWARD GRANT,A04081,Supplies & Services           ,Grants and Subscriptions      ,DJ01,Grants,"52,253.00",14/05/2013,R,MERTON VOLUNTARY SERV COUNCIL 
28,Central Services,Members allowances & expenses,PERFORMANCE REWARD GRANT,A04081,Supplies & Services           ,Grants and Subscriptions      ,DJ01,Grants,"52,677.00",22/05/2013,R,MERTON PRIORY HOMES           
29,Central Services,SupS Comm and Member Services,COMMERICIAL SERVICES,A04085,Employees                     ,Direct Employee Expenses      ,AA17,Agency Staff & Casual Paymts,"3,390.00",02/05/2013,R,HAYS RECRUITING EXPERTS       
30,Central Services,SupS Comm and Member Services,COMMERICIAL SERVICES,A04085,Employees                     ,Direct Employee Expenses      ,AA17,Agency Staff & Casual Paymts,"3,390.00",24/04/2013,R,HAYS RECRUITING EXPERTS       
31,Central Services,Registn Birth/Death/Marriage,Reg of B. Deaths & Ms,B06143,Employees                     ,Direct Employee Expenses      ,AA04,Shared Services Salaries,"12,923.29",22/04/2013,R,LONDON BOROUGH OF SUTTON      
32,Central Services,Registn Birth/Death/Marriage,Reg of B. Deaths & Ms,B06143,Supplies & Services           ,Comms and Computing           ,DG07,Computer Software,650,31/10/2012,R,ZIPPORAH LTD                  
33,Central Services,Registn Birth/Death/Marriage,Reg of B. Deaths & Ms,B06143,Supplies & Services           ,Comms and Computing           ,DG07,Computer Software,"1,822.43",01/03/2013,R,ZIPPORAH LTD                  
34,Central Services,Registn Birth/Death/Marriage,Reg of B. Deaths & Ms,B06143,Supplies & Services           ,Comms and Computing           ,DG07,Computer Software,"1,822.43",01/03/2013,R,ZIPPORAH LTD                  
35,Central Services,SupS Health & Safety,Learning and Development,B06146,Employees                     ,Indirect Employee Expenses    ,AB56,Internal Training Costs,"2,850.00",19/04/2013,R,CIVICA UK LIMITED             
36,Central Services,SupS Health & Safety,Learning and Development,B06146,Employees                     ,Indirect Employee Expenses    ,AB56,Internal Training Costs,"4,748.00",26/04/2013,R,MARSHALL - JAMES              
37,Central Services,SupS Health & Safety,Learning and Development,B06146,Employees                     ,Indirect Employee Expenses    ,AB56,Internal Training Costs,"5,577.20",28/03/2013,R,MARSHALL - JAMES              
38,Central Services,SupS Health & Safety,Learning and Development,B06146,Employees                     ,Indirect Employee Expenses    ,AB57,External Training Costs,500,25/02/2013,R,GRANT RICHES COMM. CONSUL.    
39,Central Services,SupS Health & Safety,Learning and Development,B06146,Employees                     ,Indirect Employee Expenses    ,AB57,External Training Costs,500,08/04/2013,R,GRANT RICHES COMM. CONSUL.    
40,Central Services,SupS Health & Safety,Learning and Development,B06146,Employees                     ,Indirect Employee Expenses    ,AB57,External Training Costs,750,11/04/2013,R,REDACTED
41,Central Services,SupS Health & Safety,Learning and Development,B06146,Employees                     ,Indirect Employee Expenses    ,AB57,External Training Costs,"4,850.00",11/03/2013,R,CROFT MANAGEMENT CENTRE       
42,CS -Oth Operating Inc & Expend,T/A Corporate Services,CHAS Scheme,B06150,Supplies & Services           ,Services                      ,DF11,Counsel's fees,831.19,25/04/2013,R,WEIGHTMANS LLP                
43,CS -Oth Operating Inc & Expend,T/A Corporate Services,CHAS Scheme,B06150,Supplies & Services           ,Services                      ,DF88,Assessor Fees,515,27/04/2013,R,REDACTED
44,CS -Oth Operating Inc & Expend,T/A Corporate Services,CHAS Scheme,B06150,Supplies & Services           ,Services                      ,DF88,Assessor Fees,555,09/05/2013,R,REDACTED
45,CS -Oth Operating Inc & Expend,T/A Corporate Services,CHAS Scheme,B06150,Supplies & Services           ,Services                      ,DF88,Assessor Fees,555,25/05/2013,R,REDACTED
46,CS -Oth Operating Inc & Expend,T/A Corporate Services,CHAS Scheme,B06150,Supplies & Services           ,Services                      ,DF88,Assessor Fees,588,30/04/2013,R,REDACTED
47,CS -Oth Operating Inc & Expend,T/A Corporate Services,CHAS Scheme,B06150,Supplies & Services           ,Services                      ,DF88,Assessor Fees,595,07/05/2013,R,MGW SAFETY SERVICES           
48,CS -Oth Operating Inc & Expend,T/A Corporate Services,CHAS Scheme,B06150,Supplies & Services           ,Services                      ,DF88,Assessor Fees,595,16/05/2013,R,REDACTED
49,CS -Oth Operating Inc & Expend,T/A Corporate Services,CHAS Scheme,B06150,Supplies & Services           ,Services                      ,DF88,Assessor Fees,635,30/04/2013,R,REDACTED
50,CS -Oth Operating Inc & Expend,T/A Corporate Services,CHAS Scheme,B06150,Supplies & Services           ,Services                      ,DF88,Assessor Fees,642,12/05/2013,R,REDACTED
51,CS -Oth Operating Inc & Expend,T/A Corporate Services,CHAS Scheme,B06150,Supplies & Services           ,Services                      ,DF88,Assessor Fees,642,12/05/2013,R,REDACTED
52,CS -Oth Operating Inc & Expend,T/A Corporate Services,CHAS Scheme,B06150,Supplies & Services           ,Services                      ,DF88,Assessor Fees,642,22/03/2013,R,TERN ASSOCIATES LTD           
53,CS -Oth Operating Inc & Expend,T/A Corporate Services,CHAS Scheme,B06150,Supplies & Services           ,Services                      ,DF88,Assessor Fees,642,30/04/2013,R,REDACTED
54,CS -Oth Operating Inc & Expend,T/A Corporate Services,CHAS Scheme,B06150,Supplies & Services           ,Services                      ,DF88,Assessor Fees,649,31/03/2013,R,REDACTED
55,CS -Oth Operating Inc & Expend,T/A Corporate Services,CHAS Scheme,B06150,Supplies & Services           ,Services                      ,DF88,Assessor Fees,675,03/05/2013,R,REDACTED
56,CS -Oth Operating Inc & Expend,T/A Corporate Services,CHAS Scheme,B06150,Supplies & Services           ,Services                      ,DF88,Assessor Fees,682,01/05/2013,R,REDACTED
57,CS -Oth Operating Inc & Expend,T/A Corporate Services,CHAS Scheme,B06150,Supplies & Services           ,Services                      ,DF88,Assessor Fees,682,30/04/2013,R,REDACTED
58,CS -Oth Operating Inc & Expend,T/A Corporate Services,CHAS Scheme,B06150,Supplies & Services           ,Services                      ,DF88,Assessor Fees,682,30/04/2013,R,REDACTED
59,CS -Oth Operating Inc & Expend,T/A Corporate Services,CHAS Scheme,B06150,Supplies & Services           ,Services                      ,DF88,Assessor Fees,689,28/05/2013,R,REDACTED
60,CS -Oth Operating Inc & Expend,T/A Corporate Services,CHAS Scheme,B06150,Supplies & Services           ,Services                      ,DF88,Assessor Fees,689,11/05/2013,R,REDACTED
61,CS -Oth Operating Inc & Expend,T/A Corporate Services,CHAS Scheme,B06150,Supplies & Services           ,Services                      ,DF88,Assessor Fees,695,16/05/2013,R,REDACTED
62,CS -Oth Operating Inc & Expend,T/A Corporate Services,CHAS Scheme,B06150,Supplies & Services           ,Services                      ,DF88,Assessor Fees,722,30/04/2013,R,REDACTED
63,CS -Oth Operating Inc & Expend,T/A Corporate Services,CHAS Scheme,B06150,Supplies & Services           ,Services                      ,DF88,Assessor Fees,729,31/07/2012,R,REDACTED
64,CS -Oth Operating Inc & Expend,T/A Corporate Services,CHAS Scheme,B06150,Supplies & Services           ,Services                      ,DF88,Assessor Fees,729,30/04/2013,R,REDACTED
65,CS -Oth Operating Inc & Expend,T/A Corporate Services,CHAS Scheme,B06150,Supplies & Services           ,Services                      ,DF88,Assessor Fees,729,26/04/2013,R,REDACTED
66,CS -Oth Operating Inc & Expend,T/A Corporate Services,CHAS Scheme,B06150,Supplies & Services           ,Services                      ,DF88,Assessor Fees,729,28/04/2013,R,REDACTED
67,CS -Oth Operating Inc & Expend,T/A Corporate Services,CHAS Scheme,B06150,Supplies & Services           ,Services                      ,DF88,Assessor Fees,729,30/04/2013,R,REDACTED
68,CS -Oth Operating Inc & Expend,T/A Corporate Services,CHAS Scheme,B06150,Supplies & Services           ,Services                      ,DF88,Assessor Fees,742.35,22/05/2013,R,REDACTED
69,CS -Oth Operating Inc & Expend,T/A Corporate Services,CHAS Scheme,B06150,Supplies & Services           ,Services                      ,DF88,Assessor Fees,776,16/05/2013,R,REDACTED
70,CS -Oth Operating Inc & Expend,T/A Corporate Services,CHAS Scheme,B06150,Supplies & Services           ,Services                      ,DF88,Assessor Fees,776,02/05/2013,R,REDACTED
71,CS -Oth Operating Inc & Expend,T/A Corporate Services,CHAS Scheme,B06150,Supplies & Services           ,Services                      ,DF88,Assessor Fees,792.99,14/05/2013,R,REDACTED
72,CS -Oth Operating Inc & Expend,T/A Corporate Services,CHAS Scheme,B06150,Supplies & Services           ,Services                      ,DF88,Assessor Fees,807,12/05/2013,R,REDACTED
73,CS -Oth Operating Inc & Expend,T/A Corporate Services,CHAS Scheme,B06150,Supplies & Services           ,Services                      ,DF88,Assessor Fees,849,30/04/2013,R,REDACTED
74,CS -Oth Operating Inc & Expend,T/A Corporate Services,CHAS Scheme,B06150,Supplies & Services           ,Services                      ,DF88,Assessor Fees,863,03/05/2013,R,REDACTED
75,CS -Oth Operating Inc & Expend,T/A Corporate Services,CHAS Scheme,B06150,Supplies & Services           ,Services                      ,DF88,Assessor Fees,882,14/05/2013,R,SELECT SAFETY LIMITED         
76,CS -Oth Operating Inc & Expend,T/A Corporate Services,CHAS Scheme,B06150,Supplies & Services           ,Services                      ,DF88,Assessor Fees,895.22,16/05/2013,R,MCG HEALTH & SAFETY LTD       
77,CS -Oth Operating Inc & Expend,T/A Corporate Services,CHAS Scheme,B06150,Supplies & Services           ,Services                      ,DF88,Assessor Fees,903,28/04/2013,R,REDACTED
78,CS -Oth Operating Inc & Expend,T/A Corporate Services,CHAS Scheme,B06150,Supplies & Services           ,Services                      ,DF88,Assessor Fees,936,20/05/2013,R,TERN ASSOCIATES LTD           
79,CS -Oth Operating Inc & Expend,T/A Corporate Services,CHAS Scheme,B06150,Supplies & Services           ,Services                      ,DF88,Assessor Fees,"1,041.00",10/05/2013,R,REDACTED
80,CS -Oth Operating Inc & Expend,T/A Corporate Services,CHAS Scheme,B06150,Supplies & Services           ,Services                      ,DF88,Assessor Fees,"1,043.67",30/04/2013,R,REDACTED
81,CS -Oth Operating Inc & Expend,T/A Corporate Services,CHAS Scheme,B06150,Supplies & Services           ,Services                      ,DF88,Assessor Fees,"1,049.00",30/04/2013,R,REDACTED
82,CS -Oth Operating Inc & Expend,T/A Corporate Services,CHAS Scheme,B06150,Supplies & Services           ,Services                      ,DF88,Assessor Fees,"1,063.00",30/04/2013,R,REDACTED
83,CS -Oth Operating Inc & Expend,T/A Corporate Services,CHAS Scheme,B06150,Supplies & Services           ,Services                      ,DF88,Assessor Fees,"1,096.00",30/04/2013,R,REDACTED
84,CS -Oth Operating Inc & Expend,T/A Corporate Services,CHAS Scheme,B06150,Supplies & Services           ,Services                      ,DF88,Assessor Fees,"1,150.00",30/04/2013,R,REDACTED
85,CS -Oth Operating Inc & Expend,T/A Corporate Services,CHAS Scheme,B06150,Supplies & Services           ,Services                      ,DF88,Assessor Fees,"1,186.00",30/04/2013,R,REDACTED
86,CS -Oth Operating Inc & Expend,T/A Corporate Services,CHAS Scheme,B06150,Supplies & Services           ,Services                      ,DF88,Assessor Fees,"1,197.00",17/03/2013,R,REDACTED
87,CS -Oth Operating Inc & Expend,T/A Corporate Services,CHAS Scheme,B06150,Supplies & Services           ,Services                      ,DF88,Assessor Fees,"1,230.00",15/05/2013,R,REDACTED
88,CS -Oth Operating Inc & Expend,T/A Corporate Services,CHAS Scheme,B06150,Supplies & Services           ,Services                      ,DF88,Assessor Fees,"1,256.00",12/05/2013,R,REDACTED
89,CS -Oth Operating Inc & Expend,T/A Corporate Services,CHAS Scheme,B06150,Supplies & Services           ,Services                      ,DF88,Assessor Fees,"1,284.00",11/05/2013,R,REDACTED
90,CS -Oth Operating Inc & Expend,T/A Corporate Services,CHAS Scheme,B06150,Supplies & Services           ,Services                      ,DF88,Assessor Fees,"1,371.00",30/04/2013,R,REDACTED
91,CS -Oth Operating Inc & Expend,T/A Corporate Services,CHAS Scheme,B06150,Supplies & Services           ,Services                      ,DF88,Assessor Fees,"1,390.00",29/04/2013,R,REDACTED
92,CS -Oth Operating Inc & Expend,T/A Corporate Services,CHAS Scheme,B06150,Supplies & Services           ,Services                      ,DF88,Assessor Fees,"1,505.00",30/04/2013,R,WEST WALES SAFETY SERVICES    
93,CS -Oth Operating Inc & Expend,T/A Corporate Services,CHAS Scheme,B06150,Supplies & Services           ,Services                      ,DF88,Assessor Fees,"1,538.00",20/05/2013,R,REDACTED
94,CS -Oth Operating Inc & Expend,T/A Corporate Services,CHAS Scheme,B06150,Supplies & Services           ,Services                      ,DF88,Assessor Fees,"1,592.00",24/05/2013,R,REDACTED
95,CS -Oth Operating Inc & Expend,T/A Corporate Services,CHAS Scheme,B06150,Supplies & Services           ,Services                      ,DF88,Assessor Fees,"1,604.00",10/05/2013,R,REDACTED
96,CS -Oth Operating Inc & Expend,T/A Corporate Services,CHAS Scheme,B06150,Supplies & Services           ,Services                      ,DF88,Assessor Fees,"1,605.00",20/04/2013,R,REDACTED
97,CS -Oth Operating Inc & Expend,T/A Corporate Services,CHAS Scheme,B06150,Supplies & Services           ,Services                      ,DF88,Assessor Fees,"1,785.00",28/04/2013,R,WOODS CONSULTANCY SERVICES LTD
98,CS -Oth Operating Inc & Expend,T/A Corporate Services,CHAS Scheme,B06150,Supplies & Services           ,Services                      ,DF88,Assessor Fees,"1,943.05",16/05/2013,R,REDACTED
99,CS -Oth Operating Inc & Expend,T/A Corporate Services,CHAS Scheme,B06150,Supplies & Services           ,Services                      ,DF88,Assessor Fees,"2,086.00",16/05/2013,R,REDACTED
100,CS -Oth Operating Inc & Expend,T/A Corporate Services,CHAS Scheme,B06150,Supplies & Services           ,Services                      ,DF88,Assessor Fees,"2,173.00",30/04/2013,R,2ND NATURE SAFETY SOLUTIONS UK
101,CS -Oth Operating Inc & Expend,T/A Corporate Services,CHAS Scheme,B06150,Supplies & Services           ,Services                      ,DF88,Assessor Fees,"2,187.00",31/03/2013,R,REDACTED
102,CS -Oth Operating Inc & Expend,T/A Corporate Services,CHAS Scheme,B06150,Supplies & Services           ,Services                      ,DF88,Assessor Fees,"2,201.00",20/05/2013,R,REDACTED
103,CS -Oth Operating Inc & Expend,T/A Corporate Services,CHAS Scheme,B06150,Supplies & Services           ,Services                      ,DF88,Assessor Fees,"2,221.00",21/03/2013,R,REDACTED
104,CS -Oth Operating Inc & Expend,T/A Corporate Services,CHAS Scheme,B06150,Supplies & Services           ,Services                      ,DF88,Assessor Fees,"2,387.00",10/05/2013,R,REDACTED
105,CS -Oth Operating Inc & Expend,T/A Corporate Services,CHAS Scheme,B06150,Supplies & Services           ,Services                      ,DF88,Assessor Fees,"2,430.00",02/05/2013,R,REDACTED
106,CS -Oth Operating Inc & Expend,T/A Corporate Services,CHAS Scheme,B06150,Supplies & Services           ,Services                      ,DF88,Assessor Fees,"2,695.00",30/04/2013,R,REDACTED
107,CS -Oth Operating Inc & Expend,T/A Corporate Services,CHAS Scheme,B06150,Supplies & Services           ,Services                      ,DF88,Assessor Fees,"2,834.00",30/04/2013,R,REDACTED
108,CS -Oth Operating Inc & Expend,T/A Corporate Services,CHAS Scheme,B06150,Supplies & Services           ,Services                      ,DF88,Assessor Fees,"2,902.00",17/05/2013,R,REDACTED
109,CS -Oth Operating Inc & Expend,T/A Corporate Services,CHAS Scheme,B06150,Supplies & Services           ,Services                      ,DF88,Assessor Fees,"3,037.00",30/04/2013,R,REDACTED
110,CS -Oth Operating Inc & Expend,T/A Corporate Services,CHAS Scheme,B06150,Supplies & Services           ,Services                      ,DF88,Assessor Fees,"3,128.00",29/04/2013,R,REDACTED
111,CS -Oth Operating Inc & Expend,T/A Corporate Services,CHAS Scheme,B06150,Supplies & Services           ,Services                      ,DF88,Assessor Fees,"3,236.00",26/04/2013,R,ALIMOR SAFETY LTD             
112,CS -Oth Operating Inc & Expend,T/A Corporate Services,CHAS Scheme,B06150,Supplies & Services           ,Services                      ,DF88,Assessor Fees,"3,244.00",07/05/2013,R,REDACTED
113,CS -Oth Operating Inc & Expend,T/A Corporate Services,CHAS Scheme,B06150,Supplies & Services           ,Services                      ,DF88,Assessor Fees,"3,257.00",01/04/2013,R,REDACTED
114,CS -Oth Operating Inc & Expend,T/A Corporate Services,CHAS Scheme,B06150,Supplies & Services           ,Services                      ,DF88,Assessor Fees,"3,370.00",30/04/2013,R,SOUTH EAST HEALTH & SAFETY LTD
115,CS -Oth Operating Inc & Expend,T/A Corporate Services,CHAS Scheme,B06150,Supplies & Services           ,Services                      ,DF88,Assessor Fees,"3,589.00",19/04/2013,R,HOLLYGLADE LTD T/A BEACONRISK 
116,CS -Oth Operating Inc & Expend,T/A Corporate Services,CHAS Scheme,B06150,Supplies & Services           ,Services                      ,DF88,Assessor Fees,"4,026.00",10/05/2013,R,HOLLYGLADE LTD T/A BEACONRISK 
117,CS -Oth Operating Inc & Expend,T/A Corporate Services,CHAS Scheme,B06150,Supplies & Services           ,Services                      ,DF88,Assessor Fees,"4,456.00",30/04/2013,R,STALLARD KANE ASSOCIATES LTD  
118,CS -Oth Operating Inc & Expend,T/A Corporate Services,CHAS Scheme,B06150,Supplies & Services           ,Services                      ,DF88,Assessor Fees,"4,734.00",01/05/2013,R,ARC ASSOCIATES (UK)           
119,,,Laptops for Other Staff                 ,CC018EB,Vehicles Plant Equipment and Machinery,0,D3,Equipment,690,10/05/2013,C,VIGLEN LIMITED                
120,,,Disabled Facilities Grant DCLG          ,CE004RA,Other Capital Expenditure,0,E1,Grants,589.12,07/05/2013,C,CBS ADAPTATION                
121,,,Disabled Facilities Grant DCLG          ,CE004RA,Other Capital Expenditure,0,E1,Grants,717,24/05/2013,C,ZAIMAJ CONSTRUCTION           
122,,,Disabled Facilities Grant DCLG          ,CE004RA,Other Capital Expenditure,0,E1,Grants,753.91,08/05/2013,C,SUTTON STAYING PUT            
123,,,Disabled Facilities Grant DCLG          ,CE004RA,Other Capital Expenditure,0,E1,Grants,828,01/05/2013,C,R E SHELLEY                   
124,,,Disabled Facilities Grant DCLG          ,CE004RA,Other Capital Expenditure,0,E1,Grants,"1,176.97",09/05/2013,C,STAYING FIRST                 
125,,,Disabled Facilities Grant DCLG          ,CE004RA,Other Capital Expenditure,0,E1,Grants,"1,204.30",31/05/2013,C,CBS ADAPTATION                
126,,,Disabled Facilities Grant DCLG          ,CE004RA,Other Capital Expenditure,0,E1,Grants,"1,249.20",20/05/2013,C,STAYING FIRST                 
127,,,Disabled Facilities Grant DCLG          ,CE004RA,Other Capital Expenditure,0,E1,Grants,"1,410.99",21/05/2013,C,CBS ADAPTATION                
128,,,Disabled Facilities Grant DCLG          ,CE004RA,Other Capital Expenditure,0,E1,Grants,"1,420.30",01/05/2013,C,CBS ADAPTATION                
129,,,Disabled Facilities Grant DCLG          ,CE004RA,Other Capital Expenditure,0,E1,Grants,"1,437.48",01/05/2013,C,R E SHELLEY                   
130,,,Disabled Facilities Grant DCLG          ,CE004RA,Other Capital Expenditure,0,E1,Grants,"1,545.59",31/05/2013,C,CBS ADAPTATION                
131,,,Disabled Facilities Grant DCLG          ,CE004RA,Other Capital Expenditure,0,E1,Grants,"1,626.04",21/05/2013,C,CBS ADAPTATION                
132,,,Disabled Facilities Grant DCLG          ,CE004RA,Other Capital Expenditure,0,E1,Grants,"1,744.86",21/05/2013,C,STAYING FIRST                 
133,,,Disabled Facilities Grant DCLG          ,CE004RA,Other Capital Expenditure,0,E1,Grants,"1,784.00",07/05/2013,C,TLC STAIRLIFTS                
134,,,Disabled Facilities Grant DCLG          ,CE004RA,Other Capital Expenditure,0,E1,Grants,"1,790.95",21/05/2013,C,STAYING FIRST                 
135,,,Disabled Facilities Grant DCLG          ,CE004RA,Other Capital Expenditure,0,E1,Grants,"1,844.62",31/05/2013,C,STAYING FIRST                 
136,,,Disabled Facilities Grant DCLG          ,CE004RA,Other Capital Expenditure,0,E1,Grants,"2,113.46",21/05/2013,C,CBS ADAPTATION                
137,,,Disabled Facilities Grant DCLG          ,CE004RA,Other Capital Expenditure,0,E1,Grants,"2,335.00",31/05/2013,C,ASCENDIT LIFTS LTD            
138,,,Disabled Facilities Grant DCLG          ,CE004RA,Other Capital Expenditure,0,E1,Grants,"2,519.28",21/05/2013,C,STAYING FIRST                 
139,,,Disabled Facilities Grant DCLG          ,CE004RA,Other Capital Expenditure,0,E1,Grants,"2,957.95",20/05/2013,C,CBS ADAPTATION                
140,,,Disabled Facilities Grant DCLG          ,CE004RA,Other Capital Expenditure,0,E1,Grants,"3,905.00",21/05/2013,C,ASCENDIT LIFTS LTD            
141,,,Disabled Facilities Grant DCLG          ,CE004RA,Other Capital Expenditure,0,E1,Grants,"4,619.00",07/05/2013,C,STANNAH LIFTS SERVICE LTD     
142,,,Disabled Facilities Grant DCLG          ,CE004RA,Other Capital Expenditure,0,E1,Grants,"4,957.34",31/05/2013,C,TBS ADAPTATIONS LTD           
143,,,Disabled Facilities Grant DCLG          ,CE004RA,Other Capital Expenditure,0,E1,Grants,"5,253.26",31/05/2013,C,TBS ADAPTATIONS LTD           
144,,,Disabled Facilities Grant DCLG          ,CE004RA,Other Capital Expenditure,0,E1,Grants,"5,678.00",21/05/2013,C,HOME ADAPTATIONS              
145,,,Disabled Facilities Grant DCLG          ,CE004RA,Other Capital Expenditure,0,E1,Grants,"5,804.80",21/05/2013,C,TBS ADAPTATIONS LTD           
146,,,Disabled Facilities Grant DCLG          ,CE004RA,Other Capital Expenditure,0,E1,Grants,"6,158.00",21/05/2013,C,TBS ADAPTATIONS LTD           
147,,,Disabled Facilities Grant DCLG          ,CE004RA,Other Capital Expenditure,0,E1,Grants,"9,682.40",16/05/2013,C,WEIR BUILDING SERVICES        
148,,,Disabled Facilities Grant DCLG          ,CE004RA,Other Capital Expenditure,0,E1,Grants,"12,842.00",16/05/2013,C,REDACTED
149,,,Disabled Facilities Grant DCLG          ,CE004RA,Other Capital Expenditure,0,E1,Grants,"15,693.00",20/05/2013,C,TBS ADAPTATIONS LTD           
150,,,Small Repairs Grant                     ,CE005RA,Other Capital Expenditure,0,E1,Grants,"1,368.00",08/05/2013,C,RAY STRANK ROOFING LTD        
151,,,Small Repairs Grant                     ,CE005RA,Other Capital Expenditure,0,E1,Grants,"2,628.00",16/05/2013,C,HAMILTON WINDOWS              
152,,,Small Repairs Grant                     ,CE005RA,Other Capital Expenditure,0,E1,Grants,"2,760.00",08/05/2013,C,NRT ELECTRICAL & MECHANICAL LD
153,,,Small Repairs Grant                     ,CE005RA,Other Capital Expenditure,0,E1,Grants,"3,870.00",29/05/2013,C,WIMBLEDON WINDOW CO.LTD.      
154,,,Small Repairs Grant                     ,CE005RA,Other Capital Expenditure,0,E1,Grants,"3,886.62",21/05/2013,C,S&S CONSTRUCTION              
155,,,Small Repairs Grant                     ,CE005RA,Other Capital Expenditure,0,E1,Grants,"3,935.00",09/05/2013,C,SEC NORBURY LTD               
156,,,Small Repairs Grant                     ,CE005RA,Other Capital Expenditure,0,E1,Grants,"3,960.00",29/05/2013,C,GRABEX WINDOWS                
157,,,Small Repairs Grant                     ,CE005RA,Other Capital Expenditure,0,E1,Grants,"3,979.00",07/05/2013,C,NICHOLLS & SONS PROPERTY SERV.
158,,,Small Repairs Grant                     ,CE005RA,Other Capital Expenditure,0,E1,Grants,"4,000.00",09/05/2013,C,S&S CONSTRUCTION              
159,,,Small Repairs Grant                     ,CE005RA,Other Capital Expenditure,0,E1,Grants,"4,483.25",21/05/2013,C,TBS ADAPTATIONS LTD           
160,,,Mitcham - Outer London Fund             ,CE006FC,New Construction Conversion and Renovation,0,B3,Design and Supervision - Other Expenses,"2,500.00",26/04/2013,C,STUDIO WEAVE LTD              
161,,,Parks Investment                        ,CE013SA,New Construction Conversion and Renovation,0,B4,Site Works - Contractor,612.45,02/04/2013,C,SALTASH ENTERPRISES LTD       
162,,,Restoration of South Park Gdns          ,CE015CA,New Construction Conversion and Renovation,0,B1,Design and Supervision - Consultants Fee,"1,000.00",20/05/2013,C,HB ARCHITECTS LTD             
163,,,Restoration of South Park Gdns          ,CE015CA,New Construction Conversion and Renovation,0,B1,Design and Supervision - Consultants Fee,"1,000.00",20/05/2013,C,HB ARCHITECTS LTD             
164,,,Joseph Hood Playground (B524)           ,CE025CA,New Construction Conversion and Renovation,0,B1,Design and Supervision - Consultants Fee,"2,752.94",13/05/2013,C,MARCUS BEALE ARCHITECTS       
165,,,Borough Roads Maintenance               ,CE026FA,New Construction Conversion and Renovation,0,B4,Site Works - Contractor,"2,311.89",22/05/2013,C,FM CONWAY LTD                 
166,,,Borough Roads Maintenance               ,CE026FA,New Construction Conversion and Renovation,0,B4,Site Works - Contractor,"2,714.70",07/05/2013,C,FM CONWAY LTD                 
167,,,Borough Roads Maintenance               ,CE026FA,New Construction Conversion and Renovation,0,B4,Site Works - Contractor,"5,000.00",07/05/2013,C,FM CONWAY LTD                 
168,,,Borough Roads Maintenance               ,CE026FA,New Construction Conversion and Renovation,0,B4,Site Works - Contractor,"7,940.58",07/05/2013,C,FM CONWAY LTD                 
169,,,Borough Roads Maintenance               ,CE026FA,New Construction Conversion and Renovation,0,B4,Site Works - Contractor,"53,805.75",29/04/2013,C,FM CONWAY LTD                 
170,,,Repairs to Footways                     ,CE029FA,New Construction Conversion and Renovation,0,B4,Site Works - Contractor,"28,786.25",29/04/2013,C,FM CONWAY LTD                 
171,,,Leisure Centre Plant & Machine          ,CE038MA,New Construction Conversion and Renovation,0,B4,Site Works - Contractor,533,21/05/2013,C,STAMFORD CONTRACTS LIMITED    
172,,,Leisure Centre Plant & Machine          ,CE038MA,New Construction Conversion and Renovation,0,B4,Site Works - Contractor,"4,142.00",14/05/2013,C,COBSEN-DAVIES ROOFING (LOND)LT
173,,,Garth Rd Workshop                       ,CE041AA,New Construction Conversion and Renovation,0,B4,Site Works - Contractor,"20,871.85",01/05/2013,C,FARNRISE CONSTRUCTION LTD     
174,,,Climate Change Initiatives              ,CE052MA,New Construction Conversion and Renovation,0,B2,Design and Supervision - Site Surveys,"2,980.00",16/04/2013,C,ORACLE SOLUTIONS UK LTD       
175,,,Improve markings & road signs           ,CE066EA,New Construction Conversion and Renovation,0,B4,Site Works - Contractor,998.11,25/04/2013,C,MAY GURNEY LTD T/A CARTLEDGE  
176,,,Improve markings & road signs           ,CE066EA,New Construction Conversion and Renovation,0,B4,Site Works - Contractor,"3,830.38",29/04/2013,C,FM CONWAY LTD                 
177,,,Improve markings & road signs           ,CE066EA,Vehicles Plant Equipment and Machinery,0,D5,Software,"29,750.00",25/04/2013,C,BARBOUR LOGIC LTD             
178,,,Street scene enhancements               ,CE066FE,New Construction Conversion and Renovation,0,B4,Site Works - Contractor,575,25/05/2013,C,REDACTED
179,,,Street scene enhancements               ,CE066FE,New Construction Conversion and Renovation,0,B4,Site Works - Contractor,760,25/05/2013,C,REDACTED
180,,,Street scene enhancements               ,CE066FE,New Construction Conversion and Renovation,0,B4,Site Works - Contractor,846,25/05/2013,C,REDACTED
181,,,Street scene enhancements               ,CE066FE,New Construction Conversion and Renovation,0,B4,Site Works - Contractor,885,25/05/2013,C,REDACTED
182,,,Street scene enhancements               ,CE066FE,New Construction Conversion and Renovation,0,B4,Site Works - Contractor,940,25/05/2013,C,REDACTED
183,,,Street scene enhancements               ,CE066FE,New Construction Conversion and Renovation,0,B4,Site Works - Contractor,"1,050.00",25/05/2013,C,REDACTED
184,,,Street scene enhancements               ,CE066FE,New Construction Conversion and Renovation,0,B4,Site Works - Contractor,"2,730.00",25/05/2013,C,REDACTED
185,,,Street scene enhancements               ,CE066FE,New Construction Conversion and Renovation,0,B4,Site Works - Contractor,"3,800.00",25/05/2013,C,REDACTED
186,,,Street Tree Programme                   ,CE067FA,New Construction Conversion and Renovation,0,B5,Site Works - Suppliers,"2,059.20",24/04/2013,C,BARCHAM TREES P.L.C.          
187,,,Street Lighting Replacement Pr          ,CE068FA,New Construction Conversion and Renovation,0,B4,Site Works - Contractor,"1,464.03",25/04/2013,C,MAY GURNEY LTD T/A CARTLEDGE  
188,,,Street Lighting Replacement Pr          ,CE068FA,New Construction Conversion and Renovation,0,B4,Site Works - Contractor,"2,275.00",25/04/2013,C,MAY GURNEY LTD T/A CARTLEDGE  
189,,,Street Lighting Replacement Pr          ,CE068FA,New Construction Conversion and Renovation,0,B4,Site Works - Contractor,"2,717.14",25/04/2013,C,MAY GURNEY LTD T/A CARTLEDGE  
190,,,Street Lighting Replacement Pr          ,CE068FA,New Construction Conversion and Renovation,0,B4,Site Works - Contractor,"5,690.32",25/04/2013,C,MAY GURNEY LTD T/A CARTLEDGE  
191,,,Street Lighting Replacement Pr          ,CE068FA,New Construction Conversion and Renovation,0,B6,Site Works - Other Costs,513,01/05/2013,C,UK POWER NETWORKS (OPERATIONS)
192,,,Street Lighting Replacement Pr          ,CE068FA,New Construction Conversion and Renovation,0,B6,Site Works - Other Costs,644,01/05/2013,C,UK POWER NETWORKS (OPERATIONS)
193,,,Street Lighting Replacement Pr          ,CE068FA,New Construction Conversion and Renovation,0,B6,Site Works - Other Costs,644,08/05/2013,C,UK POWER NETWORKS (OPERATIONS)
194,,,Street Lighting Replacement Pr          ,CE068FA,New Construction Conversion and Renovation,0,B6,Site Works - Other Costs,644,01/05/2013,C,UK POWER NETWORKS (OPERATIONS)
195,,,Street Lighting Replacement Pr          ,CE068FA,New Construction Conversion and Renovation,0,B6,Site Works - Other Costs,644,01/05/2013,C,UK POWER NETWORKS (OPERATIONS)
196,,,Street Lighting Replacement Pr          ,CE068FA,New Construction Conversion and Renovation,0,B6,Site Works - Other Costs,644,01/05/2013,C,UK POWER NETWORKS (OPERATIONS)
197,,,Street Lighting Replacement Pr          ,CE068FA,New Construction Conversion and Renovation,0,B6,Site Works - Other Costs,644,01/05/2013,C,UK POWER NETWORKS (OPERATIONS)
198,,,Street Lighting Replacement Pr          ,CE068FA,New Construction Conversion and Renovation,0,B6,Site Works - Other Costs,"1,054.00",07/05/2013,C,UK POWER NETWORKS (OPERATIONS)
199,,,Street Lighting Replacement Pr          ,CE068FA,New Construction Conversion and Renovation,0,B6,Site Works - Other Costs,"1,288.00",01/05/2013,C,UK POWER NETWORKS (OPERATIONS)
200,,,Minor traffic/danger reduction          ,CE073FA,New Construction Conversion and Renovation,0,B4,Site Works - Contractor,519.14,29/04/2013,C,FM CONWAY LTD                 
201,,,Replacement of Fleet Vehicles           ,CE082EA,Vehicles Plant Equipment and Machinery,0,D1,Vehicles,"17,150.00",02/05/2013,C,MEXMAST LTD                   
202,,,B574 Town Centre transport imp          ,CE085FJ,New Construction Conversion and Renovation,0,B3,Design and Supervision - Other Expenses,889.94,31/01/2013,C,NETWORK RAIL INFRASTRUCTURE LT
203,,,B544 Wimbledon Station Access           ,CE085FL,New Construction Conversion and Renovation,0,B6,Site Works - Other Costs,"10,000.00",17/05/2013,C,LONDON BUS SERVICES LIMITED   
204,,,Accesibility Programme                  ,CE104FD,New Construction Conversion and Renovation,0,B4,Site Works - Contractor,514.97,29/04/2013,C,FM CONWAY LTD                 
205,,,Cycle access/parking                    ,CE104FG,New Construction Conversion and Renovation,0,B4,Site Works - Contractor,"10,000.00",02/05/2013,C,FM CONWAY LTD                 
206,,,School & Road Safety Campaigns          ,CE104RC,Other Capital Expenditure,0,E4,TFL Other,600,07/05/2013,C,BLAKES DRIVER TRAINING        
207,,,School & Road Safety Campaigns          ,CE104RC,Other Capital Expenditure,0,E4,TFL Other,"1,875.00",14/05/2013,C,BIKEWIZE MOTORCYCLE TRAINING  
208,,,Car Clubs Expansion                     ,CE104RL,New Construction Conversion and Renovation,0,B4,Site Works - Contractor,790.02,29/04/2013,C,FM CONWAY LTD                 
209,,,Commonside West                         ,CE105FG,New Construction Conversion and Renovation,0,B4,Site Works - Contractor,"4,794.14",07/05/2013,C,FM CONWAY LTD                 
210,,,Commonside West                         ,CE105FG,New Construction Conversion and Renovation,0,B4,Site Works - Contractor,"10,012.35",07/05/2013,C,FM CONWAY LTD                 
211,,,Marathon Trust BMX Track                ,CE114SA,New Construction Conversion and Renovation,0,B4,Site Works - Contractor,"2,074.00",30/04/2013,C,PHASE 2 ELECTRICAL ENGINEERS  
212,,,Improved parking- shop parades          ,CE132FA,New Construction Conversion and Renovation,0,B4,Site Works - Contractor,881.73,29/04/2013,C,FM CONWAY LTD                 
213,,,Improved parking- shop parades          ,CE132FA,New Construction Conversion and Renovation,0,B4,Site Works - Contractor,"1,322.18",22/05/2013,C,FM CONWAY LTD                 
214,,,Improved parking- shop parades          ,CE132FA,New Construction Conversion and Renovation,0,B4,Site Works - Contractor,"1,687.00",22/05/2013,C,FM CONWAY LTD                 
215,,,Improved parking- shop parades          ,CE132FA,New Construction Conversion and Renovation,0,B4,Site Works - Contractor,"8,206.01",29/04/2013,C,FM CONWAY LTD                 
216,,,Improved parking- shop parades          ,CE132FA,New Construction Conversion and Renovation,0,C3,Public Notices,873.36,27/04/2013,C,NEWSQUEST (LONDON)LTD         
217,,,New Traffic Schemes                     ,CE135SA,New Construction Conversion and Renovation,0,B6,Site Works - Other Costs,"9,621.52",25/03/2013,C,TRANSPORT FOR LONDON          
218,,,Civic Centre refurbishment              ,CF001AB,Vehicles Plant Equipment and Machinery,0,D3,Equipment,"9,921.00",13/10/2012,C,EUROVIA INFRASTRUCTURE LTD    
219,,,Civic C-Fire Alarm Panel                ,CF001AF,New Construction Conversion and Renovation,0,B4,Site Works - Contractor,"2,091.69",30/04/2013,C,FIRST CHOICE FACILITIES PLC   
220,,,Civic Centre Windows                    ,CF001AK,New Construction Conversion and Renovation,0,B1,Design and Supervision - Consultants Fee,"1,165.00",04/04/2013,C,ACCON UK LTD                  
221,,,Civic Centre Windows                    ,CF001AK,New Construction Conversion and Renovation,0,B4,Site Works - Contractor,"1,414.00",09/05/2013,C,COBSEN-DAVIES ROOFING (LOND)LT
222,,,Civic Centre Windows                    ,CF001AK,New Construction Conversion and Renovation,0,B4,Site Works - Contractor,"1,600.00",08/05/2013,C,SAFEGUARD PEST CONTROL LTD    
223,,,Civic Centre Windows                    ,CF001AK,New Construction Conversion and Renovation,0,B4,Site Works - Contractor,"1,620.00",25/04/2013,C,EUROPEAN ASBESTOS SERVICES    
224,,,Civic Centre Windows                    ,CF001AK,Vehicles Plant Equipment and Machinery,0,D5,Software,735,22/04/2013,C,PRIORITY RISK LTD             
225,,,Civic Centre Windows                    ,CF001AK,Vehicles Plant Equipment and Machinery,0,D5,Software,"1,820.00",30/04/2013,C,FORMARK SCAFFOLDING LTD       
226,,,Aragon expansion                        ,CS008AA,New Construction Conversion and Renovation,0,B1,Design and Supervision - Consultants Fee,"13,634.32",22/04/2013,C,EC HARRIS LLP                 
227,,,St Mary's expansion                     ,CS008RA,New Construction Conversion and Renovation,0,B1,Design and Supervision - Consultants Fee,"1,126.61",09/05/2013,C,ATKINS LIMITED                
228,,,St Mary's expansion                     ,CS008RA,New Construction Conversion and Renovation,0,B1,Design and Supervision - Consultants Fee,"4,264.95",09/05/2013,C,ATKINS LIMITED                
229,,,St Mary's expansion                     ,CS008RA,New Construction Conversion and Renovation,0,B2,Design and Supervision - Site Surveys,"1,695.00",13/05/2013,C,ELM SITE SERVICES             
230,,,St Mary's expansion                     ,CS008RA,New Construction Conversion and Renovation,0,B2,Design and Supervision - Site Surveys,"1,795.00",20/05/2013,C,ROBSON LIDDLE LTD             
231,,,Pupil Growth - Unallocated              ,CS008SA,New Construction Conversion and Renovation,0,B5,Site Works - Suppliers,"9,972.46",20/02/2013,C,UNIQUE WINDOWS (LONDON) LTD   
232,,,All Saints/ South Wim YCC exp           ,CS008SB,New Construction Conversion and Renovation,0,B4,Site Works - Contractor,"61,902.85",17/05/2013,C,GEE CONSTRUCTION LTD          
233,,,All Saints/ South Wim YCC exp           ,CS008SB,New Construction Conversion and Renovation,0,B5,Site Works - Suppliers,"4,971.90",26/03/2013,C,AQUARIUS BLINDS               
234,,,Hollymount Permanent Expansion          ,CS011AA,New Construction Conversion and Renovation,0,B2,Design and Supervision - Site Surveys,"1,162.50",09/05/2013,C,JENKINS & POTTER LTD          
235,,,Hollymount Permanent Expansion          ,CS011AA,New Construction Conversion and Renovation,0,B4,Site Works - Contractor,"56,000.00",23/04/2013,C,R DURTNELL & SONS LTD         
236,,,Garden PCP                              ,CS013AA,New Construction Conversion and Renovation,0,B1,Design and Supervision - Consultants Fee,"24,082.24",22/04/2013,C,EC HARRIS LLP                 
237,,,Garden PCP                              ,CS013AA,New Construction Conversion and Renovation,0,B4,Site Works - Contractor,"73,782.07",30/04/2013,C,R DURTNELL & SONS LTD         
238,,,Gorringe Park expansion                 ,CS018AB,New Construction Conversion and Renovation,0,B4,Site Works - Contractor,"140,000.00",07/05/2013,C,GEE CONSTRUCTION LTD          
239,,,Gorringe Park expansion                 ,CS018AB,New Construction Conversion and Renovation,0,B6,Site Works - Other Costs,"1,940.00",30/04/2012,C,EDE'S (U.K.) LTD              
240,,,Hillcross School Expansion              ,CS020AC,New Construction Conversion and Renovation,0,B1,Design and Supervision - Consultants Fee,925,30/04/2013,C,STACE LLP                     
241,,,Hillcross School Expansion              ,CS020AC,New Construction Conversion and Renovation,0,B1,Design and Supervision - Consultants Fee,"3,200.00",30/04/2013,C,STACE LLP                     
242,,,Hillcross School Expansion              ,CS020AC,New Construction Conversion and Renovation,0,B4,Site Works - Contractor,"1,702.00",06/05/2013,C,MOY CONSTRUCTION CO LTD       
243,,,Merton Abbey Temp Accomodation          ,CS022AC,New Construction Conversion and Renovation,0,B1,Design and Supervision - Consultants Fee,750,30/04/2013,C,STACE LLP                     
244,,,Merton Abbey Temp Accomodation          ,CS022AC,New Construction Conversion and Renovation,0,B1,Design and Supervision - Consultants Fee,920,30/04/2013,C,EIGHT ASSOCIATES              
245,,,Merton Abbey Temp Accomodation          ,CS022AC,New Construction Conversion and Renovation,0,B1,Design and Supervision - Consultants Fee,"21,435.00",28/02/2013,C,PELLINGS LLP                  
246,,,Merton Abbey Temp Accomodation          ,CS022AC,New Construction Conversion and Renovation,0,B2,Design and Supervision - Site Surveys,580,24/05/2013,C,JMP CONSULTANTS LTD           
247,,,Merton Abbey Temp Accomodation          ,CS022AC,New Construction Conversion and Renovation,0,B2,Design and Supervision - Site Surveys,"2,007.40",30/04/2013,C,KEEGANS LIMITED               
248,,,Pelham School Expansion                 ,CS023AC,New Construction Conversion and Renovation,0,B1,Design and Supervision - Consultants Fee,810,30/04/2013,C,EIGHT ASSOCIATES              
249,,,Pelham School Expansion                 ,CS023AC,New Construction Conversion and Renovation,0,B1,Design and Supervision - Consultants Fee,"1,025.00",30/04/2013,C,STACE LLP                     
250,,,Pelham School Expansion                 ,CS023AC,New Construction Conversion and Renovation,0,B1,Design and Supervision - Consultants Fee,"3,500.00",30/04/2013,C,STACE LLP                     
251,,,Pelham School Expansion                 ,CS023AC,New Construction Conversion and Renovation,0,B2,Design and Supervision - Site Surveys,"2,184.00",31/03/2013,C,RSK ENVIRONMENT LTD           
252,,,Dundonald expansion                     ,CS031AC,New Construction Conversion and Renovation,0,B4,Site Works - Contractor,"50,000.00",11/04/2013,C,GEE CONSTRUCTION LTD          
253,,,Poplar Permanent Expansion              ,CS034AB,New Construction Conversion and Renovation,0,B1,Design and Supervision - Consultants Fee,"1,000.00",30/04/2013,C,STACE LLP                     
254,,,Poplar Permanent Expansion              ,CS034AB,New Construction Conversion and Renovation,0,B1,Design and Supervision - Consultants Fee,"27,475.00",28/02/2013,C,PELLINGS LLP                  
255,,,Poplar Permanent Expansion              ,CS034AB,New Construction Conversion and Renovation,0,B2,Design and Supervision - Site Surveys,"2,043.76",30/04/2013,C,KEEGANS LIMITED               
256,,,Holy Trinity Expansion                  ,CS044RA,New Construction Conversion and Renovation,0,B4,Site Works - Contractor,656.78,02/05/2013,C,R DURTNELL & SONS LTD         
257,,,Holy Trinity Expansion                  ,CS044RA,New Construction Conversion and Renovation,0,B4,Site Works - Contractor,"47,567.16",21/05/2013,C,R DURTNELL & SONS LTD         
258,,,Singlegate expansion                    ,CS049AA,New Construction Conversion and Renovation,0,B4,Site Works - Contractor,"9,596.00",06/05/2013,C,MOY CONSTRUCTION CO LTD       
259,,,Wimbledon Park expansion                ,CS050AA,New Construction Conversion and Renovation,0,B1,Design and Supervision - Consultants Fee,"1,062.00",30/04/2013,C,SYNERGY CPC LLP               
260,,,Wimbledon Park expansion                ,CS050AA,New Construction Conversion and Renovation,0,B2,Design and Supervision - Site Surveys,"1,450.00",24/04/2013,C,REC ASBESTOS SOUTH            
261,,,Wimbledon Park expansion                ,CS050AA,New Construction Conversion and Renovation,0,B4,Site Works - Contractor,"201,157.58",08/05/2013,C,GEE CONSTRUCTION LTD          
262,,,Secondary School expansion              ,CS085SA,New Construction Conversion and Renovation,0,B1,Design and Supervision - Consultants Fee,"14,550.00",23/05/2013,C,ATKINS LIMITED                
263,,,IT Equipment                            ,CT006EA,Vehicles Plant Equipment and Machinery,0,D3,Equipment,720,02/05/2013,C,VIGLEN LIMITED                
264,,,IT Equipment                            ,CT006EA,Vehicles Plant Equipment and Machinery,0,D3,Equipment,792,15/03/2013,C,VIGLEN LIMITED                
265,,,IT Equipment                            ,CT006EA,Vehicles Plant Equipment and Machinery,0,D3,Equipment,792,02/05/2013,C,VIGLEN LIMITED                
266,,,IT Equipment                            ,CT006EA,Vehicles Plant Equipment and Machinery,0,D3,Equipment,"1,800.00",15/03/2013,C,VIGLEN LIMITED                
267,,,IT Equipment                            ,CT006EA,Vehicles Plant Equipment and Machinery,0,D3,Equipment,"1,900.00",07/05/2013,C,COMPUTERLAND                  
268,,,IT Equipment                            ,CT006EA,Vehicles Plant Equipment and Machinery,0,D3,Equipment,"2,016.00",15/03/2013,C,VIGLEN LIMITED                
269,,,IT Equipment                            ,CT006EA,Vehicles Plant Equipment and Machinery,0,D3,Equipment,"2,088.00",02/05/2013,C,VIGLEN LIMITED                
270,,,IT Equipment                            ,CT006EA,Vehicles Plant Equipment and Machinery,0,D3,Equipment,"2,160.00",02/05/2013,C,VIGLEN LIMITED                
271,,,IT Equipment                            ,CT006EA,Vehicles Plant Equipment and Machinery,0,D3,Equipment,"2,940.30",02/05/2013,C,VIGLEN LIMITED                
272,,,IT Equipment                            ,CT006EA,Vehicles Plant Equipment and Machinery,0,D3,Equipment,"3,234.33",02/05/2013,C,VIGLEN LIMITED                
273,,,IT Equipment                            ,CT006EA,Vehicles Plant Equipment and Machinery,0,D3,Equipment,"3,234.33",15/03/2013,C,VIGLEN LIMITED                
274,,,IT Equipment                            ,CT006EA,Vehicles Plant Equipment and Machinery,0,D3,Equipment,"7,200.00",07/05/2013,C,TOTAL COMPUTER NETWORKS       
275,,,IT Equipment                            ,CT006EA,Vehicles Plant Equipment and Machinery,0,D3,Equipment,"7,200.00",22/05/2013,C,VIGLEN LIMITED                
276,,,IT Equipment                            ,CT006EA,Vehicles Plant Equipment and Machinery,0,D3,Equipment,"7,350.75",15/03/2013,C,VIGLEN LIMITED                
277,,,IT Equipment                            ,CT006EA,Vehicles Plant Equipment and Machinery,0,D3,Equipment,"7,350.75",15/03/2013,C,VIGLEN LIMITED                
278,,,IT Equipment                            ,CT006EA,Vehicles Plant Equipment and Machinery,0,D3,Equipment,"8,526.87",02/05/2013,C,VIGLEN LIMITED                
279,,,IT Equipment                            ,CT006EA,Vehicles Plant Equipment and Machinery,0,D3,Equipment,"8,820.90",02/05/2013,C,VIGLEN LIMITED                
280,,,IT Equipment                            ,CT006EA,Vehicles Plant Equipment and Machinery,0,D3,Equipment,"11,667.75",17/04/2013,C,SPECIALIST COMPUTER CENT. PLC 
281,,,IT Equipment                            ,CT006EA,Vehicles Plant Equipment and Machinery,0,D3,Equipment,"32,600.00",07/05/2013,C,COMPUTERLAND                  
282,Central Services,Council tax collection,Local Taxation Services,E02100,Supplies & Services           ,Services                      ,DF03,Consultants,"1,000.00",01/04/2013,R,GEMINI CONSULTANTS            
283,Central Services,Council tax collection,Local Taxation Services,E02100,Supplies & Services           ,Services                      ,DF11,Counsel's fees,920,22/05/2013,R,WELBECK LAW LLP               
284,Central Services,Council tax collection,Local Taxation Services,E02100,Supplies & Services           ,Comms and Computing           ,DG09,Computer Purchases - Misc,"1,750.00",09/05/2013,R,CIVICA UK LIMITED             
285,Central Services,Council tax collection,Local Taxation Services,E02100,Supplies & Services           ,Comms and Computing           ,DG09,Computer Purchases - Misc,"4,495.15",19/04/2013,R,CIVICA UK LIMITED             
286,Central Services,Council tax collection,Local Taxation Services,E02100,Support Services,Corporate Services,GB16,Legal,920,02/05/2013,R,WELBECK LAW LLP               
287,Central Services,Council tax collection,Local Taxation Bailiffs,E02101,Supplies & Services           ,Clothing Unfrms Laundry       ,DC02,Clothing & Uniforms,"4,000.00",21/05/2013,R,YOUR IMAGE LTD                
288,Central Services,Council tax collection,Local Taxation Bailiffs,E02101,Supplies & Services           ,Services                      ,DF18,Bailiffs' fees,594.33,01/05/2013,R,GREASBY'S AUCTION ROOMS       
289,Central Services,SupS Payroll,Payroll,E02140,Third Party Payments          ,Private Contractors           ,EH10,Contract Payments,"6,886.96",21/05/2013,R,LONDON BOROUGH OF SUTTON      
290,Central Services,SupS Payroll,Payroll,E02140,Third Party Payments          ,Private Contractors           ,EH10,Contract Payments,"12,057.87",17/05/2013,R,LONDON BOROUGH OF SUTTON      
291,Central Services,SupS Facilities,Post Room,E02220,Supplies & Services           ,Comms and Computing           ,DG04,Postage - General,530,30/04/2013,R,TRAVELCARE                    
292,Central Services,SupS Facilities,Security Services,E02221,Employees                     ,Direct Employee Expenses      ,AA17,Agency Staff & Casual Paymts,"1,872.00",02/04/2013,R,REDACTED
293,Central Services,SupS Facilities,Security Services,E02221,Employees                     ,Direct Employee Expenses      ,AA17,Agency Staff & Casual Paymts,"3,065.40",01/05/2013,R,REDACTED
294,Central Services,SupS Facilities,Civic Centre,E02222,Premises Related Expenditure  ,RepairsAlterations&MtceOfBldgs,BA29,Build Maint Mgt Fees,639.7,30/03/2013,R,EDE'S (U.K.) LTD              
295,Central Services,SupS Facilities,Civic Centre,E02222,Premises Related Expenditure  ,RepairsAlterations&MtceOfBldgs,BA29,Build Maint Mgt Fees,764.76,17/05/2013,R,UNIQUE OFFICE SOLUTIONS LTD   
296,Central Services,SupS Facilities,Civic Centre,E02222,Premises Related Expenditure  ,Cleaning and Domestic Supplies,BH01,Cleaning Materials,504,17/04/2013,R,GREENHAM TRADING LTD          
297,Central Services,SupS Facilities,Civic Centre,E02222,Premises Related Expenditure  ,Cleaning and Domestic Supplies,BH03,Cleaning Services,819.47,01/05/2013,R,BIRKIN CLEANING SERVICES LTD  
298,Central Services,SupS Facilities,Civic Centre,E02222,Premises Related Expenditure  ,Cleaning and Domestic Supplies,BH03,Cleaning Services,"1,199.41",01/05/2013,R,BIRKIN CLEANING SERVICES LTD  
299,Central Services,SupS Facilities,Civic Centre,E02222,Premises Related Expenditure  ,Cleaning and Domestic Supplies,BH03,Cleaning Services,"1,215.98",01/05/2013,R,BIRKIN CLEANING SERVICES LTD  
300,Central Services,SupS Facilities,Civic Centre,E02222,Premises Related Expenditure  ,Cleaning and Domestic Supplies,BH03,Cleaning Services,"1,395.29",01/05/2013,R,BIRKIN CLEANING SERVICES LTD  
301,Central Services,SupS Facilities,Civic Centre,E02222,Premises Related Expenditure  ,Cleaning and Domestic Supplies,BH03,Cleaning Services,"1,464.69",01/05/2013,R,BIRKIN CLEANING SERVICES LTD  
302,Central Services,SupS Facilities,Civic Centre,E02222,Premises Related Expenditure  ,Cleaning and Domestic Supplies,BH03,Cleaning Services,"1,511.31",01/05/2013,R,BIRKIN CLEANING SERVICES LTD  
303,Central Services,SupS Facilities,Civic Centre,E02222,Premises Related Expenditure  ,Cleaning and Domestic Supplies,BH03,Cleaning Services,"1,642.40",01/05/2013,R,BIRKIN CLEANING SERVICES LTD  
304,Central Services,SupS Facilities,Civic Centre,E02222,Premises Related Expenditure  ,Cleaning and Domestic Supplies,BH03,Cleaning Services,"3,035.93",01/05/2013,R,BIRKIN CLEANING SERVICES LTD  
305,Central Services,SupS Facilities,Civic Centre,E02222,Premises Related Expenditure  ,Cleaning and Domestic Supplies,BH03,Cleaning Services,"6,473.18",01/05/2013,R,BIRKIN CLEANING SERVICES LTD  
306,Central Services,SupS Facilities,Civic Centre,E02222,Supplies & Services           ,Equip Furniture/Materials     ,DA01,Equipment - R & M,"1,547.50",25/04/2013,R,UNIQUE OFFICE SOLUTIONS LTD   
307,Central Services,SupS Facilities,Civic Centre,E02222,Third Party Payments          ,Private Contractors           ,EH02,Miscellaneous Hired Services,"2,391.75",17/04/2013,R,PHS GROUP PLC                 
308,Central Services,SupS Facilities,Civic Centre,E02222,Third Party Payments          ,Private Contractors           ,EH10,Contract Payments,"2,406.60",26/04/2013,R,ISS COLLECTIONS LTD           
309,Central Services,SupS Facilities,Morden Park House,E02229,Third Party Payments          ,Private Contractors           ,EH02,Miscellaneous Hired Services,827.73,17/04/2013,R,PHS GROUP PLC                 
310,Central Services,SupS Facilities,Facilities,E02231,Premises Related Expenditure  ,RepairsAlterations&MtceOfBldgs,BA06,Repairs & Maintenance General,800,12/04/2013,R,SITA UK LTD                   
311,Central Services,SupS Facilities,Facilities,E02231,Premises Related Expenditure  ,RepairsAlterations&MtceOfBldgs,BA84,Asbestos,920,31/03/2013,R,LUCION ENVIRONMENTAL LTD      
312,Central Services,SupS Facilities,Facilities,E02231,Premises Related Expenditure  ,RepairsAlterations&MtceOfBldgs,BA84,Asbestos,"3,438.00",29/04/2013,R,LUCION ENVIRONMENTAL LTD      
313,Central Services,SupS Facilities,Facilities,E02231,Premises Related Expenditure  ,RepairsAlterations&MtceOfBldgs,BA84,Asbestos,"4,128.00",26/03/2013,R,LUCION ENVIRONMENTAL LTD      
314,Central Services,SupS Facilities,FM External Fees,E02239,Premises Related Expenditure  ,RepairsAlterations&MtceOfBldgs,BA01,DDM - General Building,"1,360.95",10/04/2013,R,M&S CONTRACTING SERVICES LTD  
315,Central Services,SupS Facilities,Corporate Services Buildings,E02240,Premises Related Expenditure  ,RepairsAlterations&MtceOfBldgs,BA01,DDM - General Building,518.65,02/04/2013,R,SALTASH ENTERPRISES LTD       
316,Central Services,SupS Facilities,Corporate Services Buildings,E02240,Premises Related Expenditure  ,RepairsAlterations&MtceOfBldgs,BA05,DDM - Electrical,"1,700.00",30/04/2013,R,FIRST CHOICE FACILITIES PLC   
317,Childrens & Education Services,Strategic Management,CSF Buildings,E02256,Premises Related Expenditure  ,RepairsAlterations&MtceOfBldgs,BA01,DDM - General Building,"3,257.82",02/04/2013,R,SALTASH ENTERPRISES LTD       
318,Adult Social Care,PS u65 Day Care,C & H Buildings,E02345,Premises Related Expenditure  ,RepairsAlterations&MtceOfBldgs,BA01,DDM - General Building,534.14,17/05/2013,R,COFELY LIMITED                
319,Adult Social Care,PS u65 Day Care,C & H Buildings,E02345,Premises Related Expenditure  ,RepairsAlterations&MtceOfBldgs,BA01,DDM - General Building,597.75,02/04/2013,R,SALTASH ENTERPRISES LTD       
320,Adult Social Care,PS u65 Day Care,C & H Buildings,E02345,Premises Related Expenditure  ,RepairsAlterations&MtceOfBldgs,BA01,DDM - General Building,818.83,14/12/2012,R,COFELY LIMITED                
321,Adult Social Care,PS u65 Day Care,C & H Buildings,E02345,Premises Related Expenditure  ,RepairsAlterations&MtceOfBldgs,BA01,DDM - General Building,"1,578.03",05/07/2012,R,COFELY LIMITED                
322,Cultural Env Reg&Plan Services,Parks & Open Spaces,Leisure Buildings,E02350,Premises Related Expenditure  ,RepairsAlterations&MtceOfBldgs,BA05,DDM - Electrical,862.79,23/04/2013,R,COFELY LIMITED                
323,Central Services,SupS DOF,AD RESOURCES,E04061,Supplies & Services           ,Services                      ,DF03,Consultants,"8,740.00",01/04/2013,R,PUBLIC SECTOR CONSULTANTS     
324,Central Services,SupS DOF,AD RESOURCES,E04061,Supplies & Services           ,Services                      ,DF03,Consultants,"9,200.00",01/05/2013,R,PUBLIC SECTOR CONSULTANTS     
325,Central Services,SupS Audit and Fraud,Internal Audit&Service Review,E05101,Supplies & Services           ,Services                      ,DF58,Audit Fee,"1,260.00",07/05/2013,R,GRANT THORNTON UK LLP         
326,Central Services,SupS Audit and Fraud,Internal Audit&Service Review,E05101,Supplies & Services           ,Services                      ,DF58,Audit Fee,"1,700.00",20/04/2013,R,RSM TENON                     
327,Housing Services,Fraud Investigation,Benefits Investigation Section,E05103,Supplies & Services           ,Services                      ,DF09,Miscellaneous Fees,"1,150.00",29/04/2013,R,FULCRUM DATA FORENSICS LTD    
328,Central Services,SupS  Risk and Insurance,Insurance Premiums & Funding,E05161,Supplies & Services           ,Services                      ,DF74,Insurance Premiums,"9,540.00",18/04/2013,R,JLT SPECIALTY LIMITED         
329,Central Services,SupS  Risk and Insurance,Insurance Premiums & Funding,E05161,Supplies & Services           ,Services                      ,DF74,Insurance Premiums,"23,186.21",11/04/2013,R,ZURICH INSURANCE COMPANY      
330,Central Services,SupS  Risk and Insurance,Insurance Premiums & Funding,E05161,Supplies & Services           ,Services                      ,DF74,Insurance Premiums,"73,712.11",11/04/2013,R,ZURICH INSURANCE COMPANY      
331,Central Services,SupS  Risk and Insurance,Insurance Premiums & Funding,E05161,Supplies & Services           ,Services                      ,DF74,Insurance Premiums,"115,010.00",15/04/2013,R,JLT SPECIALTY LIMITED         
332,Central Services,SupS Corporate Finance,Corporate Accountancy,E06209,Employees                     ,Direct Employee Expenses      ,AA96,SALARY SACRIFICE (TEACHERS),833.33,22/04/2013,R,F.W.EVANS CYCLES (UK) LTD.    
333,Central Services,SupS Corporate Finance,Corporate Accountancy,E06209,Supplies & Services           ,Prntng Stnry Gen Off Exp      ,DE02,General Publications,516,26/04/2013,R,CIPFA                         
334,Central Services,SupS Strategic Finance,Business Planning,E06221,Employees                     ,Indirect Employee Expenses    ,AB57,External Training Costs,"1,200.00",15/05/2013,R,COVALENT SOFTWARE             
335,Central Services,SupS Strategic Finance,Business Planning,E06221,Supplies & Services           ,Comms and Computing           ,DG50,Other IT Expenditure,"5,750.00",15/05/2013,R,COVALENT SOFTWARE             
336,Central Services,GENERATED ACCOUNT,Parking Cash Collect'n Contrct,E06225,Third Party Payments          ,Private Contractors           ,EH02,Miscellaneous Hired Services,"11,057.40",31/03/2013,R,BANKING AUTOMATION LTD        
337,Central Services,GENERATED ACCOUNT,Establishments' Cash Collect'n,E06226,Third Party Payments          ,Private Contractors           ,EH02,Miscellaneous Hired Services,530.4,30/04/2013,R,LOOMIS UK LTD                 
338,Central Services,GENERATED ACCOUNT,Establishments' Cash Collect'n,E06226,Third Party Payments          ,Private Contractors           ,EH02,Miscellaneous Hired Services,608.4,30/04/2013,R,LOOMIS UK LTD                 
339,Central Services,GENERATED ACCOUNT,Establishments' Cash Collect'n,E06226,Third Party Payments          ,Private Contractors           ,EH02,Miscellaneous Hired Services,"3,176.87",15/02/2013,R,LOOMIS UK LTD                 
340,Central Services,GENERATED ACCOUNT,Establishments' Cash Collect'n,E06226,Third Party Payments          ,Private Contractors           ,EH02,Miscellaneous Hired Services,"3,176.87",15/03/2013,R,LOOMIS UK LTD                 
341,Central Services,GENERATED ACCOUNT,Establishments' Cash Collect'n,E06226,Third Party Payments          ,Private Contractors           ,EH02,Miscellaneous Hired Services,"3,176.87",15/01/2013,R,LOOMIS UK LTD                 
342,Central Services,GENERATED ACCOUNT,Establishments' Cash Collect'n,E06226,Third Party Payments          ,Private Contractors           ,EH02,Miscellaneous Hired Services,"3,176.87",15/04/2013,R,LOOMIS UK LTD                 
343,Central Services,GENERATED ACCOUNT,Establishments' Cash Collect'n,E06226,Third Party Payments          ,Private Contractors           ,EH02,Miscellaneous Hired Services,"3,299.66",15/05/2013,R,LOOMIS UK LTD                 
344,Central Services,SupS DOF,Service Accountancy,E06227,Employees                     ,Direct Employee Expenses      ,AA17,Agency Staff & Casual Paymts,"5,520.00",23/04/2013,R,REDACTED
345,Central Services,SupS DOF,Service Accountancy,E06227,Transfer Payments             ,Housing Benefits              ,FA50,Burial and Cremation,"1,145.50",08/05/2013,R,F.W. PAINE                    
346,Central Services,SupS DOF,Service Accountancy,E06227,Transfer Payments             ,Housing Benefits              ,FA50,Burial and Cremation,"1,272.50",11/04/2013,R,F.W. PAINE                    
347,Central Services,SupS Legal,AD CORPORATE GOVERNANCE,E10279,Employees                     ,Indirect Employee Expenses    ,AB57,External Training Costs,675,01/05/2013,R,LONDON AUDIT GROUP            
348,Central Services,SupS Legal,Legal Services,E10282,Supplies & Services           ,Services                      ,DF28,Court Fees,800,31/05/2013,R,REDACTED
349,Central Services,SupS Legal,Legal Services,E10282,Supplies & Services           ,Services                      ,DF28,Court Fees,"1,200.00",30/04/2013,R,REDACTED
350,Central Services,SupS Legal,Legal Services,E10282,Supplies & Services           ,Services                      ,DF28,Court Fees,"2,225.00",02/05/2013,R,REDACTED
351,Central Services,SupS Legal,Legal Services,E10282,Supplies & Services           ,Services                      ,DF28,Court Fees,"2,400.00",02/05/2013,R,REDACTED
352,Central Services,SupS Legal,Legal Services,E10282,Supplies & Services           ,Services                      ,DF28,Court Fees,"4,620.00",31/05/2013,R,REDACTED
353,Central Services,SupS Legal,Legal Services,E10282,Supplies & Services           ,Services                      ,DF28,Court Fees,"4,765.00",02/05/2013,R,REDACTED
354,Central Services,SupS Legal,Legal Services,E10282,Supplies & Services           ,Services                      ,DF28,Court Fees,"9,445.00",31/05/2013,R,REDACTED
355,Central Services,SupS Legal,Shared Legal Service,E10288,Supplies & Services           ,Services                      ,DF09,Miscellaneous Fees,874.55,30/04/2013,R,WINCANTON RECORDS MANAGEMENT  
356,Central Services,SupS Legal,Shared Legal Service,E10288,Supplies & Services           ,Comms and Computing           ,DG50,Other IT Expenditure,"6,714.00",06/03/2013,R,VIRGIN MEDIA PAYMENTS LTD     
357,Central Services,SupS Legal,Richmond Legal,E10289,Supplies & Services           ,Services                      ,DF09,Miscellaneous Fees,"25,647.00",20/05/2013,R,REDACTED
358,Central Services,SupS Legal,Richmond Legal,E10289,Supplies & Services           ,Services                      ,DF11,Counsel's fees,"-9,382.00",15/08/2012,R,REDACTED
359,Central Services,SupS Legal,Richmond Legal,E10289,Supplies & Services           ,Services                      ,DF11,Counsel's fees,750,09/05/2013,R,REDACTED
360,Central Services,SupS Legal,Richmond Legal,E10289,Supplies & Services           ,Services                      ,DF11,Counsel's fees,750,29/04/2013,R,REDACTED
361,Central Services,SupS Legal,Richmond Legal,E10289,Supplies & Services           ,Services                      ,DF11,Counsel's fees,"1,000.00",26/04/2013,R,REDACTED
362,Central Services,SupS Legal,Richmond Legal,E10289,Supplies & Services           ,Services                      ,DF14,Doctors and other fees,702,13/03/2013,R,REDACTED
363,Central Services,SupS Legal,Richmond Legal,E10289,Supplies & Services           ,Services                      ,DF95,Services from Provider,660,11/04/2013,R,SHARPE PRITCHARD SOLICITORS   
364,Central Services,SupS Legal,Richmond Legal,E10289,Supplies & Services           ,Services                      ,DF95,Services from Provider,"1,098.00",31/01/2013,R,SHARPE PRITCHARD SOLICITORS   
365,Central Services,SupS Legal,Richmond Legal,E10289,Supplies & Services           ,Services                      ,DF95,Services from Provider,"1,995.00",30/04/2013,R,SHARPE PRITCHARD SOLICITORS   
366,Central Services,SupS Legal,Richmond Legal,E10289,Supplies & Services           ,Services                      ,DF95,Services from Provider,"2,090.30",22/04/2013,R,REDACTED
367,Central Services,SupS Legal,Richmond Legal,E10289,Supplies & Services           ,Services                      ,DF95,Services from Provider,"6,615.00",15/03/2013,R,JAMMA UMOJA LTD               
368,Central Services,SupS Legal,Richmond Legal,E10289,Supplies & Services           ,Services                      ,DF95,Services from Provider,"7,056.00",22/03/2013,R,JAMMA UMOJA LTD               
369,Central Services,SupS Payroll,Coroners Courts,E11300,Third Party Payments          ,Joint Authorities             ,EC11,SW Inner London Coroners Crt C,"19,380.33",13/05/2013,R,CITY OF WESTMINSTER           
370,Central Services,SupS Payroll,Coroners Courts,E11300,Third Party Payments          ,Joint Authorities             ,EC11,SW Inner London Coroners Crt C,"61,816.00",13/05/2013,R,CITY OF WESTMINSTER           
371,Central Services,SupS IT,AD Business Improvement,E14358,Employees                     ,Direct Employee Expenses      ,AA17,Agency Staff & Casual Paymts,"1,420.00",27/03/2013,R,ODGERS RAY & BERNDTSON INTERIM
372,Central Services,SupS IT,AD Business Improvement,E14358,Employees                     ,Direct Employee Expenses      ,AA17,Agency Staff & Casual Paymts,"2,680.00",30/04/2013,R,ODGERS RAY & BERNDTSON INTERIM
373,Central Services,SupS IT,AD Business Improvement,E14358,Employees                     ,Direct Employee Expenses      ,AA17,Agency Staff & Casual Paymts,"5,280.00",27/03/2013,R,ODGERS RAY & BERNDTSON INTERIM
374,Central Services,SupS IT,AD Business Improvement,E14358,Supplies & Services           ,Comms and Computing           ,DG08,Computer Hardware,"-1,009.80",25/04/2013,R,SPECIALIST COMPUTER CENT. PLC 
375,Central Services,SupS IT,AD Business Improvement,E14358,Supplies & Services           ,Comms and Computing           ,DG08,Computer Hardware,"1,188.00",26/03/2013,R,SPECIALIST COMPUTER CENT. PLC 
376,Central Services,SupS IT,BI IT Projects,E14360,Employees                     ,Direct Employee Expenses      ,AA17,Agency Staff & Casual Paymts,"1,253.61",22/04/2013,R,NUMBER 10 INTERIM LTD         
377,Central Services,SupS IT,BI IT Projects,E14360,Employees                     ,Direct Employee Expenses      ,AA17,Agency Staff & Casual Paymts,"1,300.04",10/05/2013,R,NUMBER 10 INTERIM LTD         
378,Central Services,SupS IT,BI IT Projects,E14360,Employees                     ,Direct Employee Expenses      ,AA17,Agency Staff & Casual Paymts,"1,625.05",29/04/2013,R,NUMBER 10 INTERIM LTD         
379,Central Services,SupS IT,BI IT Projects,E14360,Employees                     ,Direct Employee Expenses      ,AA17,Agency Staff & Casual Paymts,"1,625.05",29/04/2013,R,NUMBER 10 INTERIM LTD         
380,Central Services,SupS IT,BI IT Projects,E14360,Employees                     ,Direct Employee Expenses      ,AA17,Agency Staff & Casual Paymts,"1,625.05",07/05/2013,R,NUMBER 10 INTERIM LTD         
381,Central Services,SupS IT,AD I&T,E14363,Employees                     ,Direct Employee Expenses      ,AA17,Agency Staff & Casual Paymts,"6,900.00",30/04/2013,R,REDACTED
382,Central Services,SupS IT,AD I&T,E14363,Supplies & Services           ,Comms and Computing           ,DG16,Distributed & Network Purchase,500,25/04/2013,R,CIVICA UK LIMITED             
383,Central Services,SupS IT,Systems & Projects,E14366,Employees                     ,Indirect Employee Expenses    ,AB02,Recruitment Adverts,"1,125.00",30/04/2013,R,PENNA COMMUNICATIONS (NO 2 A/C
384,Central Services,SupS IT,Systems & Projects,E14366,Supplies & Services           ,Comms and Computing           ,DG07,Computer Software,"1,160.00",10/05/2013,R,DOTTED EYES LTD               
385,Central Services,SupS IT,Systems & Projects,E14366,Supplies & Services           ,Comms and Computing           ,DG50,Other IT Expenditure,"2,723.00",14/03/2013,R,ASH INFORMATION SYSTEMS LTD   
386,Central Services,SupS IT,Systems & Projects,E14366,Supplies & Services           ,Comms and Computing           ,DG50,Other IT Expenditure,"7,285.00",14/03/2013,R,ASH INFORMATION SYSTEMS LTD   
387,Central Services,SupS IT,Systems & Projects,E14366,Supplies & Services           ,Comms and Computing           ,DG61,Computer Servs Special,"5,251.84",13/05/2013,R,PITNEY BOWES SOFTWARE LTD     
388,Central Services,SupS IT,Systems & Projects,E14366,Supplies & Services           ,Comms and Computing           ,DG63,Software Licences - Data,"35,970.00",06/03/2013,R,CIVICA UK LIMITED             
389,Central Services,SupS IT,Systems & Projects,E14366,Supplies & Services           ,Comms and Computing           ,DG65,Application Licences,"77,007.25",01/04/2013,R,OLM SYSTEMS                   
390,Central Services,SupS IT,Operations & Telecomms,E14367,Supplies & Services           ,Comms and Computing           ,DG54,Corporate Telephones,"1,066.68",29/03/2013,R,O2 (UK) LIMITED               
391,Central Services,SupS IT,Operations & Telecomms,E14367,Supplies & Services           ,Comms and Computing           ,DG54,Corporate Telephones,"2,681.60",02/05/2013,R,COLT TELECOMMUNICATIONS       
392,Central Services,SupS IT,Operations & Telecomms,E14367,Supplies & Services           ,Comms and Computing           ,DG54,Corporate Telephones,"4,089.69",02/04/2013,R,COLT TELECOMMUNICATIONS       
393,Central Services,SupS IT,Operations & Telecomms,E14367,Supplies & Services           ,Comms and Computing           ,DG54,Corporate Telephones,"9,920.33",04/04/2013,R,T MOBILE (UK)                 
394,Central Services,SupS IT,Operations & Telecomms,E14367,Supplies & Services           ,Comms and Computing           ,DG54,Corporate Telephones,"10,047.95",04/05/2013,R,T MOBILE (UK)                 
395,Central Services,SupS IT,Distributed Services,E14368,Supplies & Services           ,Comms and Computing           ,DG63,Software Licences - Data,"5,000.00",17/04/2013,R,LONDON BOROUGH OF CAMDEN      
396,Central Services,SupS IT,Distributed Services,E14368,Supplies & Services           ,Comms and Computing           ,DG63,Software Licences - Data,"16,170.00",30/04/2013,R,ON365.CO.UK                   
397,Central Services,SupS IT,Distributed Services,E14368,Supplies & Services           ,Comms and Computing           ,DG63,Software Licences - Data,"17,309.15",10/04/2013,R,WELLDATA LTD                  
398,Central Services,SupS IT,Business Systems - Deptl Supt,E14377,Supplies & Services           ,Comms and Computing           ,DG15,Network Maintenance,540,15/05/2013,R,NETWORK SOLUTIONS INC         
399,Central Services,SupS IT,Business Systems - Deptl Supt,E14377,Supplies & Services           ,Comms and Computing           ,DG15,Network Maintenance,990,15/05/2013,R,NETWORK SOLUTIONS INC         
400,Central Services,SupS IT,Business Systems - Deptl Supt,E14377,Supplies & Services           ,Comms and Computing           ,DG15,Network Maintenance,"2,040.00",24/04/2013,R,COMPUTERLAND                  
401,Cultural Env Reg&Plan Services,Mgt & Support (Env),ES Support & Development,G00070,Supplies & Services           ,Equip Furniture/Materials     ,DA09,Equip-Purchases,"1,250.00",09/05/2013,R,EVANS CYCLES                  
402,Cultural Env Reg&Plan Services,Mgt & Support (Env),ES Support & Development,G00070,Supplies & Services           ,Expenses                      ,DH02,Conferences,"1,770.00",23/04/2013,R,UNIVERSITY OF DERBY CORPORATE 
403,Highways & Transport Services,Hwys/Rds (struct) not split,Surf Water Drainage,G00123,Third Party Payments          ,Private Contractors           ,EH56,Carriageway/Fway Maint,"1,838.12",07/05/2013,R,FM CONWAY LTD                 
404,Highways & Transport Services,Repair prin/oth rds not split,Walk Sheets,G00127,Premises Related Expenditure  ,Ground Maintenance Costs      ,BL03,Maintenance of Grounds,900,25/03/2013,R,VEOLIA ES (UK) LIMITED        
405,Highways & Transport Services,Repair prin/oth rds not split,Walk Sheets,G00127,Third Party Payments          ,Private Contractors           ,EH56,Carriageway/Fway Maint,"1,310.01",02/05/2013,R,FM CONWAY LTD                 
406,Highways & Transport Services,Repair prin/oth rds not split,Walk Sheets,G00127,Third Party Payments          ,Private Contractors           ,EH56,Carriageway/Fway Maint,"1,683.02",29/04/2013,R,FM CONWAY LTD                 
407,Highways & Transport Services,Repair prin/oth rds not split,Walk Sheets,G00127,Third Party Payments          ,Private Contractors           ,EH56,Carriageway/Fway Maint,"3,022.66",22/05/2013,R,FM CONWAY LTD                 
408,Highways & Transport Services,Repair prin/oth rds not split,Walk Sheets,G00127,Third Party Payments          ,Private Contractors           ,EH56,Carriageway/Fway Maint,"3,032.10",28/05/2013,R,FM CONWAY LTD                 
409,Highways & Transport Services,Saf mtc prin/oth rds not split,Traffic Signs.,G00160,Third Party Payments          ,Private Contractors           ,EH02,Miscellaneous Hired Services,"2,890.70",22/05/2013,R,FM CONWAY LTD                 
410,Highways & Transport Services,Saf mtc prin/oth rds not split,Traffic Signals .,G00170,Third Party Payments          ,Other Agencies                ,EJ57,Traffic Signals Control Unit,"82,529.59",08/05/2013,R,TRANSPORT FOR LONDON          
411,Highways & Transport Services,TRAF & HWYS CAPITAL PROJECTS,TRAF & HWYS CAPITAL PROJECTS,G00210,Supplies & Services           ,Services                      ,DF05,Surveys (General)                       ,"6,256.36",19/03/2013,R,L. B. OF HAMMERSMITH & FULHAM 
412,Highways & Transport Services,Transport Plg/Policy/Strategy,CPZ implementation & Consultat,G00211,Third Party Payments          ,Private Contractors           ,EH56,Carriageway/Fway Maint,858.69,28/05/2013,R,FM CONWAY LTD                 
413,Highways & Transport Services,Transport Plg/Policy/Strategy,CPZ implementation & Consultat,G00211,Third Party Payments          ,Private Contractors           ,EH56,Carriageway/Fway Maint,"1,041.74",29/04/2013,R,FM CONWAY LTD                 
414,Highways & Transport Services,Transport Plg/Policy/Strategy,CPZ implementation & Consultat,G00211,Third Party Payments          ,Private Contractors           ,EH56,Carriageway/Fway Maint,"12,615.22",22/05/2013,R,FM CONWAY LTD                 
415,Highways & Transport Services,Traffic Management,Tr Man & Accid Sch,G00220,Third Party Payments          ,Other Agencies                ,EJ52,London Boroughs Transport Sche,"2,836.00",17/04/2013,R,LONDON COUNCILS               
416,Highways & Transport Services,Street Lighting.,Street Lighting .,G00260,Premises Related Expenditure  ,Energy Costs                  ,BB02,Electricity,"63,000.00",15/04/2013,R,KENT COUNTY COUNCIL           
417,Highways & Transport Services,Street Lighting.,Street Lighting .,G00260,Third Party Payments          ,Private Contractors           ,EH01,Miscellaneous Contrct Services,644,07/05/2013,R,UK POWER NETWORKS (OPERATIONS)
418,Highways & Transport Services,Street Lighting.,Street Lighting .,G00260,Third Party Payments          ,Private Contractors           ,EH01,Miscellaneous Contrct Services,644,19/04/2013,R,UK POWER NETWORKS (OPERATIONS)
419,Highways & Transport Services,Street Lighting.,Street Lighting .,G00260,Third Party Payments          ,Private Contractors           ,EH01,Miscellaneous Contrct Services,644,01/05/2013,R,UK POWER NETWORKS (OPERATIONS)
420,Highways & Transport Services,Street Lighting.,Street Lighting .,G00260,Third Party Payments          ,Private Contractors           ,EH01,Miscellaneous Contrct Services,661,01/05/2013,R,UK POWER NETWORKS (OPERATIONS)
421,Highways & Transport Services,Street Lighting.,Street Lighting .,G00260,Third Party Payments          ,Private Contractors           ,EH01,Miscellaneous Contrct Services,756.54,16/04/2013,R,MAY GURNEY LTD T/A CARTLEDGE  
422,Highways & Transport Services,Street Lighting.,Street Lighting .,G00260,Third Party Payments          ,Private Contractors           ,EH01,Miscellaneous Contrct Services,"1,300.00",19/04/2013,R,UK POWER NETWORKS (OPERATIONS)
423,Highways & Transport Services,Street Lighting.,Street Lighting .,G00260,Third Party Payments          ,Private Contractors           ,EH01,Miscellaneous Contrct Services,"1,531.86",16/04/2013,R,MAY GURNEY LTD T/A CARTLEDGE  
424,Highways & Transport Services,Street Lighting.,Street Lighting .,G00260,Third Party Payments          ,Private Contractors           ,EH01,Miscellaneous Contrct Services,"2,500.00",16/04/2013,R,MAY GURNEY LTD T/A CARTLEDGE  
425,Highways & Transport Services,Street Lighting.,Street Lighting .,G00260,Third Party Payments          ,Private Contractors           ,EH01,Miscellaneous Contrct Services,"2,784.93",25/04/2013,R,MAY GURNEY LTD T/A CARTLEDGE  
426,Highways & Transport Services,Street Lighting.,Street Lighting .,G00260,Third Party Payments          ,Private Contractors           ,EH01,Miscellaneous Contrct Services,"6,500.00",16/04/2013,R,MAY GURNEY LTD T/A CARTLEDGE  
427,Highways & Transport Services,Off-street parking,York Close CP,G00298,Premises Related Expenditure  ,Energy Costs                  ,BB02,Electricity,557.89,09/05/2013,R,EDF ENERGY 1 LIMITED          
428,Highways & Transport Services,Off-street parking,Morden Station,G00301,Premises Related Expenditure  ,Rents                         ,BC01,Miscellaneous Rents,"10,576.94",02/05/2013,R,TRANSPORT TRADING LTD PROP A/C
429,Highways & Transport Services,Off-street parking,St. Georges Car Park WEST M/S,G00302,Premises Related Expenditure  ,Energy Costs                  ,BB02,Electricity,"1,156.66",16/04/2013,R,KENT COUNTY COUNCIL           
430,Highways & Transport Services,Off-street parking,Peel Hse C P - Lwr,G00304,Premises Related Expenditure  ,RepairsAlterations&MtceOfBldgs,BA06,Repairs & Maintenance General,915,20/05/2013,R,TEASDALE GROUP LTD            
431,Highways & Transport Services,Off-street parking,Sibthorpe Road C P,G00307,Premises Related Expenditure  ,RepairsAlterations&MtceOfBldgs,BA06,Repairs & Maintenance General,"2,656.50",15/05/2013,R,TEASDALE GROUP LTD            
432,Highways & Transport Services,Off-street parking,"St. Mks Rd, Multi Sty",G00308,Premises Related Expenditure  ,RepairsAlterations&MtceOfBldgs,BA06,Repairs & Maintenance General,"1,336.87",25/04/2013,R,MAY GURNEY LTD T/A CARTLEDGE  
433,Highways & Transport Services,Off-street parking,"St. Mks Rd, Multi Sty",G00308,Premises Related Expenditure  ,Energy Costs                  ,BB02,Electricity,"2,609.53",01/05/2013,R,EDF ENERGY 1 LIMITED          
434,Highways & Transport Services,Off-street parking,"St. Mks Rd, Multi Sty",G00308,Premises Related Expenditure  ,Rents                         ,BC01,Miscellaneous Rents,"4,710.47",24/01/2013,R,FISHER PROPERTY CONSULTANTS   
435,Highways & Transport Services,On-street parking,On Street Parking.,G00311,Premises Related Expenditure  ,RepairsAlterations&MtceOfBldgs,BA06,Repairs & Maintenance General,713,20/05/2013,R,TEASDALE GROUP LTD            
436,Highways & Transport Services,On-street parking,On Street Parking.,G00311,Premises Related Expenditure  ,RepairsAlterations&MtceOfBldgs,BA06,Repairs & Maintenance General,"1,538.19",20/05/2013,R,TEASDALE GROUP LTD            
437,Highways & Transport Services,On-street parking,On Street Parking.,G00311,Premises Related Expenditure  ,RepairsAlterations&MtceOfBldgs,BA06,Repairs & Maintenance General,"1,683.66",20/05/2013,R,TEASDALE GROUP LTD            
438,Highways & Transport Services,Safe routes inc schl x patrol,DFT Child Pedestrian,G00324,Third Party Payments          ,Private Contractors           ,EH02,Miscellaneous Hired Services,"7,500.00",16/05/2013,R,PANDA HORSE                   
439,Highways & Transport Services,Parking Enforcement not split,Operational Running Costs,G00331,Supplies & Services           ,Equip Furniture/Materials     ,DA09,Equip-Purchases,"1,468.63",11/04/2013,R,FM CONWAY LTD                 
440,Highways & Transport Services,Hwys/Rds (struct) not split,NRSWA Permitting (LoPS),G00385,Employees                     ,Indirect Employee Expenses    ,AB57,External Training Costs,538,13/05/2013,R,WILBAR ASSOCIATES             
441,Highways & Transport Services,Hwys/Rds (struct) not split,Footpath Crossings.,G00390,Third Party Payments          ,Private Contractors           ,EH56,Carriageway/Fway Maint,"1,239.50",28/05/2013,R,FM CONWAY LTD                 
442,Highways & Transport Services,Hwys/Rds (struct) not split,Footpath Crossings.,G00390,Third Party Payments          ,Private Contractors           ,EH56,Carriageway/Fway Maint,"1,313.89",07/05/2013,R,FM CONWAY LTD                 
443,Highways & Transport Services,Hwys/Rds (struct) not split,Footpath Crossings.,G00390,Third Party Payments          ,Private Contractors           ,EH56,Carriageway/Fway Maint,"1,600.00",07/05/2013,R,FM CONWAY LTD                 
444,Highways & Transport Services,Hwys/Rds (struct) not split,Footpath Crossings.,G00390,Third Party Payments          ,Private Contractors           ,EH56,Carriageway/Fway Maint,"2,368.13",22/05/2013,R,FM CONWAY LTD                 
445,Highways & Transport Services,Hwys/Rds (struct) not split,Footpath Crossings.,G00390,Third Party Payments          ,Private Contractors           ,EH56,Carriageway/Fway Maint,"3,662.31",29/04/2013,R,FM CONWAY LTD                 
446,Highways & Transport Services,Hwys/Rds (struct) not split,Footpath Crossings.,G00390,Third Party Payments          ,Private Contractors           ,EH56,Carriageway/Fway Maint,"6,681.72",22/05/2013,R,FM CONWAY LTD                 
447,Cultural Env Reg&Plan Services,Street Clean - Not highways,Street Cleansing (Inc. Gully),G00492,Employees                     ,Indirect Employee Expenses    ,AB57,External Training Costs,"2,100.00",07/08/2012,R,TRACKSS LTD                   
448,Cultural Env Reg&Plan Services,Street Clean - Not highways,Street Cleansing (Inc. Gully),G00492,Premises Related Expenditure  ,Energy Costs                  ,BB02,Electricity,642.92,01/05/2013,R,EDF ENERGY                    
449,Cultural Env Reg&Plan Services,Street Clean - Not highways,Street Cleansing (Inc. Gully),G00492,Premises Related Expenditure  ,Water Services                ,BE01,Use of Water (Metered),"1,012.00",02/05/2013,R,SUPPLY UK HIRE SHOPS          
450,Cultural Env Reg&Plan Services,Street Clean - Not highways,Street Cleansing (Inc. Gully),G00492,Premises Related Expenditure  ,Water Services                ,BE01,Use of Water (Metered),"3,929.00",02/05/2013,R,SUPPLY UK HIRE SHOPS          
451,Cultural Env Reg&Plan Services,Street Clean - Not highways,Street Cleansing (Inc. Gully),G00492,Premises Related Expenditure  ,Water Services                ,BE01,Use of Water (Metered),"3,929.00",02/05/2013,R,SUPPLY UK HIRE SHOPS          
452,Cultural Env Reg&Plan Services,Street Clean - Not highways,Street Cleansing (Inc. Gully),G00492,Premises Related Expenditure  ,Water Services                ,BE01,Use of Water (Metered),"3,929.00",02/05/2013,R,SUPPLY UK HIRE SHOPS          
453,Cultural Env Reg&Plan Services,Street Clean - Not highways,Street Cleansing (Inc. Gully),G00492,Supplies & Services           ,Equip Furniture/Materials     ,DA08,Tools-Purchase,540,02/05/2013,R,BELL BRUSH                    
454,Cultural Env Reg&Plan Services,Street Clean - Not highways,Street Cleansing (Inc. Gully),G00492,Supplies & Services           ,Equip Furniture/Materials     ,DA08,Tools-Purchase,"1,225.50",20/05/2013,R,BELL BRUSH                    
455,Cultural Env Reg&Plan Services,Street Clean - Not highways,Street Cleansing (Inc. Gully),G00492,Supplies & Services           ,Equip Furniture/Materials     ,DA31,Waste Sacks & Bags,"1,852.20",25/04/2013,R,POLARIS PLASTICS LTD          
456,Cultural Env Reg&Plan Services,Street Clean - Not highways,Street Cleansing (Inc. Gully),G00492,Supplies & Services           ,Clothing Unfrms Laundry       ,DC02,Clothing & Uniforms,"1,143.00",09/05/2013,R,SAFETY MANAGEMENT             
457,Cultural Env Reg&Plan Services,Street Clean - Not highways,Graffiti,G00495,Employees                     ,Indirect Employee Expenses    ,AB57,External Training Costs,733.33,08/05/2013,R,WALLACE SCHOOL OF MOTORING    
458,Cultural Env Reg&Plan Services,Waste Disposal (not separated),Waste Disposal .,G00550,Third Party Payments          ,Private Contractors           ,EH01,Miscellaneous Contrct Services,513.44,26/04/2013,R,BIFFA WASTE SERVICES LTD      
459,Cultural Env Reg&Plan Services,Waste Disposal (not separated),Waste Disposal .,G00550,Third Party Payments          ,Private Contractors           ,EH11,Agency Staff Clerk of Works,"18,930.08",14/05/2013,R,KINGSTON CORPORATION          
460,Cultural Env Reg&Plan Services,Waste Disposal (not separated),Waste Disposal .,G00550,Third Party Payments          ,Private Contractors           ,EH11,Agency Staff Clerk of Works,"55,450.00",14/05/2013,R,KINGSTON CORPORATION          
461,Cultural Env Reg&Plan Services,Waste Disposal (not separated),Waste Disposal .,G00550,Third Party Payments          ,Private Contractors           ,EH66,Clinical Waste Disposal,821.77,30/04/2013,R,S.GRUNDON (WASTE) LTD.        
462,Cultural Env Reg&Plan Services,Waste Disposal (not separated),Waste Disposal .,G00550,Third Party Payments          ,Private Contractors           ,EH91,Disposal of Asbestos,"1,087.58",09/04/2013,R,CITY OF LONDON CORPORATION    
463,Cultural Env Reg&Plan Services,Waste Disposal (not separated),Waste Disposal .,G00550,Third Party Payments          ,Private Contractors           ,EH96,Gen Waste - Alt.  Contractor  ,"1,666.84",30/04/2013,R,CORY ENVIRONMENTAL LIMITED    
464,Highways & Transport Services,Hwys/Rds (struct) not split,Grass Cut/Tr Mtce,G00600,Premises Related Expenditure  ,Ground Maintenance Costs      ,BL03,Maintenance of Grounds,"4,689.34",22/03/2013,R,VEOLIA ES (UK) LIMITED        
465,Highways & Transport Services,Hwys/Rds (struct) not split,Grass Cut/Tr Mtce,G00600,Premises Related Expenditure  ,Ground Maintenance Costs      ,BL03,Maintenance of Grounds,"13,490.38",22/03/2013,R,VEOLIA ES (UK) LIMITED        
466,Cultural Env Reg&Plan Services,Public Health,Dog Control.,G00620,Third Party Payments          ,Private Contractors           ,EH02,Miscellaneous Hired Services,"4,366.98",01/05/2013,R,NOAH'S ARK ENVIRONMENTAL SERV.
467,Cultural Env Reg&Plan Services,Recycling (Collection),Recycling Activities,G00640,Supplies & Services           ,Equip Furniture/Materials     ,DA04,Materials,"7,116.95",13/03/2013,R,SPHERE PROFFESSIONAL          
468,Cultural Env Reg&Plan Services,Recycling (Collection),Recycling Activities,G00640,Supplies & Services           ,Equip Furniture/Materials     ,DA09,Equip-Purchases,"1,928.00",18/04/2013,R,PJ HARVEY & CO LTD            
469,Cultural Env Reg&Plan Services,Recycling (Collection),Recycling Activities,G00640,Supplies & Services           ,Equip Furniture/Materials     ,DA54,Recycling Containers,"3,000.00",15/06/2013,R,STUDIO ELEVEN LTD             
470,Cultural Env Reg&Plan Services,Recycling (Collection),Recycling Activities,G00640,Third Party Payments          ,Private Contractors           ,EH01,Miscellaneous Contrct Services,"10,689.00",12/04/2013,R,LONDON BOROUGH OF SUTTON      
471,Cultural Env Reg&Plan Services,Recycling (Collection),Recycling Activities,G00640,Third Party Payments          ,Private Contractors           ,EH01,Miscellaneous Contrct Services,"60,608.00",12/04/2013,R,LONDON BOROUGH OF SUTTON      
472,Cultural Env Reg&Plan Services,Recycling (Collection),Recycling Activities,G00640,Third Party Payments          ,Private Contractors           ,EH61,Green Waste Disposal,"10,671.54",30/04/2013,R,VIRIDOR WASTE KENT LTD        
473,Cultural Env Reg&Plan Services,Recycling (Collection),Recycling Collection,G00645,Supplies & Services           ,Equip Furniture/Materials     ,DA32,Wheeled Bins,960,09/05/2013,R,UK CONTAINER MAINTENANCE LTD  
474,Cultural Env Reg&Plan Services,Recycling (Collection),Recycling Collection,G00645,Supplies & Services           ,Equip Furniture/Materials     ,DA32,Wheeled Bins,"1,658.50",07/05/2013,R,ESE                           
475,Cultural Env Reg&Plan Services,Recycling (Collection),Recycling Collection,G00645,Supplies & Services           ,Clothing Unfrms Laundry       ,DC02,Clothing & Uniforms,"1,143.00",09/05/2013,R,SAFETY MANAGEMENT             
476,Cultural Env Reg&Plan Services,Household Waste Collection,Refuse Collection (Operations),G00661,Transport Related Expenditure ,Direct Transport Costs        ,CA52,Reps Vehicles Ins Claims,750,30/05/2013,R,S.E.T.S SERVICES              
477,Cultural Env Reg&Plan Services,Household Waste Collection,Refuse Collection (Operations),G00661,Supplies & Services           ,Clothing Unfrms Laundry       ,DC02,Clothing & Uniforms,"1,143.00",09/05/2013,R,SAFETY MANAGEMENT             
478,Cultural Env Reg&Plan Services,Trade Waste Collection,Commercial Waste,G00663,Supplies & Services           ,Equip Furniture/Materials     ,DA09,Equip-Purchases,721.5,23/05/2013,R,GRANGEWOOD PLASTIC PACKAGING  
479,Cultural Env Reg&Plan Services,Trade Waste Collection,Commercial Waste,G00663,Supplies & Services           ,Equip Furniture/Materials     ,DA09,Equip-Purchases,852,23/05/2013,R,GRANGEWOOD PLASTIC PACKAGING  
480,Cultural Env Reg&Plan Services,Street Clean - Not highways,Waste Enforcement,G00680,Supplies & Services           ,Services                      ,DF30,Activities Programme,"1,290.00",28/04/2013,R,DANGEROUS THEATRE COMPANY     
481,Cultural Env Reg&Plan Services,Inspect/Enforce (Consumer P),Trading Standards,G00690,Employees                     ,Indirect Employee Expenses    ,AB02,Recruitment Adverts,"1,141.80",21/05/2013,R,PENNA COMMUNICATIONS (NO 2 A/C
482,Cultural Env Reg&Plan Services,Inspect/Enforce (Consumer P),Trading Standards,G00690,Supplies & Services           ,Services                      ,DF11,Counsel's fees,"9,750.00",20/12/2012,R,REDACTED
483,Cultural Env Reg&Plan Services,Inspect/Enforce (Consumer P),Trading Standards,G00690,Third Party Payments          ,Other Local Authorities       ,EB52,GLMCA Contribution,"4,462.52",25/04/2013,R,ROYAL BOROUGH OF KINGSTON UPON
484,Cultural Env Reg&Plan Services,Public Health,Merton Winter Warmer Programme,G00696,Supplies & Services           ,Equip Furniture/Materials     ,DA02,Op. Leasing Equipment,"2,179.43",06/02/2013,R,OSBORNE ENERGY LTD            
485,Cultural Env Reg&Plan Services,Public Health,Merton Winter Warmer Programme,G00696,Supplies & Services           ,Equip Furniture/Materials     ,DA09,Equip-Purchases,620,08/05/2013,R,TUNSTALL TELECOM LIMITED      
486,Cultural Env Reg&Plan Services,Public Health,Merton Winter Warmer Programme,G00696,Supplies & Services           ,Equip Furniture/Materials     ,DA09,Equip-Purchases,"1,798.00",09/05/2013,R,TUNSTALL TELECOM LIMITED      
487,Cultural Env Reg&Plan Services,Public Health,Merton Winter Warmer Programme,G00696,Supplies & Services           ,Equip Furniture/Materials     ,DA09,Equip-Purchases,"13,082.00",07/05/2013,R,TUNSTALL TELECOM LIMITED      
488,Cultural Env Reg&Plan Services,Food Safety,Health & Safety,G00697,Supplies & Services           ,Equip Furniture/Materials     ,DA58,Education Materials,"1,118.00",05/04/2013,R,CHARTERED INST.OF ENVIR.HEALTH
489,Cultural Env Reg&Plan Services,Food Safety,Health & Safety,G00697,Third Party Payments          ,Private Contractors           ,EH10,Contract Payments,"1,000.00",30/04/2013,R,PUBLIC ANALYST SCIENTIFIC SER.
490,Cultural Env Reg&Plan Services,Food Safety,Health & Safety,G00697,Third Party Payments          ,Private Contractors           ,EH10,Contract Payments,"1,500.00",20/03/2013,R,PUBLIC ANALYST SCIENTIFIC SER.
491,Cultural Env Reg&Plan Services,Pest Control,Pest Control,G00724,Supplies & Services           ,Equip Furniture/Materials     ,DA04,Materials,635.36,10/05/2013,R,KILLGERM CHEMICALS LIMITED    
492,Cultural Env Reg&Plan Services,Pest Control,Pest Control,G00724,Supplies & Services           ,Equip Furniture/Materials     ,DA04,Materials,"1,130.68",17/04/2013,R,KILLGERM CHEMICALS LIMITED    
493,Cultural Env Reg&Plan Services,Housing Standards,Housing/Env,G00730,Supplies & Services           ,Equip Furniture/Materials     ,DA09,Equip-Purchases,"4,968.00",14/05/2013,R,ENVIRONMENTAL RESEARCH GROUP  
494,Cultural Env Reg&Plan Services,Housing Standards,AIR QUALITY GRANT (DEFRA) MB,G00732,Third Party Payments          ,Private Contractors           ,EH02,Miscellaneous Hired Services,"4,619.00",25/04/2013,R,ATKINS LIMITED                
495,Cultural Env Reg&Plan Services,Mgt & Support (Env),Waste Management,G00900,Premises Related Expenditure  ,Energy Costs                  ,BB02,Electricity,659.74,15/05/2013,R,EDF ENERGY                    
496,Cultural Env Reg&Plan Services,Mgt & Support (Env),Waste Management,G00900,Premises Related Expenditure  ,Energy Costs                  ,BB03,Gas (incl. Butane),504.43,30/04/2013,R,KENT COUNTY COUNCIL           
497,Cultural Env Reg&Plan Services,Mgt & Support (Env),Waste Management,G00900,Supplies & Services           ,Grants and Subscriptions      ,DJ04,Subscriptions,"3,185.00",15/04/2013,R,APSE                          
498,Central Services,Grants - Voluntary Groups,Vestry Hall,G19290,Employees                     ,Direct Employee Expenses      ,AA17,Agency Staff & Casual Paymts,"4,611.35",10/05/2013,R,REDACTED
499,Central Services,Grants - Voluntary Groups,Vestry Hall,G19290,Premises Related Expenditure  ,RepairsAlterations&MtceOfBldgs,BA01,DDM - General Building,875,21/04/2013,R,REDACTED
500,Central Services,Grants - Voluntary Groups,Vestry Hall,G19290,Premises Related Expenditure  ,RepairsAlterations&MtceOfBldgs,BA01,DDM - General Building,875,21/04/2013,R,REDACTED
501,Central Services,Grants - Voluntary Groups,Vestry Hall,G19290,Premises Related Expenditure  ,RepairsAlterations&MtceOfBldgs,BA06,Repairs & Maintenance General,"1,605.00",05/05/2013,R,REDACTED
502,Central Services,Grants - Voluntary Groups,Vestry Hall,G19290,Premises Related Expenditure  ,Energy Costs                  ,BB02,Electricity,"3,128.05",01/05/2013,R,EDF ENERGY 1 LIMITED          
503,Central Services,Grants - Voluntary Groups,Vestry Hall,G19290,Premises Related Expenditure  ,Energy Costs                  ,BB03,Gas (incl. Butane),808.06,14/05/2013,R,GAZPROM MARKETING&TRADING LTD 
504,Central Services,Grants - Voluntary Groups,Vestry Hall,G19290,Premises Related Expenditure  ,Cleaning and Domestic Supplies,BH03,Cleaning Services,"1,357.76",01/05/2013,R,BIRKIN CLEANING SERVICES LTD  
505,Cultural Env Reg&Plan Services,DC Advice Apps & Reg not split,Development Control,H01130,Employees                     ,Indirect Employee Expenses    ,AB57,External Training Costs,"1,500.00",05/02/2013,R,POS ENTERPRISES LTD           
506,Cultural Env Reg&Plan Services,DC Advice Apps & Reg not split,Development Control,H01130,Supplies & Services           ,Services                      ,DF03,Consultants,"1,294.90",31/03/2013,R,AFFORDABLE 106                
507,Cultural Env Reg&Plan Services,Planning Policy not split,Spatial Policy,H01173,Third Party Payments          ,Private Contractors           ,EH10,Contract Payments,"1,595.00",04/05/2013,R,BASEPOINT DATA LIMITED        
508,Cultural Env Reg&Plan Services,Planning Policy not split,Spatial Policy,H01173,Third Party Payments          ,Private Contractors           ,EH10,Contract Payments,"3,880.35",09/04/2013,R,MPM                           
509,Cultural Env Reg&Plan Services,Planning Policy not split,Spatial Policy,H01173,Third Party Payments          ,Private Contractors           ,EH10,Contract Payments,"7,183.60",09/04/2013,R,MPM                           
510,Cultural Env Reg&Plan Services,Planning Policy not split,Spatial Policy,H01173,Third Party Payments          ,Private Contractors           ,EH10,Contract Payments,"8,199.76",09/04/2013,R,MPM                           
511,Cultural Env Reg&Plan Services,Planning Policy not split,HPDG - Spatial Policy,H01183,Supplies & Services           ,Services                      ,DF03,Consultants,"1,100.00",21/05/2013,R,UDS                           
512,Cultural Env Reg&Plan Services,Planning Policy not split,HPDG - Spatial Policy,H01183,Supplies & Services           ,Services                      ,DF03,Consultants,"1,100.00",22/04/2013,R,MEND LONDON LTD               
513,CS -Oth Operating Inc & Expend,Extraordinary Items & PY Adj.,MILES RD GENERATOR,H01203,Third Party Payments          ,Private Contractors           ,EH02,Miscellaneous Hired Services,"13,750.00",09/05/2013,R,MERTON CHAMBER OF COMMERCE    
514,Cultural Env Reg&Plan Services,Economic Dev (Not separated),(LABGI)-BUSINESS SUPPORT,H01210,Supplies & Services           ,Grants and Subscriptions      ,DJ01,Grants,"11,235.98",14/05/2013,R,FAIRCUT BARBERS               
515,Cultural Env Reg&Plan Services,Economic Dev (Not separated),(LABGI)-BUSINESS SUPPORT,H01210,Third Party Payments          ,Private Contractors           ,EH02,Miscellaneous Hired Services,"7,500.00",12/05/2013,R,MERTON CHAMBER OF COMMERCE    
516,Cultural Env Reg&Plan Services,Economic Dev (Not separated),GO GREEN PLUS (S106),H01225,Supplies & Services           ,Grants and Subscriptions      ,DJ54,Contributions,"2,566.87",23/04/2013,R,MERTON CHAMBER OF COMMERCE    
517,CS -Oth Operating Inc & Expend,T/A Vehicle Maintenance etc,Transport-Contract Hire,J01374,Premises Related Expenditure  ,Energy Costs                  ,BB02,Electricity,"1,855.31",01/05/2013,R,EDF ENERGY                    
518,CS -Oth Operating Inc & Expend,T/A Vehicle Maintenance etc,Transport-Contract Hire,J01374,Premises Related Expenditure  ,Energy Costs                  ,BB03,Gas (incl. Butane),593.5,30/04/2013,R,KENT COUNTY COUNCIL           
519,CS -Oth Operating Inc & Expend,T/A Vehicle Maintenance etc,Transport-Contract Hire,J01374,Transport Related Expenditure ,Direct Transport Costs        ,CA01,Petrol Derv & Oil,"37,975.00",08/05/2013,R,EMO OILS LTD                  
520,CS -Oth Operating Inc & Expend,T/A Vehicle Maintenance etc,Transport-Contract Hire,J01374,Transport Related Expenditure ,Direct Transport Costs        ,CA02,Tyres,"1,240.00",29/04/2013,R,MORDEN TYRE SERVICES LTD      
521,CS -Oth Operating Inc & Expend,T/A Vehicle Maintenance etc,Transport-Contract Hire,J01374,Transport Related Expenditure ,Direct Transport Costs        ,CA02,Tyres,"2,245.00",10/05/2013,R,MORDEN TYRE SERVICES LTD      
522,CS -Oth Operating Inc & Expend,T/A Vehicle Maintenance etc,Transport-Contract Hire,J01374,Transport Related Expenditure ,Direct Transport Costs        ,CA52,Reps Vehicles Ins Claims,500,26/04/2013,R,FLEETSPEED COACHWORKS LTD.    
523,CS -Oth Operating Inc & Expend,T/A Vehicle Maintenance etc,Transport-Contract Hire,J01374,Transport Related Expenditure ,Direct Transport Costs        ,CA55,Specialist Maint. (Off Site),"1,040.96",10/05/2013,R,DAWSON RENTALS BUS AND COACH  
524,CS -Oth Operating Inc & Expend,T/A Vehicle Maintenance etc,Transport-Contract Hire,J01374,Transport Related Expenditure ,Direct Transport Costs        ,CA55,Specialist Maint. (Off Site),"1,528.16",29/04/2013,R,REDACTED
525,CS -Oth Operating Inc & Expend,T/A Vehicle Maintenance etc,Transport-Contract Hire,J01374,Transport Related Expenditure ,Direct Transport Costs        ,CA55,Specialist Maint. (Off Site),"1,726.16",10/05/2013,R,DAWSON RENTALS BUS AND COACH  
526,CS -Oth Operating Inc & Expend,T/A Vehicle Maintenance etc,Transport-Contract Hire,J01374,Transport Related Expenditure ,Direct Transport Costs        ,CA56,Specialist Maint. (On Site),506.25,23/05/2013,R,R.J.H.WELDING                 
527,CS -Oth Operating Inc & Expend,T/A Vehicle Maintenance etc,Transport-Contract Hire,J01374,Transport Related Expenditure ,Direct Transport Costs        ,CA56,Specialist Maint. (On Site),525,23/05/2013,R,R.J.H.WELDING                 
528,CS -Oth Operating Inc & Expend,T/A Vehicle Maintenance etc,Transport-Contract Hire,J01374,Transport Related Expenditure ,Direct Transport Costs        ,CA56,Specialist Maint. (On Site),525,26/04/2013,R,R.J.H.WELDING                 
529,CS -Oth Operating Inc & Expend,T/A Vehicle Maintenance etc,Transport-Contract Hire,J01374,Transport Related Expenditure ,Direct Transport Costs        ,CA56,Specialist Maint. (On Site),543.75,26/04/2013,R,R.J.H.WELDING                 
530,CS -Oth Operating Inc & Expend,T/A Vehicle Maintenance etc,Transport-Contract Hire,J01374,Transport Related Expenditure ,Direct Transport Costs        ,CA56,Specialist Maint. (On Site),543.75,23/05/2013,R,R.J.H.WELDING                 
531,CS -Oth Operating Inc & Expend,T/A Vehicle Maintenance etc,Transport-Contract Hire,J01374,Transport Related Expenditure ,Direct Transport Costs        ,CA56,Specialist Maint. (On Site),562.5,23/05/2013,R,R.J.H.WELDING                 
532,CS -Oth Operating Inc & Expend,T/A Vehicle Maintenance etc,Transport-Contract Hire,J01374,Transport Related Expenditure ,Direct Transport Costs        ,CA56,Specialist Maint. (On Site),562.5,26/04/2013,R,R.J.H.WELDING                 
533,CS -Oth Operating Inc & Expend,T/A Vehicle Maintenance etc,Transport-Contract Hire,J01374,Transport Related Expenditure ,Direct Transport Costs        ,CA56,Specialist Maint. (On Site),675,23/05/2013,R,R.J.H.WELDING                 
534,CS -Oth Operating Inc & Expend,T/A Vehicle Maintenance etc,Transport-Contract Hire,J01374,Transport Related Expenditure ,Direct Transport Costs        ,CA56,Specialist Maint. (On Site),678.11,26/04/2013,R,R.J.H.WELDING                 
535,CS -Oth Operating Inc & Expend,T/A Vehicle Maintenance etc,Transport-Contract Hire,J01374,Transport Related Expenditure ,Direct Transport Costs        ,CA56,Specialist Maint. (On Site),759.3,26/04/2013,R,R.J.H.WELDING                 
536,CS -Oth Operating Inc & Expend,T/A Vehicle Maintenance etc,Transport-Contract Hire,J01374,Transport Related Expenditure ,Direct Transport Costs        ,CA56,Specialist Maint. (On Site),"1,053.11",23/05/2013,R,R.J.H.WELDING                 
537,CS -Oth Operating Inc & Expend,T/A Vehicle Maintenance etc,Transport-Contract Hire,J01374,Transport Related Expenditure ,Direct Transport Costs        ,CA56,Specialist Maint. (On Site),"1,067.58",26/04/2013,R,R.J.H.WELDING                 
538,CS -Oth Operating Inc & Expend,T/A Vehicle Maintenance etc,Transport-Contract Hire,J01374,Transport Related Expenditure ,Direct Transport Costs        ,CA56,Specialist Maint. (On Site),"1,209.19",16/05/2013,R,JOHNSTON SWEEPERS LIMITED     
539,CS -Oth Operating Inc & Expend,T/A Vehicle Maintenance etc,Transport-Contract Hire,J01374,Transport Related Expenditure ,Direct Transport Costs        ,CA72,Vehicle Parts,534.25,26/04/2013,R,REDACTED
540,CS -Oth Operating Inc & Expend,T/A Vehicle Maintenance etc,Transport-Contract Hire,J01374,Transport Related Expenditure ,Direct Transport Costs        ,CA72,Vehicle Parts,535.63,03/05/2013,R,SCARAB SWEEPERS LTD           
541,CS -Oth Operating Inc & Expend,T/A Vehicle Maintenance etc,Transport-Contract Hire,J01374,Transport Related Expenditure ,Direct Transport Costs        ,CA72,Vehicle Parts,589.4,26/04/2013,R,GEESINK NORBA                 
542,CS -Oth Operating Inc & Expend,T/A Vehicle Maintenance etc,Transport-Contract Hire,J01374,Transport Related Expenditure ,Direct Transport Costs        ,CA72,Vehicle Parts,604.66,22/04/2013,R,JOHNSTON SWEEPERS LIMITED     
543,CS -Oth Operating Inc & Expend,T/A Vehicle Maintenance etc,Transport-Contract Hire,J01374,Transport Related Expenditure ,Direct Transport Costs        ,CA72,Vehicle Parts,925.63,08/05/2013,R,DENNIS EAGLE LIMITED          
544,CS -Oth Operating Inc & Expend,T/A Vehicle Maintenance etc,Transport-Contract Hire,J01374,Transport Related Expenditure ,Direct Transport Costs        ,CA72,Vehicle Parts,956.45,30/04/2013,R,JD ASSOCIATES                 
545,CS -Oth Operating Inc & Expend,T/A Vehicle Maintenance etc,Transport-Contract Hire,J01374,Transport Related Expenditure ,Direct Transport Costs        ,CA72,Vehicle Parts,"1,202.28",22/05/2013,R,GEESINK NORBA                 
546,CS -Oth Operating Inc & Expend,T/A Vehicle Maintenance etc,Transport-Contract Hire,J01374,Transport Related Expenditure ,Direct Transport Costs        ,CA72,Vehicle Parts,"3,805.13",07/05/2013,R,GRAYS TRUCK CENTRE LIMITED    
547,CS -Oth Operating Inc & Expend,T/A Vehicle Maintenance etc,Transport-Contract Hire,J01374,Transport Related Expenditure ,Contract Hire and Op Leasing  ,CC53,Plant Hire for MRCS,700,26/04/2013,R,NOBLET MUNICIPAL SERVICES LTD 
548,CS -Oth Operating Inc & Expend,T/A Vehicle Maintenance etc,Transport-Contract Hire,J01374,Transport Related Expenditure ,Contract Hire and Op Leasing  ,CC53,Plant Hire for MRCS,"1,254.00",30/04/2013,R,GVS HIRE LTD                  
549,CS -Oth Operating Inc & Expend,T/A Vehicle Maintenance etc,Transport-Contract Hire,J01374,Transport Related Expenditure ,Contract Hire and Op Leasing  ,CC55,Plant Hire for Parking,500,08/05/2013,R,GRV                           
550,CS -Oth Operating Inc & Expend,T/A Vehicle Maintenance etc,Transport-Contract Hire,J01374,Transport Related Expenditure ,Contract Hire and Op Leasing  ,CC56,Plant Hire for Leisure,565.5,30/04/2013,R,REDACTED
551,CS -Oth Operating Inc & Expend,T/A Vehicle Maintenance etc,Transport-Contract Hire,J01374,Transport Related Expenditure ,Contract Hire and Op Leasing  ,CC56,Plant Hire for Leisure,565.5,30/04/2013,R,REDACTED
552,CS -Oth Operating Inc & Expend,T/A Vehicle Maintenance etc,Transport-Contract Hire,J01374,Transport Related Expenditure ,Contract Hire and Op Leasing  ,CC56,Plant Hire for Leisure,565.5,30/04/2013,R,REDACTED
553,CS -Oth Operating Inc & Expend,T/A Vehicle Maintenance etc,Transport-Contract Hire,J01374,Transport Related Expenditure ,Contract Hire and Op Leasing  ,CC57,Plant Hire for Housing,693,30/04/2013,R,REDACTED
554,CS -Oth Operating Inc & Expend,T/A Vehicle Maintenance etc,Transport-Contract Hire,J01374,Transport Related Expenditure ,Contract Hire and Op Leasing  ,CC57,Plant Hire for Housing,940,30/04/2013,R,REDACTED
555,CS -Oth Operating Inc & Expend,T/A Vehicle Maintenance etc,Transport-Contract Hire,J01374,Transport Related Expenditure ,Contract Hire and Op Leasing  ,CC59,Plant Hire - Non-Rechargeable ,"1,452.00",30/04/2013,R,BURNT TREE VEHICLE RENTAL     
556,CS -Oth Operating Inc & Expend,T/A Vehicle Maintenance etc,Transport-Contract Hire,J01374,Transport Related Expenditure ,Contract Hire and Op Leasing  ,CC59,Plant Hire - Non-Rechargeable ,"1,452.00",30/04/2013,R,BURNT TREE VEHICLE RENTAL     
557,CS -Oth Operating Inc & Expend,T/A Vehicle Maintenance etc,Transport-Contract Hire,J01374,Transport Related Expenditure ,Contract Hire and Op Leasing  ,CC59,Plant Hire - Non-Rechargeable ,"1,452.00",30/04/2013,R,BURNT TREE VEHICLE RENTAL     
558,CS -Oth Operating Inc & Expend,T/A Vehicle Maintenance etc,Transport-Contract Hire,J01374,Transport Related Expenditure ,Contract Hire and Op Leasing  ,CC59,Plant Hire - Non-Rechargeable ,"2,238.32",30/04/2013,R,REDACTED
559,CS -Oth Operating Inc & Expend,T/A Vehicle Maintenance etc,Transport-Contract Hire,J01374,Transport Related Expenditure ,Contract Hire and Op Leasing  ,CC59,Plant Hire - Non-Rechargeable ,"3,114.88",22/03/2013,R,KENT COUNTY COUNCIL           
560,CS -Oth Operating Inc & Expend,T/A Vehicle Maintenance etc,Transport-Contract Hire,J01374,Transport Related Expenditure ,Contract Hire and Op Leasing  ,CC64,Mini Cab Hire for Education,500,30/04/2013,R,CAPITAL CARS                  
561,CS -Oth Operating Inc & Expend,T/A Vehicle Maintenance etc,Transport-Contract Hire,J01374,Transport Related Expenditure ,Contract Hire and Op Leasing  ,CC64,Mini Cab Hire for Education,500,30/04/2013,R,KINGSTON ACCESSIBILITY TRAN LT
562,CS -Oth Operating Inc & Expend,T/A Vehicle Maintenance etc,Transport-Contract Hire,J01374,Transport Related Expenditure ,Contract Hire and Op Leasing  ,CC64,Mini Cab Hire for Education,504,30/04/2013,R,BARCLAYS ASSET & SALES FINANCE
563,CS -Oth Operating Inc & Expend,T/A Vehicle Maintenance etc,Transport-Contract Hire,J01374,Transport Related Expenditure ,Contract Hire and Op Leasing  ,CC64,Mini Cab Hire for Education,525,30/04/2013,R,CAPITAL CARS                  
564,CS -Oth Operating Inc & Expend,T/A Vehicle Maintenance etc,Transport-Contract Hire,J01374,Transport Related Expenditure ,Contract Hire and Op Leasing  ,CC64,Mini Cab Hire for Education,528,01/05/2013,R,AERIAL CAR SERVICES LTD       
565,CS -Oth Operating Inc & Expend,T/A Vehicle Maintenance etc,Transport-Contract Hire,J01374,Transport Related Expenditure ,Contract Hire and Op Leasing  ,CC64,Mini Cab Hire for Education,528,30/04/2013,R,GALPINS SERVICE               
566,CS -Oth Operating Inc & Expend,T/A Vehicle Maintenance etc,Transport-Contract Hire,J01374,Transport Related Expenditure ,Contract Hire and Op Leasing  ,CC64,Mini Cab Hire for Education,528,30/04/2013,R,CAPITAL CARS                  
567,CS -Oth Operating Inc & Expend,T/A Vehicle Maintenance etc,Transport-Contract Hire,J01374,Transport Related Expenditure ,Contract Hire and Op Leasing  ,CC64,Mini Cab Hire for Education,550,30/04/2013,R,CAPITAL CARS                  
568,CS -Oth Operating Inc & Expend,T/A Vehicle Maintenance etc,Transport-Contract Hire,J01374,Transport Related Expenditure ,Contract Hire and Op Leasing  ,CC64,Mini Cab Hire for Education,550,30/04/2013,R,SHERWOOD TRANSPORT GROUP      
569,CS -Oth Operating Inc & Expend,T/A Vehicle Maintenance etc,Transport-Contract Hire,J01374,Transport Related Expenditure ,Contract Hire and Op Leasing  ,CC64,Mini Cab Hire for Education,550,30/04/2013,R,SHERWOOD TRANSPORT GROUP      
570,CS -Oth Operating Inc & Expend,T/A Vehicle Maintenance etc,Transport-Contract Hire,J01374,Transport Related Expenditure ,Contract Hire and Op Leasing  ,CC64,Mini Cab Hire for Education,552,30/04/2013,R,SILVERBURN FINANCE (UK) LTD   
571,CS -Oth Operating Inc & Expend,T/A Vehicle Maintenance etc,Transport-Contract Hire,J01374,Transport Related Expenditure ,Contract Hire and Op Leasing  ,CC64,Mini Cab Hire for Education,590,30/04/2013,R,KINGSTON ACCESSIBILITY TRAN LT
572,CS -Oth Operating Inc & Expend,T/A Vehicle Maintenance etc,Transport-Contract Hire,J01374,Transport Related Expenditure ,Contract Hire and Op Leasing  ,CC64,Mini Cab Hire for Education,598.8,30/04/2013,R,KINGSTON ACCESSIBILITY TRAN LT
573,CS -Oth Operating Inc & Expend,T/A Vehicle Maintenance etc,Transport-Contract Hire,J01374,Transport Related Expenditure ,Contract Hire and Op Leasing  ,CC64,Mini Cab Hire for Education,600,30/04/2013,R,KINGSTON ACCESSIBILITY TRAN LT
574,CS -Oth Operating Inc & Expend,T/A Vehicle Maintenance etc,Transport-Contract Hire,J01374,Transport Related Expenditure ,Contract Hire and Op Leasing  ,CC64,Mini Cab Hire for Education,630,30/04/2013,R,BARCLAYS ASSET & SALES FINANCE
575,CS -Oth Operating Inc & Expend,T/A Vehicle Maintenance etc,Transport-Contract Hire,J01374,Transport Related Expenditure ,Contract Hire and Op Leasing  ,CC64,Mini Cab Hire for Education,646.8,30/04/2013,R,SHERWOOD TRANSPORT GROUP      
576,CS -Oth Operating Inc & Expend,T/A Vehicle Maintenance etc,Transport-Contract Hire,J01374,Transport Related Expenditure ,Contract Hire and Op Leasing  ,CC64,Mini Cab Hire for Education,654.5,30/04/2013,R,SHERWOOD TRANSPORT GROUP      
577,CS -Oth Operating Inc & Expend,T/A Vehicle Maintenance etc,Transport-Contract Hire,J01374,Transport Related Expenditure ,Contract Hire and Op Leasing  ,CC64,Mini Cab Hire for Education,657,30/04/2013,R,KINGSTON ACCESSIBILITY TRAN LT
578,CS -Oth Operating Inc & Expend,T/A Vehicle Maintenance etc,Transport-Contract Hire,J01374,Transport Related Expenditure ,Contract Hire and Op Leasing  ,CC64,Mini Cab Hire for Education,672,30/04/2013,R,SILVERBURN FINANCE (UK) LTD   
579,CS -Oth Operating Inc & Expend,T/A Vehicle Maintenance etc,Transport-Contract Hire,J01374,Transport Related Expenditure ,Contract Hire and Op Leasing  ,CC64,Mini Cab Hire for Education,677,30/04/2013,R,GALPINS SERVICE               
580,CS -Oth Operating Inc & Expend,T/A Vehicle Maintenance etc,Transport-Contract Hire,J01374,Transport Related Expenditure ,Contract Hire and Op Leasing  ,CC64,Mini Cab Hire for Education,682,30/04/2013,R,A STAR TRANSPORT LIMITED      
581,CS -Oth Operating Inc & Expend,T/A Vehicle Maintenance etc,Transport-Contract Hire,J01374,Transport Related Expenditure ,Contract Hire and Op Leasing  ,CC64,Mini Cab Hire for Education,690,30/04/2013,R,CHEAM STATION CARS            
582,CS -Oth Operating Inc & Expend,T/A Vehicle Maintenance etc,Transport-Contract Hire,J01374,Transport Related Expenditure ,Contract Hire and Op Leasing  ,CC64,Mini Cab Hire for Education,713.9,30/04/2013,R,SHERWOOD TRANSPORT GROUP      
583,CS -Oth Operating Inc & Expend,T/A Vehicle Maintenance etc,Transport-Contract Hire,J01374,Transport Related Expenditure ,Contract Hire and Op Leasing  ,CC64,Mini Cab Hire for Education,720,30/04/2013,R,GALPINS SERVICE               
584,CS -Oth Operating Inc & Expend,T/A Vehicle Maintenance etc,Transport-Contract Hire,J01374,Transport Related Expenditure ,Contract Hire and Op Leasing  ,CC64,Mini Cab Hire for Education,720,30/04/2013,R,SILVERBURN FINANCE (UK) LTD   
585,CS -Oth Operating Inc & Expend,T/A Vehicle Maintenance etc,Transport-Contract Hire,J01374,Transport Related Expenditure ,Contract Hire and Op Leasing  ,CC64,Mini Cab Hire for Education,720.5,30/04/2013,R,CAPITAL CARS                  
586,CS -Oth Operating Inc & Expend,T/A Vehicle Maintenance etc,Transport-Contract Hire,J01374,Transport Related Expenditure ,Contract Hire and Op Leasing  ,CC64,Mini Cab Hire for Education,735,30/04/2013,R,NVCAR HIRE LTD                
587,CS -Oth Operating Inc & Expend,T/A Vehicle Maintenance etc,Transport-Contract Hire,J01374,Transport Related Expenditure ,Contract Hire and Op Leasing  ,CC64,Mini Cab Hire for Education,768,30/04/2013,R,KINGSTON ACCESSIBILITY TRAN LT
588,CS -Oth Operating Inc & Expend,T/A Vehicle Maintenance etc,Transport-Contract Hire,J01374,Transport Related Expenditure ,Contract Hire and Op Leasing  ,CC64,Mini Cab Hire for Education,792,30/04/2013,R,SILVERBURN FINANCE (UK) LTD   
589,CS -Oth Operating Inc & Expend,T/A Vehicle Maintenance etc,Transport-Contract Hire,J01374,Transport Related Expenditure ,Contract Hire and Op Leasing  ,CC64,Mini Cab Hire for Education,816,30/04/2013,R,BRUNSWICK CARS LTD            
590,CS -Oth Operating Inc & Expend,T/A Vehicle Maintenance etc,Transport-Contract Hire,J01374,Transport Related Expenditure ,Contract Hire and Op Leasing  ,CC64,Mini Cab Hire for Education,816,30/04/2013,R,BARCLAYS ASSET & SALES FINANCE
591,CS -Oth Operating Inc & Expend,T/A Vehicle Maintenance etc,Transport-Contract Hire,J01374,Transport Related Expenditure ,Contract Hire and Op Leasing  ,CC64,Mini Cab Hire for Education,836,30/04/2013,R,NVCAR HIRE LTD                
592,CS -Oth Operating Inc & Expend,T/A Vehicle Maintenance etc,Transport-Contract Hire,J01374,Transport Related Expenditure ,Contract Hire and Op Leasing  ,CC64,Mini Cab Hire for Education,836,30/04/2013,R,BARCLAYS ASSET & SALES FINANCE
593,CS -Oth Operating Inc & Expend,T/A Vehicle Maintenance etc,Transport-Contract Hire,J01374,Transport Related Expenditure ,Contract Hire and Op Leasing  ,CC64,Mini Cab Hire for Education,840,01/05/2013,R,CAPITAL CARS                  
594,CS -Oth Operating Inc & Expend,T/A Vehicle Maintenance etc,Transport-Contract Hire,J01374,Transport Related Expenditure ,Contract Hire and Op Leasing  ,CC64,Mini Cab Hire for Education,840,30/04/2013,R,BARCLAYS ASSET & SALES FINANCE
595,CS -Oth Operating Inc & Expend,T/A Vehicle Maintenance etc,Transport-Contract Hire,J01374,Transport Related Expenditure ,Contract Hire and Op Leasing  ,CC64,Mini Cab Hire for Education,840,30/04/2013,R,KENDALL CARS                  
596,CS -Oth Operating Inc & Expend,T/A Vehicle Maintenance etc,Transport-Contract Hire,J01374,Transport Related Expenditure ,Contract Hire and Op Leasing  ,CC64,Mini Cab Hire for Education,840,30/04/2013,R,SHERWOOD TRANSPORT GROUP      
597,CS -Oth Operating Inc & Expend,T/A Vehicle Maintenance etc,Transport-Contract Hire,J01374,Transport Related Expenditure ,Contract Hire and Op Leasing  ,CC64,Mini Cab Hire for Education,857.78,30/04/2013,R,KINGSTON ACCESSIBILITY TRAN LT
598,CS -Oth Operating Inc & Expend,T/A Vehicle Maintenance etc,Transport-Contract Hire,J01374,Transport Related Expenditure ,Contract Hire and Op Leasing  ,CC64,Mini Cab Hire for Education,858,30/04/2013,R,SILVERBURN FINANCE (UK) LTD   
599,CS -Oth Operating Inc & Expend,T/A Vehicle Maintenance etc,Transport-Contract Hire,J01374,Transport Related Expenditure ,Contract Hire and Op Leasing  ,CC64,Mini Cab Hire for Education,864,30/04/2013,R,CAPITAL CARS                  
600,CS -Oth Operating Inc & Expend,T/A Vehicle Maintenance etc,Transport-Contract Hire,J01374,Transport Related Expenditure ,Contract Hire and Op Leasing  ,CC64,Mini Cab Hire for Education,864,30/04/2013,R,SILVERBURN FINANCE (UK) LTD   
601,CS -Oth Operating Inc & Expend,T/A Vehicle Maintenance etc,Transport-Contract Hire,J01374,Transport Related Expenditure ,Contract Hire and Op Leasing  ,CC64,Mini Cab Hire for Education,864,30/04/2013,R,NVCAR HIRE LTD                
602,CS -Oth Operating Inc & Expend,T/A Vehicle Maintenance etc,Transport-Contract Hire,J01374,Transport Related Expenditure ,Contract Hire and Op Leasing  ,CC64,Mini Cab Hire for Education,876.38,30/04/2013,R,KINGSTON ACCESSIBILITY TRAN LT
603,CS -Oth Operating Inc & Expend,T/A Vehicle Maintenance etc,Transport-Contract Hire,J01374,Transport Related Expenditure ,Contract Hire and Op Leasing  ,CC64,Mini Cab Hire for Education,879.56,30/04/2013,R,KINGSTON ACCESSIBILITY TRAN LT
604,CS -Oth Operating Inc & Expend,T/A Vehicle Maintenance etc,Transport-Contract Hire,J01374,Transport Related Expenditure ,Contract Hire and Op Leasing  ,CC64,Mini Cab Hire for Education,888,30/04/2013,R,SILVERBURN FINANCE (UK) LTD   
605,CS -Oth Operating Inc & Expend,T/A Vehicle Maintenance etc,Transport-Contract Hire,J01374,Transport Related Expenditure ,Contract Hire and Op Leasing  ,CC64,Mini Cab Hire for Education,888,30/04/2013,R,CAPITAL CARS                  
606,CS -Oth Operating Inc & Expend,T/A Vehicle Maintenance etc,Transport-Contract Hire,J01374,Transport Related Expenditure ,Contract Hire and Op Leasing  ,CC64,Mini Cab Hire for Education,893,30/04/2013,R,CAPITAL CARS                  
607,CS -Oth Operating Inc & Expend,T/A Vehicle Maintenance etc,Transport-Contract Hire,J01374,Transport Related Expenditure ,Contract Hire and Op Leasing  ,CC64,Mini Cab Hire for Education,924,30/04/2013,R,NVCAR HIRE LTD                
608,CS -Oth Operating Inc & Expend,T/A Vehicle Maintenance etc,Transport-Contract Hire,J01374,Transport Related Expenditure ,Contract Hire and Op Leasing  ,CC64,Mini Cab Hire for Education,925.2,30/04/2013,R,BARCLAYS ASSET & SALES FINANCE
609,CS -Oth Operating Inc & Expend,T/A Vehicle Maintenance etc,Transport-Contract Hire,J01374,Transport Related Expenditure ,Contract Hire and Op Leasing  ,CC64,Mini Cab Hire for Education,936,30/04/2013,R,NVCAR HIRE LTD                
610,CS -Oth Operating Inc & Expend,T/A Vehicle Maintenance etc,Transport-Contract Hire,J01374,Transport Related Expenditure ,Contract Hire and Op Leasing  ,CC64,Mini Cab Hire for Education,952,30/04/2013,R,SILVERBURN FINANCE (UK) LTD   
611,CS -Oth Operating Inc & Expend,T/A Vehicle Maintenance etc,Transport-Contract Hire,J01374,Transport Related Expenditure ,Contract Hire and Op Leasing  ,CC64,Mini Cab Hire for Education,962.28,30/04/2013,R,KINGSTON ACCESSIBILITY TRAN LT
612,CS -Oth Operating Inc & Expend,T/A Vehicle Maintenance etc,Transport-Contract Hire,J01374,Transport Related Expenditure ,Contract Hire and Op Leasing  ,CC64,Mini Cab Hire for Education,968,30/04/2013,R,SHERWOOD TRANSPORT GROUP      
613,CS -Oth Operating Inc & Expend,T/A Vehicle Maintenance etc,Transport-Contract Hire,J01374,Transport Related Expenditure ,Contract Hire and Op Leasing  ,CC64,Mini Cab Hire for Education,980,30/04/2013,R,SHERWOOD TRANSPORT GROUP      
614,CS -Oth Operating Inc & Expend,T/A Vehicle Maintenance etc,Transport-Contract Hire,J01374,Transport Related Expenditure ,Contract Hire and Op Leasing  ,CC64,Mini Cab Hire for Education,"1,008.00",30/04/2013,R,BARCLAYS ASSET & SALES FINANCE
615,CS -Oth Operating Inc & Expend,T/A Vehicle Maintenance etc,Transport-Contract Hire,J01374,Transport Related Expenditure ,Contract Hire and Op Leasing  ,CC64,Mini Cab Hire for Education,"1,008.00",30/04/2013,R,BARCLAYS ASSET & SALES FINANCE
616,CS -Oth Operating Inc & Expend,T/A Vehicle Maintenance etc,Transport-Contract Hire,J01374,Transport Related Expenditure ,Contract Hire and Op Leasing  ,CC64,Mini Cab Hire for Education,"1,008.00",30/04/2013,R,SILVERBURN FINANCE (UK) LTD   
617,CS -Oth Operating Inc & Expend,T/A Vehicle Maintenance etc,Transport-Contract Hire,J01374,Transport Related Expenditure ,Contract Hire and Op Leasing  ,CC64,Mini Cab Hire for Education,"1,008.00",30/04/2013,R,CAPITAL CARS                  
618,CS -Oth Operating Inc & Expend,T/A Vehicle Maintenance etc,Transport-Contract Hire,J01374,Transport Related Expenditure ,Contract Hire and Op Leasing  ,CC64,Mini Cab Hire for Education,"1,024.98",30/04/2013,R,KINGSTON ACCESSIBILITY TRAN LT
619,CS -Oth Operating Inc & Expend,T/A Vehicle Maintenance etc,Transport-Contract Hire,J01374,Transport Related Expenditure ,Contract Hire and Op Leasing  ,CC64,Mini Cab Hire for Education,"1,045.00",30/04/2013,R,SHERWOOD TRANSPORT GROUP      
620,CS -Oth Operating Inc & Expend,T/A Vehicle Maintenance etc,Transport-Contract Hire,J01374,Transport Related Expenditure ,Contract Hire and Op Leasing  ,CC64,Mini Cab Hire for Education,"1,056.00",30/04/2013,R,KINGSTON ACCESSIBILITY TRAN LT
621,CS -Oth Operating Inc & Expend,T/A Vehicle Maintenance etc,Transport-Contract Hire,J01374,Transport Related Expenditure ,Contract Hire and Op Leasing  ,CC64,Mini Cab Hire for Education,"1,078.00",30/04/2013,R,BARCLAYS ASSET & SALES FINANCE
622,CS -Oth Operating Inc & Expend,T/A Vehicle Maintenance etc,Transport-Contract Hire,J01374,Transport Related Expenditure ,Contract Hire and Op Leasing  ,CC64,Mini Cab Hire for Education,"1,078.00",30/04/2013,R,KINGSTON ACCESSIBILITY TRAN LT
623,CS -Oth Operating Inc & Expend,T/A Vehicle Maintenance etc,Transport-Contract Hire,J01374,Transport Related Expenditure ,Contract Hire and Op Leasing  ,CC64,Mini Cab Hire for Education,"1,128.00",30/04/2013,R,CAPITAL CARS                  
624,CS -Oth Operating Inc & Expend,T/A Vehicle Maintenance etc,Transport-Contract Hire,J01374,Transport Related Expenditure ,Contract Hire and Op Leasing  ,CC64,Mini Cab Hire for Education,"1,152.00",30/04/2013,R,SILVERBURN FINANCE (UK) LTD   
625,CS -Oth Operating Inc & Expend,T/A Vehicle Maintenance etc,Transport-Contract Hire,J01374,Transport Related Expenditure ,Contract Hire and Op Leasing  ,CC64,Mini Cab Hire for Education,"1,152.00",30/04/2013,R,SILVERBURN FINANCE (UK) LTD   
626,CS -Oth Operating Inc & Expend,T/A Vehicle Maintenance etc,Transport-Contract Hire,J01374,Transport Related Expenditure ,Contract Hire and Op Leasing  ,CC64,Mini Cab Hire for Education,"1,152.00",30/04/2013,R,SILVERBURN FINANCE (UK) LTD   
627,CS -Oth Operating Inc & Expend,T/A Vehicle Maintenance etc,Transport-Contract Hire,J01374,Transport Related Expenditure ,Contract Hire and Op Leasing  ,CC64,Mini Cab Hire for Education,"1,155.00",30/04/2013,R,SHERWOOD TRANSPORT GROUP      
628,CS -Oth Operating Inc & Expend,T/A Vehicle Maintenance etc,Transport-Contract Hire,J01374,Transport Related Expenditure ,Contract Hire and Op Leasing  ,CC64,Mini Cab Hire for Education,"1,174.80",30/04/2013,R,KINGSTON ACCESSIBILITY TRAN LT
629,CS -Oth Operating Inc & Expend,T/A Vehicle Maintenance etc,Transport-Contract Hire,J01374,Transport Related Expenditure ,Contract Hire and Op Leasing  ,CC64,Mini Cab Hire for Education,"1,272.00",30/04/2013,R,CAPITAL CARS                  
630,CS -Oth Operating Inc & Expend,T/A Vehicle Maintenance etc,Transport-Contract Hire,J01374,Transport Related Expenditure ,Contract Hire and Op Leasing  ,CC64,Mini Cab Hire for Education,"1,294.80",30/04/2013,R,KINGSTON ACCESSIBILITY TRAN LT
631,CS -Oth Operating Inc & Expend,T/A Vehicle Maintenance etc,Transport-Contract Hire,J01374,Transport Related Expenditure ,Contract Hire and Op Leasing  ,CC64,Mini Cab Hire for Education,"1,295.00",01/05/2013,R,KENDALL CARS                  
632,CS -Oth Operating Inc & Expend,T/A Vehicle Maintenance etc,Transport-Contract Hire,J01374,Transport Related Expenditure ,Contract Hire and Op Leasing  ,CC64,Mini Cab Hire for Education,"1,309.00",30/04/2013,R,SHERWOOD TRANSPORT GROUP      
633,CS -Oth Operating Inc & Expend,T/A Vehicle Maintenance etc,Transport-Contract Hire,J01374,Transport Related Expenditure ,Contract Hire and Op Leasing  ,CC64,Mini Cab Hire for Education,"1,346.10",30/04/2013,R,KINGSTON ACCESSIBILITY TRAN LT
634,CS -Oth Operating Inc & Expend,T/A Vehicle Maintenance etc,Transport-Contract Hire,J01374,Transport Related Expenditure ,Contract Hire and Op Leasing  ,CC64,Mini Cab Hire for Education,"1,346.70",30/04/2013,R,KINGSTON ACCESSIBILITY TRAN LT
635,CS -Oth Operating Inc & Expend,T/A Vehicle Maintenance etc,Transport-Contract Hire,J01374,Transport Related Expenditure ,Contract Hire and Op Leasing  ,CC64,Mini Cab Hire for Education,"1,364.00",30/04/2013,R,KINGSTON ACCESSIBILITY TRAN LT
636,CS -Oth Operating Inc & Expend,T/A Vehicle Maintenance etc,Transport-Contract Hire,J01374,Transport Related Expenditure ,Contract Hire and Op Leasing  ,CC64,Mini Cab Hire for Education,"1,380.00",30/04/2013,R,NVCAR HIRE LTD                
637,CS -Oth Operating Inc & Expend,T/A Vehicle Maintenance etc,Transport-Contract Hire,J01374,Transport Related Expenditure ,Contract Hire and Op Leasing  ,CC64,Mini Cab Hire for Education,"1,392.00",30/04/2013,R,CAPITAL CARS                  
638,CS -Oth Operating Inc & Expend,T/A Vehicle Maintenance etc,Transport-Contract Hire,J01374,Transport Related Expenditure ,Contract Hire and Op Leasing  ,CC64,Mini Cab Hire for Education,"1,400.00",30/04/2013,R,KINGSTON ACCESSIBILITY TRAN LT
639,CS -Oth Operating Inc & Expend,T/A Vehicle Maintenance etc,Transport-Contract Hire,J01374,Transport Related Expenditure ,Contract Hire and Op Leasing  ,CC64,Mini Cab Hire for Education,"1,416.00",30/04/2013,R,SHERWOOD TRANSPORT GROUP      
640,CS -Oth Operating Inc & Expend,T/A Vehicle Maintenance etc,Transport-Contract Hire,J01374,Transport Related Expenditure ,Contract Hire and Op Leasing  ,CC64,Mini Cab Hire for Education,"1,430.00",30/04/2013,R,BARCLAYS ASSET & SALES FINANCE
641,CS -Oth Operating Inc & Expend,T/A Vehicle Maintenance etc,Transport-Contract Hire,J01374,Transport Related Expenditure ,Contract Hire and Op Leasing  ,CC64,Mini Cab Hire for Education,"1,438.80",30/04/2013,R,KINGSTON ACCESSIBILITY TRAN LT
642,CS -Oth Operating Inc & Expend,T/A Vehicle Maintenance etc,Transport-Contract Hire,J01374,Transport Related Expenditure ,Contract Hire and Op Leasing  ,CC64,Mini Cab Hire for Education,"1,474.80",30/04/2013,R,KINGSTON ACCESSIBILITY TRAN LT
643,CS -Oth Operating Inc & Expend,T/A Vehicle Maintenance etc,Transport-Contract Hire,J01374,Transport Related Expenditure ,Contract Hire and Op Leasing  ,CC64,Mini Cab Hire for Education,"1,507.00",30/04/2013,R,NVCAR HIRE LTD                
644,CS -Oth Operating Inc & Expend,T/A Vehicle Maintenance etc,Transport-Contract Hire,J01374,Transport Related Expenditure ,Contract Hire and Op Leasing  ,CC64,Mini Cab Hire for Education,"1,540.00",30/04/2013,R,BARCLAYS ASSET & SALES FINANCE
645,CS -Oth Operating Inc & Expend,T/A Vehicle Maintenance etc,Transport-Contract Hire,J01374,Transport Related Expenditure ,Contract Hire and Op Leasing  ,CC64,Mini Cab Hire for Education,"1,565.00",30/04/2013,R,KINGSTON ACCESSIBILITY TRAN LT
646,CS -Oth Operating Inc & Expend,T/A Vehicle Maintenance etc,Transport-Contract Hire,J01374,Transport Related Expenditure ,Contract Hire and Op Leasing  ,CC64,Mini Cab Hire for Education,"1,595.00",30/04/2013,R,SHERWOOD TRANSPORT GROUP      
647,CS -Oth Operating Inc & Expend,T/A Vehicle Maintenance etc,Transport-Contract Hire,J01374,Transport Related Expenditure ,Contract Hire and Op Leasing  ,CC64,Mini Cab Hire for Education,"1,601.76",30/04/2013,R,KINGSTON ACCESSIBILITY TRAN LT
648,CS -Oth Operating Inc & Expend,T/A Vehicle Maintenance etc,Transport-Contract Hire,J01374,Transport Related Expenditure ,Contract Hire and Op Leasing  ,CC64,Mini Cab Hire for Education,"1,680.00",30/04/2013,R,CAPITAL CARS                  
649,CS -Oth Operating Inc & Expend,T/A Vehicle Maintenance etc,Transport-Contract Hire,J01374,Transport Related Expenditure ,Contract Hire and Op Leasing  ,CC64,Mini Cab Hire for Education,"1,804.00",30/04/2013,R,BARCLAYS ASSET & SALES FINANCE
650,CS -Oth Operating Inc & Expend,T/A Vehicle Maintenance etc,Transport-Contract Hire,J01374,Transport Related Expenditure ,Contract Hire and Op Leasing  ,CC64,Mini Cab Hire for Education,"1,889.28",30/04/2013,R,SILVERBURN FINANCE (UK) LTD   
651,CS -Oth Operating Inc & Expend,T/A Vehicle Maintenance etc,Transport-Contract Hire,J01374,Transport Related Expenditure ,Contract Hire and Op Leasing  ,CC64,Mini Cab Hire for Education,"1,908.00",30/04/2013,R,SHERWOOD TRANSPORT GROUP      
652,CS -Oth Operating Inc & Expend,T/A Vehicle Maintenance etc,Transport-Contract Hire,J01374,Transport Related Expenditure ,Contract Hire and Op Leasing  ,CC64,Mini Cab Hire for Education,"1,908.00",30/04/2013,R,BRUNSWICK CARS LTD            
653,CS -Oth Operating Inc & Expend,T/A Vehicle Maintenance etc,Transport-Contract Hire,J01374,Transport Related Expenditure ,Contract Hire and Op Leasing  ,CC64,Mini Cab Hire for Education,"2,040.00",30/04/2013,R,BARCLAYS ASSET & SALES FINANCE
654,CS -Oth Operating Inc & Expend,T/A Vehicle Maintenance etc,Transport-Contract Hire,J01374,Transport Related Expenditure ,Contract Hire and Op Leasing  ,CC64,Mini Cab Hire for Education,"2,040.00",30/04/2013,R,SILVERBURN FINANCE (UK) LTD   
655,CS -Oth Operating Inc & Expend,T/A Vehicle Maintenance etc,Transport-Contract Hire,J01374,Transport Related Expenditure ,Contract Hire and Op Leasing  ,CC64,Mini Cab Hire for Education,"2,118.00",28/04/2013,R,WALLINGTON CARS & COURIERS LTD
656,CS -Oth Operating Inc & Expend,T/A Vehicle Maintenance etc,Transport-Contract Hire,J01374,Transport Related Expenditure ,Contract Hire and Op Leasing  ,CC64,Mini Cab Hire for Education,"2,240.00",30/04/2013,R,KINGSTON ACCESSIBILITY TRAN LT
657,CS -Oth Operating Inc & Expend,T/A Vehicle Maintenance etc,Transport-Contract Hire,J01374,Transport Related Expenditure ,Contract Hire and Op Leasing  ,CC64,Mini Cab Hire for Education,"2,375.00",30/04/2013,R,BARCLAYS ASSET & SALES FINANCE
658,CS -Oth Operating Inc & Expend,T/A Vehicle Maintenance etc,Transport-Contract Hire,J01374,Transport Related Expenditure ,Contract Hire and Op Leasing  ,CC66,Mini Cab Hire -Soc Serv -Child,"1,224.00",30/04/2013,R,KINGSTON ACCESSIBILITY TRAN LT
659,CS -Oth Operating Inc & Expend,T/A Vehicle Maintenance etc,Transport-Contract Hire,J01374,Transport Related Expenditure ,Contract Hire and Op Leasing  ,CC66,Mini Cab Hire -Soc Serv -Child,"1,260.00",30/04/2013,R,CAPITAL CARS                  
660,CS -Oth Operating Inc & Expend,T/A Vehicle Maintenance etc,Transport-Contract Hire,J01374,Transport Related Expenditure ,Contract Hire and Op Leasing  ,CC66,Mini Cab Hire -Soc Serv -Child,"1,359.60",30/04/2013,R,KINGSTON ACCESSIBILITY TRAN LT
661,CS -Oth Operating Inc & Expend,T/A Vehicle Maintenance etc,Transport-Contract Hire,J01374,Transport Related Expenditure ,Contract Hire and Op Leasing  ,CC66,Mini Cab Hire -Soc Serv -Child,"1,619.73",30/04/2013,R,KINGSTON ACCESSIBILITY TRAN LT
662,CS -Oth Operating Inc & Expend,T/A Vehicle Maintenance etc,Transport-Contract Hire,J01374,Transport Related Expenditure ,Contract Hire and Op Leasing  ,CC67,Mini Cab Hire -Soc Serv -Adult,513,31/03/2013,R,WALLINGTON CARS & COURIERS LTD
663,CS -Oth Operating Inc & Expend,T/A Vehicle Maintenance etc,Transport-Contract Hire,J01374,Transport Related Expenditure ,Contract Hire and Op Leasing  ,CC67,Mini Cab Hire -Soc Serv -Adult,528,30/04/2013,R,BARCLAYS ASSET & SALES FINANCE
664,CS -Oth Operating Inc & Expend,T/A Vehicle Maintenance etc,Transport-Contract Hire,J01374,Transport Related Expenditure ,Contract Hire and Op Leasing  ,CC67,Mini Cab Hire -Soc Serv -Adult,657,30/04/2013,R,KINGSTON ACCESSIBILITY TRAN LT
665,CS -Oth Operating Inc & Expend,T/A Vehicle Maintenance etc,Transport-Contract Hire,J01374,Transport Related Expenditure ,Contract Hire and Op Leasing  ,CC67,Mini Cab Hire -Soc Serv -Adult,680,30/04/2013,R,NVCAR HIRE LTD                
666,CS -Oth Operating Inc & Expend,T/A Vehicle Maintenance etc,Transport-Contract Hire,J01374,Transport Related Expenditure ,Contract Hire and Op Leasing  ,CC67,Mini Cab Hire -Soc Serv -Adult,684,30/04/2013,R,NVCAR HIRE LTD                
667,CS -Oth Operating Inc & Expend,T/A Vehicle Maintenance etc,Transport-Contract Hire,J01374,Transport Related Expenditure ,Contract Hire and Op Leasing  ,CC67,Mini Cab Hire -Soc Serv -Adult,756,30/04/2013,R,SILVERBURN FINANCE (UK) LTD   
668,CS -Oth Operating Inc & Expend,T/A Vehicle Maintenance etc,Transport-Contract Hire,J01374,Transport Related Expenditure ,Contract Hire and Op Leasing  ,CC67,Mini Cab Hire -Soc Serv -Adult,814,01/05/2013,R,AERIAL CAR SERVICES LTD       
669,CS -Oth Operating Inc & Expend,T/A Vehicle Maintenance etc,Transport-Contract Hire,J01374,Transport Related Expenditure ,Contract Hire and Op Leasing  ,CC67,Mini Cab Hire -Soc Serv -Adult,840,01/05/2013,R,BARCLAYS ASSET & SALES FINANCE
670,CS -Oth Operating Inc & Expend,T/A Vehicle Maintenance etc,Transport-Contract Hire,J01374,Transport Related Expenditure ,Contract Hire and Op Leasing  ,CC67,Mini Cab Hire -Soc Serv -Adult,840,30/04/2013,R,AERIAL CAR SERVICES LTD       
671,CS -Oth Operating Inc & Expend,T/A Vehicle Maintenance etc,Transport-Contract Hire,J01374,Transport Related Expenditure ,Contract Hire and Op Leasing  ,CC67,Mini Cab Hire -Soc Serv -Adult,910,30/04/2013,R,KINGSTON ACCESSIBILITY TRAN LT
672,CS -Oth Operating Inc & Expend,T/A Vehicle Maintenance etc,Transport-Contract Hire,J01374,Transport Related Expenditure ,Contract Hire and Op Leasing  ,CC67,Mini Cab Hire -Soc Serv -Adult,920,30/04/2013,R,CAPITAL CARS                  
673,CS -Oth Operating Inc & Expend,T/A Vehicle Maintenance etc,Transport-Contract Hire,J01374,Transport Related Expenditure ,Contract Hire and Op Leasing  ,CC67,Mini Cab Hire -Soc Serv -Adult,960,30/04/2013,R,BARCLAYS ASSET & SALES FINANCE
674,CS -Oth Operating Inc & Expend,T/A Vehicle Maintenance etc,Transport-Contract Hire,J01374,Transport Related Expenditure ,Contract Hire and Op Leasing  ,CC67,Mini Cab Hire -Soc Serv -Adult,"1,024.00",30/04/2013,R,A STAR TRANSPORT LIMITED      
675,CS -Oth Operating Inc & Expend,T/A Vehicle Maintenance etc,Transport-Contract Hire,J01374,Transport Related Expenditure ,Contract Hire and Op Leasing  ,CC67,Mini Cab Hire -Soc Serv -Adult,"1,062.00",30/04/2013,R,CAPITAL CARS                  
676,CS -Oth Operating Inc & Expend,T/A Vehicle Maintenance etc,Transport-Contract Hire,J01374,Transport Related Expenditure ,Contract Hire and Op Leasing  ,CC67,Mini Cab Hire -Soc Serv -Adult,"1,120.00",30/04/2013,R,NVCAR HIRE LTD                
677,CS -Oth Operating Inc & Expend,T/A Vehicle Maintenance etc,Transport-Contract Hire,J01374,Transport Related Expenditure ,Contract Hire and Op Leasing  ,CC67,Mini Cab Hire -Soc Serv -Adult,"1,200.00",30/04/2013,R,SHERWOOD TRANSPORT GROUP      
678,CS -Oth Operating Inc & Expend,T/A Vehicle Maintenance etc,Transport-Contract Hire,J01374,Transport Related Expenditure ,Contract Hire and Op Leasing  ,CC67,Mini Cab Hire -Soc Serv -Adult,"1,208.00",30/04/2013,R,NVCAR HIRE LTD                
679,CS -Oth Operating Inc & Expend,T/A Vehicle Maintenance etc,Transport-Contract Hire,J01374,Transport Related Expenditure ,Contract Hire and Op Leasing  ,CC67,Mini Cab Hire -Soc Serv -Adult,"1,222.00",30/04/2013,R,CAPITAL CARS                  
680,CS -Oth Operating Inc & Expend,T/A Vehicle Maintenance etc,Transport-Contract Hire,J01374,Transport Related Expenditure ,Contract Hire and Op Leasing  ,CC67,Mini Cab Hire -Soc Serv -Adult,"1,438.46",30/04/2013,R,KINGSTON ACCESSIBILITY TRAN LT
681,CS -Oth Operating Inc & Expend,T/A Vehicle Maintenance etc,Transport-Contract Hire,J01374,Transport Related Expenditure ,Contract Hire and Op Leasing  ,CC67,Mini Cab Hire -Soc Serv -Adult,"1,885.38",30/04/2013,R,KINGSTON ACCESSIBILITY TRAN LT
682,CS -Oth Operating Inc & Expend,T/A Vehicle Maintenance etc,Transport-Contract Hire,J01374,Transport Related Expenditure ,Contract Hire and Op Leasing  ,CC68,Vehicle Hire Special Projects,554.5,30/04/2013,R,BARCLAYS ASSET & SALES FINANCE
683,CS -Oth Operating Inc & Expend,T/A Vehicle Maintenance etc,Transport-Contract Hire,J01374,Transport Related Expenditure ,Contract Hire and Op Leasing  ,CC68,Vehicle Hire Special Projects,630,30/04/2013,R,BARCLAYS ASSET & SALES FINANCE
684,CS -Oth Operating Inc & Expend,T/A Vehicle Maintenance etc,Transport-Contract Hire,J01374,Transport Related Expenditure ,Contract Hire and Op Leasing  ,CC68,Vehicle Hire Special Projects,742,30/04/2013,R,SILVERBURN FINANCE (UK) LTD   
685,CS -Oth Operating Inc & Expend,T/A Vehicle Maintenance etc,Transport-Contract Hire,J01374,Transport Related Expenditure ,Contract Hire and Op Leasing  ,CC68,Vehicle Hire Special Projects,"1,656.00",30/04/2013,R,KINGSTON ACCESSIBILITY TRAN LT
686,CS -Oth Operating Inc & Expend,T/A Vehicle Maintenance etc,Transport-Contract Hire,J01374,Transport Related Expenditure ,Contract Hire and Op Leasing  ,CC68,Vehicle Hire Special Projects,"1,859.40",30/04/2013,R,KINGSTON ACCESSIBILITY TRAN LT
687,CS -Oth Operating Inc & Expend,T/A Vehicle Maintenance etc,Transport-Contract Hire,J01374,Transport Related Expenditure ,Contract Hire and Op Leasing  ,CC68,Vehicle Hire Special Projects,"2,291.00",30/04/2013,R,BARCLAYS ASSET & SALES FINANCE
688,CS -Oth Operating Inc & Expend,T/A Vehicle Maintenance etc,Transport-Workshop,J01376,Premises Related Expenditure  ,Energy Costs                  ,BB02,Electricity,"1,855.30",01/05/2013,R,EDF ENERGY                    
689,CS -Oth Operating Inc & Expend,T/A Vehicle Maintenance etc,Transport-Workshop,J01376,Premises Related Expenditure  ,Energy Costs                  ,BB03,Gas (incl. Butane),593.5,30/04/2013,R,KENT COUNTY COUNCIL           
690,CS -Oth Operating Inc & Expend,T/A Vehicle Maintenance etc,Transport-Workshop,J01376,Transport Related Expenditure ,Contract Hire and Op Leasing  ,CC60,Vehicle Hire for LB Sutton,600,30/04/2013,R,CALVERTON FACTORS LTD         
691,CS -Oth Operating Inc & Expend,T/A Vehicle Maintenance etc,Transport-Workshop,J01376,Transport Related Expenditure ,Contract Hire and Op Leasing  ,CC60,Vehicle Hire for LB Sutton,768,30/04/2013,R,BARCLAYS ASSET & SALES FINANCE
692,CS -Oth Operating Inc & Expend,T/A Vehicle Maintenance etc,Transport-Workshop,J01376,Transport Related Expenditure ,Contract Hire and Op Leasing  ,CC60,Vehicle Hire for LB Sutton,912,30/04/2013,R,CALVERTON FACTORS LTD         
693,CS -Oth Operating Inc & Expend,T/A Vehicle Maintenance etc,Transport-Workshop,J01376,Transport Related Expenditure ,Contract Hire and Op Leasing  ,CC60,Vehicle Hire for LB Sutton,946,30/04/2013,R,BARCLAYS ASSET & SALES FINANCE
694,CS -Oth Operating Inc & Expend,T/A Vehicle Maintenance etc,Transport-Workshop,J01376,Transport Related Expenditure ,Contract Hire and Op Leasing  ,CC60,Vehicle Hire for LB Sutton,990,30/04/2013,R,CALVERTON FACTORS LTD         
695,CS -Oth Operating Inc & Expend,T/A Vehicle Maintenance etc,Transport-Workshop,J01376,Transport Related Expenditure ,Contract Hire and Op Leasing  ,CC60,Vehicle Hire for LB Sutton,"1,078.00",30/04/2013,R,BARCLAYS ASSET & SALES FINANCE
696,CS -Oth Operating Inc & Expend,T/A Vehicle Maintenance etc,Transport-Workshop,J01376,Transport Related Expenditure ,Contract Hire and Op Leasing  ,CC60,Vehicle Hire for LB Sutton,"1,141.00",30/04/2013,R,BARCLAYS ASSET & SALES FINANCE
697,CS -Oth Operating Inc & Expend,T/A Vehicle Maintenance etc,Transport-Workshop,J01376,Transport Related Expenditure ,Contract Hire and Op Leasing  ,CC60,Vehicle Hire for LB Sutton,"1,236.00",30/04/2013,R,BRUNSWICK CARS LTD            
698,CS -Oth Operating Inc & Expend,T/A Vehicle Maintenance etc,Transport-Workshop,J01376,Transport Related Expenditure ,Contract Hire and Op Leasing  ,CC60,Vehicle Hire for LB Sutton,"1,290.00",30/04/2013,R,CALVERTON FACTORS LTD         
699,CS -Oth Operating Inc & Expend,T/A Vehicle Maintenance etc,Transport-Workshop,J01376,Transport Related Expenditure ,Contract Hire and Op Leasing  ,CC60,Vehicle Hire for LB Sutton,"1,428.00",30/04/2012,R,BRUNSWICK CARS LTD            
700,CS -Oth Operating Inc & Expend,T/A Vehicle Maintenance etc,Transport-Workshop,J01376,Transport Related Expenditure ,Contract Hire and Op Leasing  ,CC60,Vehicle Hire for LB Sutton,"1,680.00",30/04/2013,R,BRUNSWICK CARS LTD            
701,CS -Oth Operating Inc & Expend,T/A Vehicle Maintenance etc,Transport-Workshop,J01376,Transport Related Expenditure ,Contract Hire and Op Leasing  ,CC60,Vehicle Hire for LB Sutton,"2,480.00",03/05/2013,R,BARCLAYS ASSET & SALES FINANCE
702,Cultural Env Reg&Plan Services,Mgt & Support (Env),Estates Mgt,J01420,Supplies & Services           ,Services                      ,DF03,Consultants,"2,970.00",19/02/2013,R,REDACTED
703,Cultural Env Reg&Plan Services,Mgt & Support (Env),Estates Mgt,J01420,Supplies & Services           ,Grants and Subscriptions      ,DJ04,Subscriptions,600,26/02/2013,R,CIPFA BUSINESS LTD            
704,Cultural Env Reg&Plan Services,Mgt & Support (Env),Estates Mgt,J01420,Supplies & Services           ,Grants and Subscriptions      ,DJ04,Subscriptions,710,11/04/2013,R,RICS                          
705,CS -Oth Operating Inc & Expend,Extraordinary Items & PY Adj.,Gdn r.o. 44 S'down Rd,J01451,Premises Related Expenditure  ,RepairsAlterations&MtceOfBldgs,BA79,Security of Premises,"7,664.80",01/05/2013,R,SIGHT & SOUND                 
706,CS -Oth Operating Inc & Expend,Extraordinary Items & PY Adj.,Gdn r.o. 44 S'down Rd,J01451,Premises Related Expenditure  ,RepairsAlterations&MtceOfBldgs,BA79,Security of Premises,"8,060.00",02/04/2013,R,SIGHT & SOUND                 
707,CS -Oth Operating Inc & Expend,Extraordinary Items & PY Adj.,Housing Shops,J01533,Premises Related Expenditure  ,RepairsAlterations&MtceOfBldgs,BA01,DDM - General Building,568.29,18/12/2012,R,COFELY LIMITED                
708,CS -Oth Operating Inc & Expend,Extraordinary Items & PY Adj.,Durnsford Rd Budget,J01580,Supplies & Services           ,Services                      ,DF03,Consultants,"6,400.00",30/04/2013,R,QUINTON SCOTT                 
709,CS -Oth Operating Inc & Expend,Extraordinary Items & PY Adj.,Batsworth Rd Budget,J01689,Premises Related Expenditure  ,RepairsAlterations&MtceOfBldgs,BA06,Repairs & Maintenance General,950,17/04/2013,R,CITY&URBAN PEST CONT&HYGIENE  
710,Childrens & Education Services,Statutory & Regulatory Duties,Senior Mngt & Support Services,K01005,Supplies & Services           ,Services                      ,DF11,Counsel's fees,600,29/04/2013,R,REDACTED
711,Childrens & Education Services,Statutory & Regulatory Duties,Senior Mngt & Support Services,K01005,Supplies & Services           ,Services                      ,DF11,Counsel's fees,820,16/04/2013,R,REDACTED
712,Childrens & Education Services,Statutory & Regulatory Duties,Senior Mngt & Support Services,K01005,Supplies & Services           ,Services                      ,DF11,Counsel's fees,"2,000.00",10/05/2013,R,REDACTED
713,Childrens & Education Services,Statutory & Regulatory Duties,Senior Mngt & Support Services,K01005,Supplies & Services           ,Services                      ,DF11,Counsel's fees,"2,000.00",03/04/2013,R,REDACTED
714,Childrens & Education Services,Statutory & Regulatory Duties,Senior Mngt & Support Services,K01005,Supplies & Services           ,Services                      ,DF11,Counsel's fees,"2,733.00",24/03/2013,R,REDACTED
715,Childrens & Education Services,Statutory & Regulatory Duties,Central Administration,K01008,Supplies & Services           ,Expenses                      ,DH02,Conferences,780,15/05/2013,R,ADCS                          
716,Childrens & Education Services,Support for Cult. & Related Ed,Merton Music Foundation,K01090,Supplies & Services           ,Grants and Subscriptions      ,DJ01,Grants,"46,000.00",22/03/2013,R,MERTON MUSIC FOUNDATION       
717,Childrens & Education Services,Statutory & Regulatory Duties,Schools IT Support,K02008,Supplies & Services           ,Comms and Computing           ,DG50,Other IT Expenditure,575,10/05/2013,R,ATOMWIDE LTD                  
718,Childrens & Education Services,Statutory & Regulatory Duties,Schools IT Support,K02008,Supplies & Services           ,Comms and Computing           ,DG50,Other IT Expenditure,800,10/05/2013,R,ATOMWIDE LTD                  
719,Childrens & Education Services,Statutory & Regulatory Duties,Schools IT Support,K02008,Supplies & Services           ,Comms and Computing           ,DG50,Other IT Expenditure,"2,000.00",24/04/2013,R,ATOMWIDE LTD                  
720,Childrens & Education Services,Statutory & Regulatory Duties,Schools IT Support,K02008,Supplies & Services           ,Comms and Computing           ,DG50,Other IT Expenditure,"7,500.00",24/04/2013,R,ATOMWIDE LTD                  
721,Childrens & Education Services,Asset Management,PFI Unitary Charges,K03023,Third Party Payments          ,Private Contractors           ,EH02,Miscellaneous Hired Services,"1,120.46",28/03/2013,R,NEWSCHOOLS (MERTON) LIMITED   
722,Childrens & Education Services,Asset Management,PFI Unitary Charges,K03023,Third Party Payments          ,Private Contractors           ,EH02,Miscellaneous Hired Services,"2,695.00",26/02/2013,R,PJ HARVEY & CO LTD            
723,Childrens & Education Services,GENERATED ACCOUNT,SEN Connexions,K04016,Employees                     ,Direct Employee Expenses      ,AA17,Agency Staff & Casual Paymts,"2,400.00",06/04/2013,R,REDACTED
724,Childrens & Education Services,Statutory & Regulatory Duties,Head of Special Educatn Needs,K04017,Employees                     ,Direct Employee Expenses      ,AA17,Agency Staff & Casual Paymts,"10,000.00",19/04/2013,R,REDACTED
725,Childrens & Education Services,Statutory & Regulatory Duties,Head of Special Educatn Needs,K04017,Supplies & Services           ,Services                      ,DF03,Consultants,"1,200.00",01/05/2013,R,REDACTED
726,Childrens & Education Services,Education Psychology Service,Education Psychology.,K04018,Employees                     ,Direct Employee Expenses      ,AA17,Agency Staff & Casual Paymts,"15,000.00",15/05/2013,R,SOUTHAMPTON UNIVSERSITY       
727,Childrens & Education Services,Education Psychology Service,Education Psychology.,K04018,Supplies & Services           ,Equip Furniture/Materials     ,DA09,Equip-Purchases,"3,103.45",27/02/2013,R,GL ASSESSMENT                 
728,Childrens & Education Services,Support for SEN Pupils,Statementing-Transport,K04023,Transport Related Expenditure ,Public Transport              ,CD50,Home Sch/Coll Trans(Trav Exps),517.6,09/05/2013,R,HCP PROFESSIONAL SERVICES LTD 
729,Childrens & Education Services,Support for SEN Pupils,Statementing-Transport,K04023,Transport Related Expenditure ,Public Transport              ,CD50,Home Sch/Coll Trans(Trav Exps),880,01/05/2013,R,REDACTED
730,Childrens & Education Services,Support for SEN Pupils,Statementing-Transport,K04023,Transport Related Expenditure ,Public Transport              ,CD50,Home Sch/Coll Trans(Trav Exps),"2,320.00",27/04/2013,R,REDACTED
731,Childrens & Education Services,Behavioural Support,Statement Support Team,K04034,Employees                     ,Indirect Employee Expenses    ,AB02,Recruitment Adverts,"1,280.00",30/04/2013,R,PENNA COMMUNICATIONS (NO 2 A/C
732,Childrens & Education Services,Behavioural Support,Statement Support Team,K04034,Employees                     ,Indirect Employee Expenses    ,AB02,Recruitment Adverts,"6,347.70",30/04/2013,R,PENNA COMMUNICATIONS (NO 2 A/C
733,Childrens & Education Services,Oth U5s Provn Not Prim or Spec,Provider Support,K05078,Supplies & Services           ,Comms and Computing           ,DG02,Software Licences,"1,065.54",20/05/2013,R,CACI LIMITED                  
734,Childrens & Education Services,Pupil Referral Units,Expanded Pupil Referral Unit,K05099,Third Party Payments          ,Private Contractors           ,EH01,Miscellaneous Contrct Services,"-2,197.95",16/05/2013,R,SW LONDON ST GEORGES NHS TRUST
735,Childrens & Education Services,Pupil Referral Units,Expanded Pupil Referral Unit,K05099,Third Party Payments          ,Private Contractors           ,EH01,Miscellaneous Contrct Services,"4,865.14",28/03/2013,R,SW LONDON ST GEORGES NHS TRUST
736,Childrens & Education Services,Pupil Referral Units,Expanded Pupil Referral Unit,K05099,Third Party Payments          ,Private Contractors           ,EH01,Miscellaneous Contrct Services,"4,994.83",29/04/2013,R,SW LONDON ST GEORGES NHS TRUST
737,Childrens & Education Services,Oth U5s Provn Not Prim or Spec,GSSG Workforce Development,K05111,Employees                     ,Indirect Employee Expenses    ,AB56,Internal Training Costs,500,13/05/2013,R,REDACTED
738,Childrens & Education Services,GENERATED ACCOUNT,Children's centres,K05137,Supplies & Services           ,Comms and Computing           ,DG05,Telephones - Gen-Creditors,"2,719.20",06/03/2013,R,VIRGIN MEDIA PAYMENTS LTD     
739,Childrens & Education Services,GENERATED ACCOUNT,Children's centres,K05137,Supplies & Services           ,Comms and Computing           ,DG05,Telephones - Gen-Creditors,"2,719.20",06/03/2013,R,VIRGIN MEDIA PAYMENTS LTD     
740,Childrens & Education Services,GENERATED ACCOUNT,Children's centres,K05137,Supplies & Services           ,Comms and Computing           ,DG05,Telephones - Gen-Creditors,"2,719.20",06/03/2013,R,VIRGIN MEDIA PAYMENTS LTD     
741,Childrens & Education Services,GENERATED ACCOUNT,Children's centres,K05137,Supplies & Services           ,Comms and Computing           ,DG05,Telephones - Gen-Creditors,"2,719.92",06/03/2013,R,VIRGIN MEDIA PAYMENTS LTD     
742,Childrens & Education Services,GENERATED ACCOUNT,Children's centres,K05137,Supplies & Services           ,Comms and Computing           ,DG05,Telephones - Gen-Creditors,"2,719.92",06/03/2013,R,VIRGIN MEDIA PAYMENTS LTD     
743,Childrens & Education Services,Nursery schools,GSSG Central Administration,K05400,Supplies & Services           ,Comms and Computing           ,DG02,Software Licences,"28,047.61",20/05/2013,R,CACI LIMITED                  
744,Childrens & Education Services,GENERATED ACCOUNT,Lavender Children's Centre,K05410,Premises Related Expenditure  ,Energy Costs                  ,BB03,Gas (incl. Butane),533.2,26/04/2013,R,KENT COUNTY COUNCIL           
745,Childrens & Education Services,GENERATED ACCOUNT,Lavender Children's Centre,K05410,Premises Related Expenditure  ,Cleaning and Domestic Supplies,BH03,Cleaning Services,"1,149.04",05/05/2013,R,RE MCS CLEANING SERVICES LTD  
746,Childrens & Education Services,GENERATED ACCOUNT,Mitcham MAT (Premises),K05412,Premises Related Expenditure  ,Energy Costs                  ,BB02,Electricity,742.18,25/04/2013,R,EDF ENERGY 1 LIMITED          
747,Childrens & Education Services,GENERATED ACCOUNT,Mitcham MAT (Premises),K05412,Premises Related Expenditure  ,Cleaning and Domestic Supplies,BH03,Cleaning Services,"1,145.30",18/05/2013,R,RE MCS CLEANING SERVICES LTD  
748,Childrens & Education Services,GENERATED ACCOUNT,Mitcham MAT (Premises),K05412,Premises Related Expenditure  ,Cleaning and Domestic Supplies,BH03,Cleaning Services,"1,191.70",18/04/2013,R,RE MCS CLEANING SERVICES LTD  
749,Childrens & Education Services,Nursery schools,Lavender CC Non Childcare,K05415,Premises Related Expenditure  ,Cleaning and Domestic Supplies,BH03,Cleaning Services,882.48,03/04/2013,R,PHS GROUP PLC                 
750,Childrens & Education Services,Nursery schools,E.Years-Intergenerational Cntr,K05416,Premises Related Expenditure  ,Energy Costs                  ,BB02,Electricity,-924.75,02/05/2013,R,KENT COUNTY COUNCIL           
751,Childrens & Education Services,Nursery schools,E.Years-Intergenerational Cntr,K05416,Premises Related Expenditure  ,Energy Costs                  ,BB02,Electricity,742.31,09/04/2013,R,KENT COUNTY COUNCIL           
752,Childrens & Education Services,Nursery schools,E.Years-Intergenerational Cntr,K05416,Premises Related Expenditure  ,Energy Costs                  ,BB02,Electricity,"1,077.66",09/04/2013,R,KENT COUNTY COUNCIL           
753,Childrens & Education Services,Nursery schools,E.Years-Intergenerational Cntr,K05416,Premises Related Expenditure  ,Energy Costs                  ,BB02,Electricity,"1,083.90",09/04/2013,R,KENT COUNTY COUNCIL           
754,Childrens & Education Services,Nursery schools,E.Years-Intergenerational Cntr,K05416,Premises Related Expenditure  ,Energy Costs                  ,BB02,Electricity,"1,114.98",09/04/2013,R,KENT COUNTY COUNCIL           
755,Childrens & Education Services,Nursery schools,E.Years-Intergenerational Cntr,K05416,Premises Related Expenditure  ,Energy Costs                  ,BB02,Electricity,"1,144.46",09/04/2013,R,KENT COUNTY COUNCIL           
756,Childrens & Education Services,Nursery schools,E.Years-Intergenerational Cntr,K05416,Premises Related Expenditure  ,Energy Costs                  ,BB02,Electricity,"1,157.93",09/04/2013,R,KENT COUNTY COUNCIL           
757,Childrens & Education Services,Nursery schools,E.Years-Intergenerational Cntr,K05416,Premises Related Expenditure  ,Energy Costs                  ,BB02,Electricity,"1,169.17",09/04/2013,R,KENT COUNTY COUNCIL           
758,Childrens & Education Services,Nursery schools,E.Years-Intergenerational Cntr,K05416,Premises Related Expenditure  ,Energy Costs                  ,BB02,Electricity,"1,184.05",09/04/2013,R,KENT COUNTY COUNCIL           
759,Childrens & Education Services,Nursery schools,E.Years-Intergenerational Cntr,K05416,Premises Related Expenditure  ,Cleaning and Domestic Supplies,BH03,Cleaning Services,796.82,30/04/2013,R,BIRKIN CLEANING SERVICES LTD  
760,Childrens & Education Services,Nursery schools,E.Years-Intergenerational Cntr,K05416,Premises Related Expenditure  ,Cleaning and Domestic Supplies,BH03,Cleaning Services,966.4,26/04/2013,R,INITIAL WASHROOM SOLUTIONS    
761,Childrens & Education Services,Nursery schools,E.Years-Intergenerational Cntr,K05416,Supplies & Services           ,Services                      ,DF03,Consultants,"1,330.00",30/03/2013,R,REDACTED
762,Childrens & Education Services,Vocational - Adult Education,AE-Familiy Learning,K06041,Supplies & Services           ,Services                      ,DF30,Activities Programme,740,14/05/2013,R,HARRIS ACADEMY MERTON         
763,Childrens & Education Services,Vocational - Adult Education,AE-Adult Education Main,K06049,Premises Related Expenditure  ,Energy Costs                  ,BB02,Electricity,"2,000.00",01/05/2013,R,EDF ENERGY 1 LIMITED          
764,Childrens & Education Services,Vocational - Adult Education,AE-Adult Education Main,K06049,Premises Related Expenditure  ,Energy Costs                  ,BB02,Electricity,"3,541.63",01/05/2013,R,EDF ENERGY 1 LIMITED          
765,Childrens & Education Services,Vocational - Adult Education,AE-Adult Education Main,K06049,Premises Related Expenditure  ,Energy Costs                  ,BB03,Gas (incl. Butane),"1,893.83",26/04/2013,R,KENT COUNTY COUNCIL           
766,Childrens & Education Services,Vocational - Adult Education,AE-Adult Education Main,K06049,Premises Related Expenditure  ,Energy Costs                  ,BB03,Gas (incl. Butane),"1,995.26",14/05/2013,R,GAZPROM MARKETING&TRADING LTD 
767,Childrens & Education Services,Vocational - Adult Education,AE-Adult Education Main,K06049,Premises Related Expenditure  ,Water Services                ,BE01,Use of Water (Metered),"1,018.46",17/04/2013,R,THAMES WATER UTILITIES LTD.   
768,Childrens & Education Services,Vocational - Adult Education,AE-Adult Education Main,K06049,Premises Related Expenditure  ,Cleaning and Domestic Supplies,BH03,Cleaning Services,"2,773.59",25/04/2013,R,JULIUS RUTHERFOORD & CO LTD   
769,Childrens & Education Services,Vocational - Adult Education,AE-Adult Education Main,K06049,Supplies & Services           ,Equip Furniture/Materials     ,DA01,Equipment - R & M,"1,787.72",09/05/2013,R,CHUBB ELECTRONIC SEC. SYSTEMS 
770,Childrens & Education Services,Vocational - Adult Education,AE-Adult Education Main,K06049,Supplies & Services           ,Services                      ,DF02,Misc Advertising/Publicity,562,04/05/2013,R,NEWSQUEST (LONDON)LTD         
771,Childrens & Education Services,Vocational - Adult Education,AE-Adult Education Main,K06049,Supplies & Services           ,Services                      ,DF27,Examination Fees,"1,364.00",15/05/2013,R,ROYAL HORTICULTURAL SOCIETY   
772,Childrens & Education Services,Vocational - Adult Education,AE-Adult Education Main,K06049,Supplies & Services           ,Comms and Computing           ,DG08,Computer Hardware,750,24/04/2013,R,STRAWBERRY GLOBAL TECHNOLOGY  
773,Childrens & Education Services,Vocational - Adult Education,AE-Adult Education Main,K06049,Supplies & Services           ,Comms and Computing           ,DG08,Computer Hardware,"1,100.00",24/04/2013,R,STRAWBERRY GLOBAL TECHNOLOGY  
774,Childrens & Education Services,Vocational - Adult Education,AE-Adult Education Main,K06049,Customer and client receipts  ,Fees                          ,RB41,Tuition and Training Fee E,614,04/05/2013,R,REDACTED
775,Childrens & Education Services,Vocational - Adult Education,AE-Learner Support Fund-Access,K06050,Customer and client receipts  ,Fees                          ,RB41,Tuition and Training Fee E,669.22,15/05/2013,R,REDACTED
776,Childrens & Education Services,Youth Centres (Residential),Youth Service,K06053,Supplies & Services           ,Expenses                      ,DH12,Young Peoples Expenses,840.63,12/04/2013,R,UK YOUTH                      
777,Childrens & Education Services,Youth Centres (Residential),South W'don Yth Ctre,K06056,Premises Related Expenditure  ,Rents                         ,BC03,Room/venue rental hire,"1,500.00",16/05/2013,R,YMCA LONDON SOUTH WEST        
778,Childrens & Education Services,Vocational - Adult Education,AE-Family Literacy,K06082,Supplies & Services           ,Services                      ,DF30,Activities Programme,566,02/03/2013,R,ST MARKS FAMILY CENTRE        
779,Childrens & Education Services,Youth Centres (Residential),PAYP Moving Forward in Life,K06092,Premises Related Expenditure  ,RepairsAlterations&MtceOfBldgs,BA01,DDM - General Building,896.75,24/04/2013,R,EUROVIA INFRASTRUCTURE LTD    
780,Childrens & Education Services,Youth Centres (Residential),PAYP Moving Forward in Life,K06092,Premises Related Expenditure  ,Energy Costs                  ,BB02,Electricity,843.43,23/04/2013,R,EDF ENERGY                    
781,Childrens & Education Services,Youth Centres (Residential),PAYP Moving Forward in Life,K06092,Supplies & Services           ,Comms and Computing           ,DG05,Telephones - Gen-Creditors,"2,719.92",06/03/2013,R,VIRGIN MEDIA PAYMENTS LTD     
782,Childrens & Education Services,Youth Centres (Residential),PAYP Moving Forward in Life,K06092,Supplies & Services           ,Comms and Computing           ,DG05,Telephones - Gen-Creditors,"4,437.00",06/03/2013,R,VIRGIN MEDIA PAYMENTS LTD     
783,Childrens & Education Services,Pupil Support,Children & Yth Participation,K06115,Employees                     ,Indirect Employee Expenses    ,AB57,External Training Costs,"2,000.00",01/05/2013,R,YVONNE FIELDS ASSOCIATES      
784,Childrens & Education Services,Pupil Support,Children & Yth Participation,K06115,Third Party Payments          ,Private Contractors           ,EH01,Miscellaneous Contrct Services,"1,776.00",07/05/2013,R,VICTOR FILMS LTD              
785,Childrens & Education Services,Asset Management,Premises and Contracts,K08069,Premises Related Expenditure  ,Rents                         ,BC03,Room/venue rental hire,680.34,01/05/2013,R,PORTAKABIN LIMITED            
786,Childrens & Education Services,Asset Management,S106 Bid,K08077,Premises Related Expenditure  ,RepairsAlterations&MtceOfBldgs,BA79,Security of Premises,"9,310.10",01/05/2013,R,SIGHT & SOUND                 
787,Childrens & Education Services,Asset Management,S106 Bid,K08077,Premises Related Expenditure  ,Rents                         ,BC01,Miscellaneous Rents,"3,714.23",08/05/2013,R,BOSHIRE LTD                   
788,Childrens & Education Services,Asset Management,Centre Commissioned Servs,K08078,Supplies & Services           ,Grants and Subscriptions      ,DJ01,Grants,599.2,28/03/2013,R,COLLIERS WOOD RESIDENTS ASSOC 
789,Childrens & Education Services,Asset Management,Centre Commissioned Servs,K08078,Supplies & Services           ,Grants and Subscriptions      ,DJ01,Grants,"2,000.00",18/04/2013,R,COLLIERS WOOD RESIDENTS ASSOC 
790,Childrens & Education Services,Asset Management,Centre Commissioned Servs,K08078,Supplies & Services           ,Grants and Subscriptions      ,DJ01,Grants,"2,500.00",11/04/2013,R,CARERS SUPPORT MERTON         
791,Childrens & Education Services,Asset Management,Centre Commissioned Servs,K08078,Supplies & Services           ,Grants and Subscriptions      ,DJ01,Grants,"3,900.00",28/03/2013,R,COLLIERS WOOD RESIDENTS ASSOC 
792,Childrens & Education Services,Asset Management,Centre Commissioned Servs,K08078,Supplies & Services           ,Grants and Subscriptions      ,DJ01,Grants,"4,950.00",09/05/2013,R,PLAY ASOC HAMMERSMITH & FULHAM
793,Childrens & Education Services,Asset Management,Centre Commissioned Servs,K08078,Supplies & Services           ,Grants and Subscriptions      ,DJ01,Grants,"5,175.20",14/03/2013,R,CRICKET GREEN SCHOOL          
794,Childrens & Education Services,Asset Management,Centre Commissioned Servs,K08078,Supplies & Services           ,Grants and Subscriptions      ,DJ01,Grants,"5,878.40",17/05/2013,R,LEARN THROUGH SPORT           
795,Childrens & Education Services,Asset Management,Centre Commissioned Servs,K08078,Supplies & Services           ,Grants and Subscriptions      ,DJ01,Grants,"6,250.00",07/05/2013,R,PRE-SCHOOL LEARNING ALLIANCE  
796,Childrens & Education Services,Asset Management,Centre Commissioned Servs,K08078,Supplies & Services           ,Grants and Subscriptions      ,DJ01,Grants,"7,750.00",09/05/2013,R,VOLUNTEER CENTRE MERTON       
797,Childrens & Education Services,Asset Management,Centre Commissioned Servs,K08078,Supplies & Services           ,Grants and Subscriptions      ,DJ01,Grants,"18,742.24",29/04/2013,R,ST MARKS FAMILY CENTRE        
798,Childrens & Education Services,Asset Management,Centre Commissioned Servs,K08078,Supplies & Services           ,Grants and Subscriptions      ,DJ01,Grants,"24,623.50",23/04/2013,R,HOME-START MERTON             
799,Childrens & Education Services,Facilitating School Improvemnt,SSQ,K09077,Employees                     ,Indirect Employee Expenses    ,AB02,Recruitment Adverts,"2,490.00",30/04/2013,R,PENNA COMMUNICATIONS (NO 2 A/C
800,Childrens & Education Services,Facilitating School Improvemnt,SSQ,K09077,Supplies & Services           ,Equip Furniture/Materials     ,DA58,Education Materials,-756,18/04/2013,R,STORMFRONT RETAIL LTD         
801,Childrens & Education Services,Facilitating School Improvemnt,SSQ,K09077,Supplies & Services           ,Equip Furniture/Materials     ,DA58,Education Materials,967,23/04/2013,R,STORMFRONT RETAIL LTD         
802,Childrens & Education Services,Facilitating School Improvemnt,SSQ,K09077,Supplies & Services           ,Services                      ,DF03,Consultants,"1,500.00",01/05/2013,R,REDACTED
803,Childrens & Education Services,Facilitating School Improvemnt,SSQ,K09077,Supplies & Services           ,Comms and Computing           ,DG50,Other IT Expenditure,"15,070.00",21/03/2013,R,WEBBASED                      
804,Childrens & Education Services,Facilitating School Improvemnt,SSQ,K09077,Supplies & Services           ,Grants and Subscriptions      ,DJ04,Subscriptions,"2,402.90",29/04/2013,R,CLEAPSS                       
805,Childrens & Education Services,Asset Management,Stouthall,K09082,Premises Related Expenditure  ,Energy Costs                  ,BB03,Gas (incl. Butane),789.77,25/04/2013,R,FLOGAS CO UK                  
806,Childrens & Education Services,Statutory & Regulatory Duties,Profess Develop Cntre,K09084,Premises Related Expenditure  ,Energy Costs                  ,BB02,Electricity,"3,348.53",01/05/2013,R,EDF ENERGY 1 LIMITED          
807,Childrens & Education Services,Statutory & Regulatory Duties,Profess Develop Cntre,K09084,Premises Related Expenditure  ,Cleaning and Domestic Supplies,BH03,Cleaning Services,"2,932.69",25/04/2013,R,JULIUS RUTHERFOORD & CO LTD   
808,Childrens & Education Services,Sch Meals & Milk-Not Delegated,Free School Meals,K90002,Premises Related Expenditure  ,RepairsAlterations&MtceOfBldgs,BA01,DDM - General Building,"1,043.19",08/05/2013,R,FIRST IN SERVICE              
809,Childrens & Education Services,Sch Meals & Milk-Not Delegated,Free School Meals,K90002,Supplies & Services           ,Equip Furniture/Materials     ,DA70,Milk and Meals,"11,214.24",09/04/2013,R,ISS COLLECTIONS LTD           
810,Childrens & Education Services,Sch Meals & Milk-Not Delegated,Free School Meals,K90002,Supplies & Services           ,Grants and Subscriptions      ,DJ80,Free School Meals,"205,505.04",09/04/2013,R,ISS COLLECTIONS LTD           
811,Childrens & Education Services,Facilitating School Improvemnt,Virtual Schools - Home Tutors,K90015,Employees                     ,Direct Employee Expenses      ,AA17,Agency Staff & Casual Paymts,512,30/04/2013,R,REDACTED
812,Childrens & Education Services,Facilitating School Improvemnt,Virtual Schools - Home Tutors,K90015,Employees                     ,Direct Employee Expenses      ,AA17,Agency Staff & Casual Paymts,659,30/04/2013,R,REDACTED
813,Childrens & Education Services,Support for SEN Pupils,Non-Delegated Statements,K90024,Employees                     ,Direct Employee Expenses      ,AA17,Agency Staff & Casual Paymts,525,14/04/2013,R,REDACTED
814,Childrens & Education Services,Support for SEN Pupils,Non-Delegated Statements,K90024,Employees                     ,Direct Employee Expenses      ,AA17,Agency Staff & Casual Paymts,620,30/04/2013,R,REDACTED
815,Childrens & Education Services,Support for SEN Pupils,Non-Delegated Statements,K90024,Employees                     ,Direct Employee Expenses      ,AA17,Agency Staff & Casual Paymts,830,19/04/2013,R,REDACTED
816,Childrens & Education Services,Support for SEN Pupils,Non-Delegated Statements,K90024,Employees                     ,Direct Employee Expenses      ,AA17,Agency Staff & Casual Paymts,875.76,30/04/2013,R,REDACTED
817,Childrens & Education Services,Support for SEN Pupils,Non-Delegated Statements,K90024,Employees                     ,Direct Employee Expenses      ,AA17,Agency Staff & Casual Paymts,885,30/04/2013,R,REDACTED
818,Childrens & Education Services,Support for SEN Pupils,Non-Delegated Statements,K90024,Employees                     ,Direct Employee Expenses      ,AA17,Agency Staff & Casual Paymts,"1,200.00",08/05/2013,R,REDACTED
819,Childrens & Education Services,Support for SEN Pupils,Non-Delegated Statements,K90024,Employees                     ,Direct Employee Expenses      ,AA17,Agency Staff & Casual Paymts,"1,235.00",28/03/2013,R,REDACTED
820,Childrens & Education Services,Support for SEN Pupils,Non-Delegated Statements,K90024,Supplies & Services           ,Services                      ,DF11,Counsel's fees,"1,012.50",13/05/2013,R,REDACTED
821,Childrens & Education Services,Support for SEN Pupils,Non-Delegated Statements,K90024,Third Party Payments          ,Other Local Authorities       ,EB50,OLA-Payments - Day Schools,"10,170.00",10/05/2013,R,BEDELSFORD SCHOOL             
822,Childrens & Education Services,Support for SEN Pupils,Non-Delegated Statements,K90024,Third Party Payments          ,Other Local Authorities       ,EB55,Placements,"1,915.80",01/05/2013,R,BOW LANE PRE-SCHOOL           
823,Childrens & Education Services,Support for SEN Pupils,Non-Delegated Statements,K90024,Third Party Payments          ,Other Local Authorities       ,EB55,Placements,"4,625.38",26/04/2013,R,BRAESIDE DAY NURSERY          
824,Childrens & Education Services,Support for SEN Pupils,Non-Delegated Statements,K90024,Third Party Payments          ,Other Establishments          ,EG01,Alternative SEN Provision,525,25/04/2013,R,SMART TEACHERS                
825,Childrens & Education Services,Support for SEN Pupils,Non-Delegated Statements,K90024,Third Party Payments          ,Other Establishments          ,EG01,Alternative SEN Provision,553,20/05/2013,R,HA TUTORS LTD                 
826,Childrens & Education Services,Support for SEN Pupils,Non-Delegated Statements,K90024,Third Party Payments          ,Other Establishments          ,EG01,Alternative SEN Provision,594,29/04/2013,R,HA TUTORS LTD                 
827,Childrens & Education Services,Support for SEN Pupils,Non-Delegated Statements,K90024,Third Party Payments          ,Other Establishments          ,EG01,Alternative SEN Provision,594,06/05/2013,R,HA TUTORS LTD                 
828,Childrens & Education Services,Support for SEN Pupils,Non-Delegated Statements,K90024,Third Party Payments          ,Other Establishments          ,EG01,Alternative SEN Provision,594,22/04/2013,R,HA TUTORS LTD                 
829,Childrens & Education Services,Support for SEN Pupils,Non-Delegated Statements,K90024,Third Party Payments          ,Other Establishments          ,EG01,Alternative SEN Provision,836,13/05/2013,R,HA TUTORS LTD                 
830,Childrens & Education Services,Support for SEN Pupils,Non-Delegated Statements,K90024,Third Party Payments          ,Other Establishments          ,EG01,Alternative SEN Provision,"1,045.00",25/04/2013,R,HA TUTORS LTD                 
831,Childrens & Education Services,Support for SEN Pupils,Non-Delegated Statements,K90024,Third Party Payments          ,Other Establishments          ,EG01,Alternative SEN Provision,"1,178.40",19/05/2013,R,REDACTED
832,Childrens & Education Services,Support for SEN Pupils,Non-Delegated Statements,K90024,Third Party Payments          ,Other Establishments          ,EG01,Alternative SEN Provision,"1,250.00",08/04/2013,R,WANDLE VALLEY SCHOOL          
833,Childrens & Education Services,Support for SEN Pupils,Non-Delegated Statements,K90024,Third Party Payments          ,Other Establishments          ,EG01,Alternative SEN Provision,"1,254.00",01/05/2013,R,HA TUTORS LTD                 
834,Childrens & Education Services,Support for SEN Pupils,Non-Delegated Statements,K90024,Third Party Payments          ,Other Establishments          ,EG01,Alternative SEN Provision,"1,927.55",19/04/2013,R,REDACTED
835,Childrens & Education Services,Support for SEN Pupils,Non-Delegated Statements,K90024,Third Party Payments          ,Other Establishments          ,EG50,Ind Day Schs Payments,"2,420.70",25/03/2013,R,MORE HOUSE SCHOOL             
836,Childrens & Education Services,Support for SEN Pupils,Non-Delegated Statements,K90024,Third Party Payments          ,Other Establishments          ,EG50,Ind Day Schs Payments,"3,404.40",25/03/2013,R,MORE HOUSE SCHOOL             
837,Childrens & Education Services,Support for SEN Pupils,Non-Delegated Statements,K90024,Third Party Payments          ,Other Establishments          ,EG50,Ind Day Schs Payments,"3,852.50",25/03/2013,R,MORE HOUSE SCHOOL             
838,Childrens & Education Services,Support for SEN Pupils,Non-Delegated Statements,K90024,Third Party Payments          ,Other Establishments          ,EG50,Ind Day Schs Payments,"3,913.98",02/04/2013,R,THE STUDY(WIMBLEDON)LTD       
839,Childrens & Education Services,Support for SEN Pupils,Non-Delegated Statements,K90024,Third Party Payments          ,Other Establishments          ,EG50,Ind Day Schs Payments,"5,135.00",09/05/2013,R,LVS HASSOCKS                  
840,Childrens & Education Services,Support for SEN Pupils,Non-Delegated Statements,K90024,Third Party Payments          ,Other Establishments          ,EG50,Ind Day Schs Payments,"5,435.00",25/03/2013,R,MORE HOUSE SCHOOL             
841,Childrens & Education Services,Support for SEN Pupils,Non-Delegated Statements,K90024,Third Party Payments          ,Other Establishments          ,EG50,Ind Day Schs Payments,"5,623.00",28/03/2013,R,THE LINK PRIMARY DAY SCHOOL   
842,Childrens & Education Services,Support for SEN Pupils,Non-Delegated Statements,K90024,Third Party Payments          ,Other Establishments          ,EG50,Ind Day Schs Payments,"6,692.00",28/03/2013,R,THE LINK PRIMARY DAY SCHOOL   
843,Childrens & Education Services,Support for SEN Pupils,Non-Delegated Statements,K90024,Third Party Payments          ,Other Establishments          ,EG50,Ind Day Schs Payments,"6,692.00",28/03/2013,R,THE LINK PRIMARY DAY SCHOOL   
844,Childrens & Education Services,Support for SEN Pupils,Non-Delegated Statements,K90024,Third Party Payments          ,Other Establishments          ,EG50,Ind Day Schs Payments,"6,692.00",28/03/2013,R,THE LINK PRIMARY DAY SCHOOL   
845,Childrens & Education Services,Support for SEN Pupils,Non-Delegated Statements,K90024,Third Party Payments          ,Other Establishments          ,EG50,Ind Day Schs Payments,"8,365.00",02/04/2013,R,THE MOAT SCHOOL               
846,Childrens & Education Services,Support for SEN Pupils,Non-Delegated Statements,K90024,Third Party Payments          ,Other Establishments          ,EG50,Ind Day Schs Payments,"8,365.00",02/04/2013,R,THE MOAT SCHOOL               
847,Childrens & Education Services,Support for SEN Pupils,Non-Delegated Statements,K90024,Third Party Payments          ,Other Establishments          ,EG50,Ind Day Schs Payments,"10,855.00",03/04/2013,R,ST JOSEPHS SCHOOL             
848,Childrens & Education Services,Support for SEN Pupils,Non-Delegated Statements,K90024,Third Party Payments          ,Other Establishments          ,EG50,Ind Day Schs Payments,"11,615.00",07/04/2013,R,BLOSSOM HOUSE SCHOOL          
849,Childrens & Education Services,Support for SEN Pupils,Non-Delegated Statements,K90024,Third Party Payments          ,Other Establishments          ,EG50,Ind Day Schs Payments,"12,093.67",10/05/2013,R,EAGLE HOUSE SCHOOL (SUTTON)   
850,Childrens & Education Services,Support for SEN Pupils,Non-Delegated Statements,K90024,Third Party Payments          ,Other Establishments          ,EG50,Ind Day Schs Payments,"16,618.34",10/05/2013,R,EAGLE HOUSE SCHOOL (SUTTON)   
851,Childrens & Education Services,Support for SEN Pupils,Non-Delegated Statements,K90024,Third Party Payments          ,Other Establishments          ,EG50,Ind Day Schs Payments,"16,618.34",15/05/2013,R,EAGLE HOUSE SCHOOL (SUTTON)   
852,Childrens & Education Services,Support for SEN Pupils,Non-Delegated Statements,K90024,Third Party Payments          ,Other Establishments          ,EG50,Ind Day Schs Payments,"16,618.34",10/05/2013,R,EAGLE HOUSE SCHOOL (SUTTON)   
853,Childrens & Education Services,Support for SEN Pupils,Non-Delegated Statements,K90024,Third Party Payments          ,Other Establishments          ,EG50,Ind Day Schs Payments,"17,038.00",03/04/2013,R,ST JOSEPHS SCHOOL             
854,Childrens & Education Services,Support for SEN Pupils,Non-Delegated Statements,K90024,Third Party Payments          ,Other Establishments          ,EG50,Ind Day Schs Payments,"18,291.01",16/04/2013,R,THE CHILDRENS TRUST           
855,Childrens & Education Services,Support for SEN Pupils,Non-Delegated Statements,K90024,Third Party Payments          ,Other Establishments          ,EG50,Ind Day Schs Payments,"18,584.00",03/04/2013,R,ST JOSEPHS SCHOOL             
856,Childrens & Education Services,Support for SEN Pupils,Non-Delegated Statements,K90024,Third Party Payments          ,Other Establishments          ,EG50,Ind Day Schs Payments,"18,939.34",08/04/2013,R,JIGSAW                        
857,Childrens & Education Services,Support for SEN Pupils,Non-Delegated Statements,K90024,Third Party Payments          ,Other Establishments          ,EG50,Ind Day Schs Payments,"19,302.00",03/04/2013,R,ST JOSEPHS SCHOOL             
858,Childrens & Education Services,Support for SEN Pupils,Non-Delegated Statements,K90024,Third Party Payments          ,Other Establishments          ,EG50,Ind Day Schs Payments,"30,080.00",20/03/2013,R,PAPILLON HOUSE SCHOOL         
859,Childrens & Education Services,Behavioural Support,Sensory Team,K90026,Employees                     ,Direct Employee Expenses      ,AA17,Agency Staff & Casual Paymts,600,13/05/2013,R,REDACTED
860,Childrens & Education Services,Behavioural Support,Sensory Team,K90026,Employees                     ,Direct Employee Expenses      ,AA17,Agency Staff & Casual Paymts,"1,200.00",01/05/2013,R,REDACTED
861,Childrens & Education Services,Admissions & Planning Sch Prov,Retained Schools Budgets,K90030,Supplies & Services           ,Prntng Stnry Gen Off Exp      ,DE22,Marketing,"5,725.00",30/04/2013,R,GREBOT DONNELLY  ASSOCIAT. LTD
862,Childrens & Education Services,Admissions & Planning Sch Prov,Retained Schools Budgets,K90030,Supplies & Services           ,Services                      ,DF03,Consultants,"6,600.00",03/05/2013,R,END USER LTD                  
863,Childrens & Education Services,Facilitating School Improvemnt,SSQ CORE OFFER (DSG),K90040,Supplies & Services           ,Services                      ,DF03,Consultants,"1,275.00",30/04/2013,R,REDACTED
864,Childrens & Education Services,Facilitating School Improvemnt,SSQ CORE OFFER (DSG),K90040,Supplies & Services           ,Services                      ,DF03,Consultants,"15,000.00",16/05/2013,R,LONDON BOROUGH OF SUTTON      
865,Childrens & Education Services,Facilitating School Improvemnt,SSQ CORE OFFER (DSG),K90040,Supplies & Services           ,Expenses                      ,DH02,Conferences,641.2,18/01/2013,R,INNOVATION IN EDUCATION       
866,Childrens & Education Services,Nursery schools,EARLY YEARS NURSERY GRANTS,K90042,Supplies & Services           ,Grants and Subscriptions      ,DJ57,Nursery Grant Payment-4yr olds,812.49,23/05/2013,R,JAM KIDS NURSERY              
867,Childrens & Education Services,Nursery schools,EARLY YEARS NURSERY GRANTS,K90042,Supplies & Services           ,Grants and Subscriptions      ,DJ57,Nursery Grant Payment-4yr olds,972,03/05/2013,R,REDACTED
868,Childrens & Education Services,Nursery schools,EARLY YEARS NURSERY GRANTS,K90042,Supplies & Services           ,Grants and Subscriptions      ,DJ57,Nursery Grant Payment-4yr olds,"1,663.20",10/05/2013,R,ACORN NURSERY                 
869,Childrens & Education Services,Nursery schools,EARLY YEARS NURSERY GRANTS,K90042,Supplies & Services           ,Grants and Subscriptions      ,DJ57,Nursery Grant Payment-4yr olds,"7,207.20",03/05/2013,R,EARLY YEARS NURSERY           
870,Childrens & Education Services,Nursery schools,EARLY YEARS NURSERY GRANTS,K90042,Supplies & Services           ,Grants and Subscriptions      ,DJ57,Nursery Grant Payment-4yr olds,"7,667.35",03/05/2013,R,JAM KIDS NURSERY              
871,Childrens & Education Services,Nursery schools,EARLY YEARS NURSERY GRANTS,K90042,Supplies & Services           ,Grants and Subscriptions      ,DJ57,Nursery Grant Payment-4yr olds,"7,813.26",21/05/2013,R,WIMBLEDON DAY NURSERY         
872,Childrens & Education Services,Nursery schools,EARLY YEARS NURSERY GRANTS,K90042,Supplies & Services           ,Grants and Subscriptions      ,DJ57,Nursery Grant Payment-4yr olds,"8,870.40",03/05/2013,R,LEAPFROG DAY NURSERIES        
873,Childrens & Education Services,Nursery schools,EARLY YEARS NURSERY GRANTS,K90042,Supplies & Services           ,Grants and Subscriptions      ,DJ58,Nursery Grant Payment-3yr olds,506.22,21/05/2013,R,WIMBLEDON DAY NURSERY         
874,Childrens & Education Services,Support for SEN Pupils,ART SEN Residential (DSG),K90050,Third Party Payments          ,Other Establishments          ,EG51,Ind Resid Schs Payments,"9,907.00",25/03/2013,R,MARY HARE GRAMMAR SCHOOL      
875,Childrens & Education Services,Support for SEN Pupils,ART SEN Residential (DSG),K90050,Third Party Payments          ,Other Establishments          ,EG51,Ind Resid Schs Payments,"12,084.00",18/04/2013,R,THE RAYNERS SPECIAL EDUC TRUST
876,Childrens & Education Services,Support for SEN Pupils,ART SEN Residential (DSG),K90050,Third Party Payments          ,Other Establishments          ,EG51,Ind Resid Schs Payments,"15,569.66",26/02/2013,R,MUNTHAM HOUSE SCHOOL          
877,Childrens & Education Services,Support for SEN Pupils,ART SEN Residential (DSG),K90050,Third Party Payments          ,Other Establishments          ,EG51,Ind Resid Schs Payments,"18,372.00",15/02/2013,R,PHILPOTS MANOR SCHOOL         
878,Childrens & Education Services,Support for SEN Pupils,ART SEN Residential (DSG),K90050,Third Party Payments          ,Other Establishments          ,EG51,Ind Resid Schs Payments,"22,445.83",18/02/2013,R,PRIORS COURT FOUNDATION       
879,Childrens & Education Services,Nursery schools,2Year Old Offer                         ,K90051,Supplies & Services           ,Grants and Subscriptions      ,DJ01,Grants,972,31/05/2013,R,HASLEMERE HOUSE DAY NURSERY   
880,Childrens & Education Services,Nursery schools,2Year Old Offer                         ,K90051,Supplies & Services           ,Grants and Subscriptions      ,DJ01,Grants,972,28/05/2013,R,HASLEMERE HOUSE DAY NURSERY   
881,Childrens & Education Services,Nursery schools,2Year Old Offer                         ,K90051,Supplies & Services           ,Grants and Subscriptions      ,DJ01,Grants,972,31/05/2013,R,JAM KIDS NURSERY              
882,Childrens & Education Services,Nursery schools,2Year Old Offer                         ,K90051,Supplies & Services           ,Grants and Subscriptions      ,DJ01,Grants,972,03/05/2013,R,HASLEMERE HOUSE DAY NURSERY   
883,Childrens & Education Services,Nursery schools,2Year Old Offer                         ,K90051,Supplies & Services           ,Grants and Subscriptions      ,DJ01,Grants,"1,080.00",03/05/2013,R,ROSEHILL NURSERY              
884,Childrens & Education Services,Nursery schools,2Year Old Offer                         ,K90051,Supplies & Services           ,Grants and Subscriptions      ,DJ01,Grants,"1,080.00",03/05/2013,R,ROSEHILL NURSERY              
885,Childrens & Education Services,Nursery schools,2Year Old Offer                         ,K90051,Supplies & Services           ,Grants and Subscriptions      ,DJ01,Grants,"1,080.00",03/05/2013,R,ROSEHILL NURSERY              
886,Childrens & Education Services,Nursery schools,2Year Old Offer                         ,K90051,Supplies & Services           ,Grants and Subscriptions      ,DJ01,Grants,"1,080.00",03/05/2013,R,ROSEHILL NURSERY              
887,Childrens & Education Services,Nursery schools,2Year Old Offer                         ,K90051,Supplies & Services           ,Grants and Subscriptions      ,DJ01,Grants,"31,104.00",14/05/2013,R,IVY GARDENS CHILDREN' S CENTRE
888,Cultural Env Reg&Plan Services,Library DoS not split,Libraries Service-Civic Centre,L50001,Supplies & Services           ,Prntng Stnry Gen Off Exp      ,DE03,Stationery,900,16/05/2013,R,3M UNITED KINGDOM PLC         
889,Cultural Env Reg&Plan Services,Library DoS not split,Libraries Service-Civic Centre,L50001,Supplies & Services           ,Comms and Computing           ,DG50,Other IT Expenditure,"1,026.00",15/05/2013,R,AXIELL                        
890,Cultural Env Reg&Plan Services,Heritage,Merton Memories                         ,L83067,Supplies & Services           ,Prntng Stnry Gen Off Exp      ,DE03,Stationery,"1,009.00",25/04/2013,R,CONSERVATION BY DESIGN LIMITED
891,Cultural Env Reg&Plan Services,Library DoS not split,MITCHAM LIBRARY,L83071,Premises Related Expenditure  ,Cleaning and Domestic Supplies,BH03,Cleaning Services,973.81,30/04/2013,R,BIRKIN CLEANING SERVICES LTD  
892,Cultural Env Reg&Plan Services,Library DoS not split,Donald Hope Library,L83072,Premises Related Expenditure  ,Energy Costs                  ,BB03,Gas (incl. Butane),522.15,15/02/2013,R,KENT COUNTY COUNCIL           
893,Cultural Env Reg&Plan Services,Library DoS not split,Donald Hope Library,L83072,Premises Related Expenditure  ,Energy Costs                  ,BB03,Gas (incl. Butane),"1,198.45",15/02/2013,R,KENT COUNTY COUNCIL           
894,Cultural Env Reg&Plan Services,Library DoS not split,Donald Hope Library,L83072,Premises Related Expenditure  ,Energy Costs                  ,BB03,Gas (incl. Butane),"1,363.88",15/02/2013,R,KENT COUNTY COUNCIL           
895,Cultural Env Reg&Plan Services,Library DoS not split,Donald Hope Library,L83072,Premises Related Expenditure  ,Rents                         ,BC01,Miscellaneous Rents,"-11,361.50",03/05/2013,R,MOSSER LTD                    
896,Cultural Env Reg&Plan Services,Library DoS not split,Donald Hope Library,L83072,Premises Related Expenditure  ,Rents                         ,BC01,Miscellaneous Rents,"11,361.50",03/05/2013,R,MOSSER LTD                    
897,Cultural Env Reg&Plan Services,Library DoS not split,Donald Hope Library,L83072,Premises Related Expenditure  ,Rents                         ,BC01,Miscellaneous Rents,"11,361.50",24/05/2013,R,MOSSER LTD                    
898,Cultural Env Reg&Plan Services,Library DoS not split,Pollards Hill Library,L83073,Premises Related Expenditure  ,Cleaning and Domestic Supplies,BH03,Cleaning Services,943.91,30/04/2013,R,BIRKIN CLEANING SERVICES LTD  
899,Cultural Env Reg&Plan Services,Library DoS not split,Peoples Network Project (NOF),L83078,Supplies & Services           ,Comms and Computing           ,DG15,Network Maintenance,"6,249.96",06/03/2013,R,VIRGIN MEDIA PAYMENTS LTD     
900,Cultural Env Reg&Plan Services,Library DoS not split,Peoples Network Project (NOF),L83078,Supplies & Services           ,Comms and Computing           ,DG15,Network Maintenance,"6,340.92",06/03/2013,R,VIRGIN MEDIA PAYMENTS LTD     
901,Cultural Env Reg&Plan Services,Library DoS not split,Media Fund,L83081,Supplies & Services           ,Equip Furniture/Materials     ,DA59,Reference,750,17/04/2013,R,KOMPASS                       
902,Cultural Env Reg&Plan Services,Library DoS not split,Media Fund,L83081,Supplies & Services           ,Equip Furniture/Materials     ,DA60,Lending,556.97,25/04/2013,R,BERTRAM LIBRARY SERVICES      
903,Cultural Env Reg&Plan Services,Library DoS not split,Media Fund,L83081,Supplies & Services           ,Equip Furniture/Materials     ,DA60,Lending,583.35,03/05/2013,R,BERTRAM LIBRARY SERVICES      
904,Cultural Env Reg&Plan Services,Library DoS not split,Media Fund,L83081,Supplies & Services           ,Equip Furniture/Materials     ,DA60,Lending,626.64,30/04/2013,R,BERTRAM LIBRARY SERVICES      
905,Cultural Env Reg&Plan Services,Library DoS not split,Media Fund,L83081,Supplies & Services           ,Equip Furniture/Materials     ,DA62,Ethnic Books,"1,747.97",29/04/2013,R,GURU BOOKS                    
906,Cultural Env Reg&Plan Services,Library DoS not split,Media Fund,L83081,Supplies & Services           ,Comms and Computing           ,DG04,Postage - General,"1,227.20",28/03/2013,R,EXCEL GROUP SERVICES          
907,Cultural Env Reg&Plan Services,Library DoS not split,Media Fund,L83081,Supplies & Services           ,Comms and Computing           ,DG04,Postage - General,"1,534.00",30/04/2013,R,EXCEL GROUP SERVICES          
908,Cultural Env Reg&Plan Services,Library DoS not split,Media Fund,L83081,Supplies & Services           ,Comms and Computing           ,DG72,On Line Resources,"2,300.00",01/04/2013,R,PROQUEST INFO. & LEARNING LTD 
909,Cultural Env Reg&Plan Services,Library DoS not split,Media Fund,L83081,Supplies & Services           ,Grants and Subscriptions      ,DJ04,Subscriptions,"5,347.50",19/04/2013,R,BDS LTD                       
910,Cultural Env Reg&Plan Services,Library DoS not split,Morden Library,L84081,Premises Related Expenditure  ,Cleaning and Domestic Supplies,BH03,Cleaning Services,964.35,01/05/2013,R,BIRKIN CLEANING SERVICES LTD  
911,Cultural Env Reg&Plan Services,Library DoS not split,Raynes Park Library,L84083,Premises Related Expenditure  ,Cleaning and Domestic Supplies,BH03,Cleaning Services,574.82,30/04/2013,R,BIRKIN CLEANING SERVICES LTD  
912,Cultural Env Reg&Plan Services,Library DoS not split,Wimbledon Library,L85091,Premises Related Expenditure  ,Energy Costs                  ,BB03,Gas (incl. Butane),"1,228.60",26/04/2013,R,KENT COUNTY COUNCIL           
913,Cultural Env Reg&Plan Services,Library DoS not split,Wimbledon Library,L85091,Premises Related Expenditure  ,Cleaning and Domestic Supplies,BH03,Cleaning Services,"1,161.91",30/04/2013,R,BIRKIN CLEANING SERVICES LTD  
914,Housing Services,Bed / breakfast accommodation,TEMPORARY ACCOMMODATION,N47160,Third Party Payments          ,Private Contractors           ,EH01,Miscellaneous Contrct Services,540,30/04/2013,R,HOLMESDALE LTD                
915,Housing Services,Bed / breakfast accommodation,TEMPORARY ACCOMMODATION,N47160,Third Party Payments          ,Private Contractors           ,EH01,Miscellaneous Contrct Services,765,30/04/2013,R,SW LONDON LETTINGS LTD        
916,Housing Services,Bed / breakfast accommodation,TEMPORARY ACCOMMODATION,N47160,Third Party Payments          ,Private Contractors           ,EH01,Miscellaneous Contrct Services,840,30/04/2013,R,EURO HOTELS (THORNTON HEATH)  
917,Housing Services,Bed / breakfast accommodation,TEMPORARY ACCOMMODATION,N47160,Third Party Payments          ,Private Contractors           ,EH01,Miscellaneous Contrct Services,880,03/05/2013,R,VENTURE HOUSING(LONDON)LTD    
918,Housing Services,Bed / breakfast accommodation,TEMPORARY ACCOMMODATION,N47160,Third Party Payments          ,Private Contractors           ,EH01,Miscellaneous Contrct Services,900,30/04/2013,R,HOLMESDALE LTD                
919,Housing Services,Bed / breakfast accommodation,TEMPORARY ACCOMMODATION,N47160,Third Party Payments          ,Private Contractors           ,EH01,Miscellaneous Contrct Services,"1,140.00",03/05/2013,R,VENTURE HOUSING(LONDON)LTD    
920,Housing Services,Bed / breakfast accommodation,TEMPORARY ACCOMMODATION,N47160,Third Party Payments          ,Private Contractors           ,EH01,Miscellaneous Contrct Services,"1,500.00",30/04/2013,R,SW LONDON LETTINGS LTD        
921,Housing Services,Bed / breakfast accommodation,TEMPORARY ACCOMMODATION,N47160,Third Party Payments          ,Private Contractors           ,EH01,Miscellaneous Contrct Services,"1,617.00",25/04/2013,R,CREST MANOR LTD               
922,Housing Services,Bed / breakfast accommodation,TEMPORARY ACCOMMODATION,N47160,Third Party Payments          ,Private Contractors           ,EH01,Miscellaneous Contrct Services,"1,710.00",03/05/2013,R,VENTURE HOUSING(LONDON)LTD    
923,Housing Services,Bed / breakfast accommodation,TEMPORARY ACCOMMODATION,N47160,Third Party Payments          ,Private Contractors           ,EH01,Miscellaneous Contrct Services,"1,800.00",30/04/2013,R,EURO HOTELS (CLAPHAM STH) LTD 
924,Housing Services,Bed / breakfast accommodation,TEMPORARY ACCOMMODATION,N47160,Third Party Payments          ,Private Contractors           ,EH01,Miscellaneous Contrct Services,"1,950.00",30/04/2013,R,SW LONDON LETTINGS LTD        
925,Housing Services,Bed / breakfast accommodation,TEMPORARY ACCOMMODATION,N47160,Third Party Payments          ,Private Contractors           ,EH01,Miscellaneous Contrct Services,"1,950.00",03/05/2013,R,EURO HOTELS ( WEMBLEY) LTD    
926,Housing Services,Bed / breakfast accommodation,TEMPORARY ACCOMMODATION,N47160,Third Party Payments          ,Private Contractors           ,EH01,Miscellaneous Contrct Services,"1,950.00",30/04/2013,R,VENTURE HOUSING(LONDON)LTD    
927,Housing Services,Bed / breakfast accommodation,TEMPORARY ACCOMMODATION,N47160,Third Party Payments          ,Private Contractors           ,EH01,Miscellaneous Contrct Services,"2,250.00",01/04/2013,R,HOLMESDALE LTD                
928,Housing Services,Bed / breakfast accommodation,TEMPORARY ACCOMMODATION,N47160,Third Party Payments          ,Private Contractors           ,EH01,Miscellaneous Contrct Services,"2,250.00",03/05/2013,R,VENTURE HOUSING(LONDON)LTD    
929,Housing Services,Bed / breakfast accommodation,TEMPORARY ACCOMMODATION,N47160,Third Party Payments          ,Private Contractors           ,EH01,Miscellaneous Contrct Services,"2,395.00",30/04/2013,R,EURO HOTELS(GILROY COURT)LTD  
930,Housing Services,Bed / breakfast accommodation,TEMPORARY ACCOMMODATION,N47160,Third Party Payments          ,Private Contractors           ,EH01,Miscellaneous Contrct Services,"3,120.00",30/04/2013,R,EURO HOTELS (THORNTON HEATH)  
931,Housing Services,Bed / breakfast accommodation,Homelessness Prevention,N47171,Transfer Payments             ,Housing Benefits              ,FA11,Sanctuary Scheme Rent Rescue,"1,000.00",03/05/2013,R,MERTON PRIORY HOMES (RENT)    
932,Housing Services,Bed / breakfast accommodation,Homelessness Prevention,N47171,Transfer Payments             ,Housing Benefits              ,FA12,Rent Deposits,500,28/03/2013,R,VISION HOUSING                
933,Housing Services,Bed / breakfast accommodation,Homelessness Prevention,N47171,Transfer Payments             ,Housing Benefits              ,FA12,Rent Deposits,500,26/04/2013,R,VISION HOUSING                
934,Housing Services,Bed / breakfast accommodation,Homelessness Prevention,N47171,Transfer Payments             ,Housing Benefits              ,FA12,Rent Deposits,500,15/05/2013,R,VISION HOUSING                
935,Housing Services,Bed / breakfast accommodation,Homelessness Prevention,N47171,Transfer Payments             ,Housing Benefits              ,FA12,Rent Deposits,500,15/05/2013,R,VISION HOUSING                
936,Housing Services,Bed / breakfast accommodation,Homelessness Prevention,N47171,Transfer Payments             ,Housing Benefits              ,FA12,Rent Deposits,500,26/04/2013,R,VISION HOUSING                
937,Housing Services,Bed / breakfast accommodation,Homelessness Prevention,N47171,Transfer Payments             ,Housing Benefits              ,FA12,Rent Deposits,"1,072.50",31/05/2013,R,REDACTED
938,Housing Services,Bed / breakfast accommodation,Homelessness Prevention,N47171,Transfer Payments             ,Housing Benefits              ,FA12,Rent Deposits,"1,100.00",23/05/2013,R,MERTON PRIORY HOMES (RENT)    
